{"text_format":"2","workbook":"xlsx","n_sheets":6,"sheets":["Minta","Csapó","Lázár","Révész","Janáky","Munka1"],"not_rendered":{"charts":0,"images":0,"macros":0,"external_links":0,"defined_names":1,"comments":0,"pivot_tables":0},"unopened":[],"bounds":{"document_bytes":16777216,"sheet_cells":100000,"run_cost":"one","rows_first":2000,"rows_last":500,"rows_between":2000,"halvings":0,"cell_chars":16384,"cell_head_chars":4096},"cells_cut":0,"cells_raw":0,"read":"whole","date_system":"1900"}

{"sheet":"Minta","index":0,"n_rows":17,"n_cols":6,"rows_kept":17,"cut":false,"hidden":false,"merged":[]}
["Megnevezés (munkafüzet 2)","CPV megnevezés","CPV kód","Termék megnevezése","Kiszerelés","Darabszám"]
[]
["1. részajánlati kör"]
["Vegyszerek kémiai szintézisekhez","Különféle szerves vegyi anyagok","2432-7000-2","Diisopropyl malonate, min. 99%","100 ml",1]
["Vegyszerek kémiai szintézisekhez","Foszfinátok, foszfonátok, foszfátok és polifoszfátok","2431-3200-3","Phosphorus pentachloride, min. 98% ","1 kg",1]
["Vegyszerek kémiai szintézisekhez","Szerves vegyületek nitrogénfunkciós csoporttal","2432-4000-1","n-Butylamine, min. 99,5%","1000 ml",1]
["Vegyszerek kémiai szintézisekhez","Különféle szerves vegyi anyagok","2432-7000-2","Ethyl chloroformate, min. 97%","500 ml",1]
["Vegyszerek kémiai szintézisekhez","Különféle szerves vegyi anyagok","2432-7000-2","Benzyl chloroformate, min. 97%","500 g",1]
["Vegyszerek kémiai szintézisekhez","Különféle szerves vegyi anyagok","2432-7000-2","L-Histidine, min. 99%","100 g",1]
["Vegyszerek kémiai szintézisekhez","Különféle szerves vegyi anyagok","2432-7000-2","1,1-Bis(methylthio)-2-nitroethylene, min. 95%","25 g",1]
["Vegyszerek kémiai szintézisekhez","Különféle szerves vegyi anyagok","2432-7000-2","4'-Methoxyacetophenone, min. 99%","250 g",1]
["Vegyszerek kémiai szintézisekhez","Polifoszforsav","2431-1430-0","Polyphosphoric acid, min. 84% (as phosphorus pentoxide)","1 kg",1]
["Vegyszerek kémiai szintézisekhez","Különféle szerves vegyi anyagok","2432-7000-2","alpha-Ketoglutaric acid, min. 98%","100 g",1]
[]
["2. részajánlati kör"]
["Laboratóriumi papíráru","szűrőpapír","15994200-4","Redős kvalitatív szűrőpapír általános laboratóriumi munkához, átmérő:  125 mm","100 db/csomag",5]
["Laboratóriumi papíráru","szűrőpapír","15994200-4","Redős kvalitatív szűrőpapír általános laboratóriumi munkához, átmérő:  150 mm","100 db/csomag",5]

{"sheet":"Csapó","index":1,"n_rows":766,"n_cols":10,"rows_kept":766,"cut":false,"hidden":true,"merged":[]}
["Megnevezés (munkafüzet 2)","CPV megnevezés","CPV kód","Termék megnevezése","Szállítók (3 db)","Kiszerelés","Becsült egységár (Ft)","Darabszám","Becsült ár (Ft)"]
["Vegyszerek kémiai szintézisekhez"]
["Vegyszerek kémiai szintézisekhez","Különféle szerves vegyianyagok","24327000-2","1,2-Dipalmitoyl-sn-glycero-3-phosphocholine","Sigma-Aldrich, Avanti Polar Lipids Inc., Echelon Biosciences Inc. ","250 mg",60600,3,{"$f":"G3*H3","v":181800}]
["Vegyszerek kémiai szintézisekhez","Különféle szerves vegyianyagok","24327000-2","Asolectin from soy bean","Sigma-Aldrich, Avanti Polar Lipids Inc., OMNILAB-LABORZENTRUM GmbH & Co.","250 g",34200,1,34200]
["Vegyszerek kémiai szintézisekhez","Különféle szerves vegyianyagok","24327000-2","Soy lecithin","Sigma-Aldrich, VWR, Avanti Lipids Inc., ","500 g",32100,1,32100]
["Vegyszerek kémiai szintézisekhez","Különféle szerves vegyianyagok","24327000-2","Cholesterol","Sigma-Aldrich, Steraloids Inc., Molar","25 g",95100,1,95100]
["Vegyszerek kémiai szintézisekhez","Különféle szerves vegyianyagok","24327000-2","Cholesteryl chloroformate","Sigma-Aldrich, Santa-Cruz Biotechnology Inc., Fisher Scientific Inc.","25 g",21540,1,21540]
["Vegyszerek kémiai szintézisekhez","Primer etilén-polimerek","24510000-2","Poly(ethylene imine) (Mn= 1800)","Sigma-Aldrich, VWR, PolySciencies","250 mL",30600,1,30600]
["Vegyszerek kémiai szintézisekhez","Aminok","24324100-2","Trietil-amin","Sigma-Aldrich, VWR, Molar","100 mL",10320,1,10320]
["Vegyszerek kémiai szintézisekhez","Primer etilén-polimerek","24510000-2","Poly(ethylene glycol) (Mn = 6000)","Sigma-Aldrich, VWR, Molar","1 kg",13530,2,27060]
["Vegyszerek kémiai szintézisekhez","Primer műanyagok","24500000-9","Poly(allylamine hydrochloride) (Mw = 17500)","Sigma-Aldrich, VWR, Molar","5 g",49200,1,49200]
["Vegyszerek kémiai szintézisekhez","Primer sztirol-polimerek",null,"Poly(sodium 4-styrenesulfonate) (Mw = 70000)","Sigma-Aldrich, VWR, Quantomix Inc.","100 g",24360,1,24360]
["Vegyszerek kémiai szintézisekhez","Primer etilén-polimerek","24510000-2","Poly(ethylene glycol) methyl ether thiol (Mn = 6000)","Sigma-Aldrich, Alpha-Aesar, VWR","1 g",62400,2,124800]
["Vegyszerek kémiai szintézisekhez","Különféle szerves vegyianyagok","24327000-2","Chitosan high molecular weight","Sigma-Aldrich, Acros Organic Inc., Santa-Cruz Biotechnology Inc.","50 g",16710,1,16710]
["Vegyszerek kémiai szintézisekhez","Primer műanyagok","24500000-9","Poly(DL-lactid-co-glycolide) (Mw = 19000, 50-50 laktid-glikold %)","Acros Organic Inc, Sigma-Aldrich,  VWR","5 g",61000,1,61000]
[{"$nulls":9},{"$f":"SUM(I3:I15)","v":708790}]
[]
[]
["Oldószerek kémiai szintézisekhez"]
["Oldószerek kémiai szintézisekhez","Szénhidrogének egyéb halogén származékai","24321300-3","Diklór-metán","Sigma-Aldrich, VWR, Molar","1 L",36900,1,{"$f":"G20*H20","v":36900}]
["Oldószerek kémiai szintézisekhez","Aldehid, keton, szerves peroxidok és éterek","24326000-5","Dietil-éter","Sigma-Aldrich, VWR, Molar","1 L",28260,1,{"$f":"G21*H21","v":28260}]
["Oldószerek kémiai szintézisekhez","Metanol.","24322210-2","Metanol","Molar, VWR, Sigma-Aldrich","1 L",950,1,{"$f":"G22*H22","v":950}]
["Oldószerek kémiai szintézisekhez","Különféle szerves vegyianyagok","24327000-2","Kloroform","Molar, VWR, Sigma-Aldrich","1 L",1890,2,{"$f":"G23*H23","v":3780}]
[{"$nulls":9},{"$f":"SUM(I20:I23)","v":69890}]
[]
[]
["Kromatográfiás oszlopok, töltetek"]
["Kromatográfiás oszlopok, töltetek","Laboratóriumi, optikai és precíziós felszerelések","38000000-5","Sephadex ® G50-fine ","Sigma-Aldrich, GE Healthcare Science, Santa-Cruz Biotechnology Inc.","50 g",85000,1,{"$f":"G28*H28","v":85000}]
[{"$nulls":9},{"$f":"SUM(I28)","v":85000}]
[]
[]
["Laboratóriumi műanyag áru"]
["Laboratóriumi műanyag áru","Laboratóriumi, optikai és precíziós felszerelések","38000000-5","Millex-HA szűrő 0.45 um pórusú (SLHA025NB kódszám)","Sigma-Aldrich, Millipore Inc., Biocompare Inc., ","250 db",90000,1,{"$f":"G33*H33","v":90000}]
["Laboratóriumi műanyag áru","Laboratóriumi, optikai és precíziós felszerelések","38000000-5","Avanti lipids polycharbonate membrane filter (pore size: 0.05 um)","Avanti Lipids Inc., Fisher Scientific, Sigma-Aldrich","100 db / csomag",60000,2,{"$f":"G34*H34","v":120000}]
["Laboratóriumi műanyag áru","Laboratóriumi, optikai és precíziós felszerelések","38000000-5","Avanti lipids polycharbonate membrane filter (pore size: 0.1 um) ","Avanti Lipids Inc., Fisher Scientific, Sigma-Aldrich","100 db / csomag",55000,2,{"$f":"G35*H35","v":110000}]
[{"$nulls":9},{"$f":"SUM(I33:I35)","v":320000}]
[]
[]
[]
[{"$nulls":9},{"$f":"SUM(J3:J36)","v":1183680}]
{"$rows_empty":307}
[{"$nulls":8},{"$f":"G348*H348","v":0}]
[{"$nulls":8},0]
[{"$nulls":8},0]
[{"$nulls":8},0]
[{"$nulls":8},0]
[{"$nulls":8},0]
[{"$nulls":8},0]
[{"$nulls":8},0]
[{"$nulls":8},0]
[{"$nulls":8},0]
[{"$nulls":8},0]
[{"$nulls":8},0]
[{"$nulls":8},0]
[{"$nulls":8},0]
[{"$nulls":8},0]
[{"$nulls":8},0]
[{"$nulls":8},0]
[{"$nulls":8},0]
[{"$nulls":8},0]
[{"$nulls":8},0]
[{"$nulls":8},0]
[{"$nulls":8},0]
[{"$nulls":8},0]
[{"$nulls":8},0]
[{"$nulls":8},0]
[{"$nulls":8},0]
[{"$nulls":8},0]
[{"$nulls":8},0]
[{"$nulls":8},0]
[{"$nulls":8},0]
[{"$nulls":8},0]
[{"$nulls":8},0]
[{"$nulls":8},0]
[{"$nulls":8},0]
[{"$nulls":8},0]
[{"$nulls":8},0]
[{"$nulls":8},0]
[{"$nulls":8},0]
[{"$nulls":8},0]
[{"$nulls":8},0]
[{"$nulls":8},0]
[{"$nulls":8},0]
[{"$nulls":8},0]
[{"$nulls":8},0]
[{"$nulls":8},0]
[{"$nulls":8},0]
[{"$nulls":8},0]
[{"$nulls":8},0]
[{"$nulls":8},0]
[{"$nulls":8},0]
[{"$nulls":8},0]
[{"$nulls":8},0]
[{"$nulls":8},0]
[{"$nulls":8},0]
[{"$nulls":8},0]
[{"$nulls":8},0]
[{"$nulls":8},{"$f":"G404*H404","v":0}]
[{"$nulls":8},0]
[{"$nulls":8},0]
[{"$nulls":8},0]
[{"$nulls":8},0]
[{"$nulls":8},0]
[{"$nulls":8},0]
[{"$nulls":8},0]
[{"$nulls":8},0]
[{"$nulls":8},0]
[{"$nulls":8},0]
[{"$nulls":8},0]
[{"$nulls":8},0]
[{"$nulls":8},0]
[{"$nulls":8},0]
[{"$nulls":8},0]
[{"$nulls":8},0]
[{"$nulls":8},0]
[{"$nulls":8},0]
[{"$nulls":8},0]
[{"$nulls":8},0]
[{"$nulls":8},0]
[{"$nulls":8},0]
[{"$nulls":8},0]
[{"$nulls":8},0]
[{"$nulls":8},0]
[{"$nulls":8},0]
[{"$nulls":8},0]
[{"$nulls":8},0]
[{"$nulls":8},0]
[{"$nulls":8},0]
[{"$nulls":8},0]
[{"$nulls":8},0]
[{"$nulls":8},0]
[{"$nulls":8},0]
[{"$nulls":8},0]
[{"$nulls":8},0]
[{"$nulls":8},0]
[{"$nulls":8},0]
[{"$nulls":8},0]
[{"$nulls":8},0]
[{"$nulls":8},0]
[{"$nulls":8},0]
[{"$nulls":8},0]
[{"$nulls":8},0]
[{"$nulls":8},0]
[{"$nulls":8},0]
[{"$nulls":8},0]
[{"$nulls":8},0]
[{"$nulls":8},0]
[{"$nulls":8},0]
[{"$nulls":8},0]
[{"$nulls":8},0]
[{"$nulls":8},0]
[{"$nulls":8},0]
[{"$nulls":8},0]
[{"$nulls":8},0]
[{"$nulls":8},0]
[{"$nulls":8},0]
[{"$nulls":8},0]
[{"$nulls":8},0]
[{"$nulls":8},0]
[{"$nulls":8},0]
[{"$nulls":8},0]
[{"$nulls":8},{"$f":"G468*H468","v":0}]
[{"$nulls":8},0]
[{"$nulls":8},0]
[{"$nulls":8},0]
[{"$nulls":8},0]
[{"$nulls":8},0]
[{"$nulls":8},0]
[{"$nulls":8},0]
[{"$nulls":8},0]
[{"$nulls":8},0]
[{"$nulls":8},0]
[{"$nulls":8},0]
[{"$nulls":8},0]
[{"$nulls":8},0]
[{"$nulls":8},0]
[{"$nulls":8},0]
[{"$nulls":8},0]
[{"$nulls":8},0]
[{"$nulls":8},0]
[{"$nulls":8},0]
[{"$nulls":8},0]
[{"$nulls":8},0]
[{"$nulls":8},0]
[{"$nulls":8},0]
[{"$nulls":8},0]
[{"$nulls":8},0]
[{"$nulls":8},0]
[{"$nulls":8},0]
[{"$nulls":8},0]
[{"$nulls":8},0]
[{"$nulls":8},0]
[{"$nulls":8},0]
[{"$nulls":8},0]
[{"$nulls":8},0]
[{"$nulls":8},0]
[{"$nulls":8},0]
[{"$nulls":8},0]
[{"$nulls":8},0]
[{"$nulls":8},0]
[{"$nulls":8},0]
[{"$nulls":8},0]
[{"$nulls":8},0]
[{"$nulls":8},0]
[{"$nulls":8},0]
[{"$nulls":8},0]
[{"$nulls":8},0]
[{"$nulls":8},0]
[{"$nulls":8},0]
[{"$nulls":8},0]
[{"$nulls":8},0]
[{"$nulls":8},0]
[{"$nulls":8},0]
[{"$nulls":8},0]
[{"$nulls":8},0]
[{"$nulls":8},0]
[{"$nulls":8},0]
[{"$nulls":8},0]
[{"$nulls":8},0]
[{"$nulls":8},0]
[{"$nulls":8},0]
[{"$nulls":8},0]
[{"$nulls":8},0]
[{"$nulls":8},0]
[{"$nulls":8},0]
[{"$nulls":8},{"$f":"G532*H532","v":0}]
[{"$nulls":8},0]
[{"$nulls":8},0]
[{"$nulls":8},0]
[{"$nulls":8},0]
[{"$nulls":8},0]
[{"$nulls":8},0]
[{"$nulls":8},0]
[{"$nulls":8},0]
[{"$nulls":8},0]
[{"$nulls":8},0]
[{"$nulls":8},0]
[{"$nulls":8},0]
[{"$nulls":8},0]
[{"$nulls":8},0]
[{"$nulls":8},0]
[{"$nulls":8},0]
[{"$nulls":8},0]
[{"$nulls":8},0]
[{"$nulls":8},0]
[{"$nulls":8},0]
[{"$nulls":8},0]
[{"$nulls":8},0]
[{"$nulls":8},0]
[{"$nulls":8},0]
[{"$nulls":8},0]
[{"$nulls":8},0]
[{"$nulls":8},0]
[{"$nulls":8},0]
[{"$nulls":8},0]
[{"$nulls":8},0]
[{"$nulls":8},0]
[{"$nulls":8},0]
[{"$nulls":8},0]
[{"$nulls":8},0]
[{"$nulls":8},0]
[{"$nulls":8},0]
[{"$nulls":8},0]
[{"$nulls":8},0]
[{"$nulls":8},0]
[{"$nulls":8},0]
[{"$nulls":8},0]
[{"$nulls":8},0]
[{"$nulls":8},0]
[{"$nulls":8},0]
[{"$nulls":8},0]
[{"$nulls":8},0]
[{"$nulls":8},0]
[{"$nulls":8},0]
[{"$nulls":8},0]
[{"$nulls":8},0]
[{"$nulls":8},0]
[{"$nulls":8},0]
[{"$nulls":8},0]
[{"$nulls":8},0]
[{"$nulls":8},0]
[{"$nulls":8},0]
[{"$nulls":8},0]
[{"$nulls":8},0]
[{"$nulls":8},0]
[{"$nulls":8},0]
[{"$nulls":8},0]
[{"$nulls":8},0]
[{"$nulls":8},0]
[{"$nulls":8},{"$f":"G596*H596","v":0}]
[{"$nulls":8},0]
[{"$nulls":8},0]
[{"$nulls":8},0]
[{"$nulls":8},0]
[{"$nulls":8},0]
[{"$nulls":8},0]
[{"$nulls":8},0]
[{"$nulls":8},0]
[{"$nulls":8},0]
[{"$nulls":8},0]
[{"$nulls":8},0]
[{"$nulls":8},0]
[{"$nulls":8},0]
[{"$nulls":8},0]
[{"$nulls":8},0]
[{"$nulls":8},0]
[{"$nulls":8},0]
[{"$nulls":8},0]
[{"$nulls":8},0]
[{"$nulls":8},0]
[{"$nulls":8},0]
[{"$nulls":8},0]
[{"$nulls":8},0]
[{"$nulls":8},0]
[{"$nulls":8},0]
[{"$nulls":8},0]
[{"$nulls":8},0]
[{"$nulls":8},0]
[{"$nulls":8},0]
[{"$nulls":8},0]
[{"$nulls":8},0]
[{"$nulls":8},0]
[{"$nulls":8},0]
[{"$nulls":8},0]
[{"$nulls":8},0]
[{"$nulls":8},0]
[{"$nulls":8},0]
[{"$nulls":8},0]
[{"$nulls":8},0]
[{"$nulls":8},0]
[{"$nulls":8},0]
[{"$nulls":8},0]
[{"$nulls":8},0]
[{"$nulls":8},0]
[{"$nulls":8},0]
[{"$nulls":8},0]
[{"$nulls":8},0]
[{"$nulls":8},0]
[{"$nulls":8},0]
[{"$nulls":8},0]
[{"$nulls":8},0]
[{"$nulls":8},0]
[{"$nulls":8},0]
[{"$nulls":8},0]
[{"$nulls":8},0]
[{"$nulls":8},0]
[{"$nulls":8},0]
[{"$nulls":8},0]
[{"$nulls":8},0]
[{"$nulls":8},0]
[{"$nulls":8},0]
[{"$nulls":8},0]
[{"$nulls":8},0]
[{"$nulls":8},{"$f":"G660*H660","v":0}]
[{"$nulls":8},0]
[{"$nulls":8},0]
[{"$nulls":8},0]
[{"$nulls":8},0]
[{"$nulls":8},0]
[{"$nulls":8},0]
[{"$nulls":8},0]
[{"$nulls":8},0]
[{"$nulls":8},0]
[{"$nulls":8},0]
[{"$nulls":8},0]
[{"$nulls":8},0]
[{"$nulls":8},0]
[{"$nulls":8},0]
[{"$nulls":8},0]
[{"$nulls":8},0]
[{"$nulls":8},0]
[{"$nulls":8},0]
[{"$nulls":8},0]
[{"$nulls":8},0]
[{"$nulls":8},0]
[{"$nulls":8},0]
[{"$nulls":8},0]
[{"$nulls":8},0]
[{"$nulls":8},0]
[{"$nulls":8},0]
[{"$nulls":8},0]
[{"$nulls":8},0]
[{"$nulls":8},0]
[{"$nulls":8},0]
[{"$nulls":8},0]
[{"$nulls":8},0]
[{"$nulls":8},0]
[{"$nulls":8},0]
[{"$nulls":8},0]
[{"$nulls":8},0]
[{"$nulls":8},0]
[{"$nulls":8},0]
[{"$nulls":8},0]
[{"$nulls":8},0]
[{"$nulls":8},0]
[{"$nulls":8},0]
[{"$nulls":8},0]
[{"$nulls":8},0]
[{"$nulls":8},0]
[{"$nulls":8},0]
[{"$nulls":8},0]
[{"$nulls":8},0]
[{"$nulls":8},0]
[{"$nulls":8},0]
[{"$nulls":8},0]
[{"$nulls":8},0]
[{"$nulls":8},0]
[{"$nulls":8},0]
[{"$nulls":8},0]
[{"$nulls":8},0]
[{"$nulls":8},0]
[{"$nulls":8},0]
[{"$nulls":8},0]
[{"$nulls":8},0]
[{"$nulls":8},0]
[{"$nulls":8},0]
[{"$nulls":8},0]
[{"$nulls":8},{"$f":"G724*H724","v":0}]
[{"$nulls":8},0]
[{"$nulls":8},0]
[{"$nulls":8},0]
[{"$nulls":8},0]
[{"$nulls":8},0]
[{"$nulls":8},0]
[{"$nulls":8},0]
[{"$nulls":8},0]
[{"$nulls":8},0]
[{"$nulls":8},0]
[{"$nulls":8},0]
[{"$nulls":8},0]
[{"$nulls":8},0]
[{"$nulls":8},0]
[{"$nulls":8},0]
[{"$nulls":8},0]
[{"$nulls":8},0]
[{"$nulls":8},0]
[{"$nulls":8},0]
[{"$nulls":8},0]
[{"$nulls":8},0]
[{"$nulls":8},0]
[{"$nulls":8},0]
[{"$nulls":8},0]
[{"$nulls":8},0]
[{"$nulls":8},0]
[{"$nulls":8},0]
[{"$nulls":8},0]
[{"$nulls":8},0]
[{"$nulls":8},0]
[{"$nulls":8},0]
[{"$nulls":8},0]
[{"$nulls":8},0]
[{"$nulls":8},0]
[{"$nulls":8},0]
[{"$nulls":8},0]
[{"$nulls":8},0]
[{"$nulls":8},0]
[{"$nulls":8},0]
[{"$nulls":8},0]
[{"$nulls":8},0]
[{"$nulls":8},0]

{"sheet":"Lázár","index":2,"n_rows":760,"n_cols":10,"rows_kept":760,"cut":false,"hidden":true,"merged":[]}
["Megnevezés (munkafüzet 2)","CPV megnevezés","CPV kód","Termék megnevezése","Szállítók (3 db)","Kiszerelés","Becsült nettó egységár (Ft)","Darabszám","Becsült nettó ár (Ft)"]
["Vegyszerek kémiai szintézisekhez"]
["Vegyszerek kémiai szintézisekhez","Különféle szerves vegyi anyagok","2432-7000-2","Dimethyl malonate, 98%","VWR International Kft., Sigma-Aldrich Kft., Molar Chemicals Kft.","500 g",11904,1,{"$f":"PRODUCT(G3:H3)","v":11904}]
["Vegyszerek kémiai szintézisekhez","Különféle szerves vegyi anyagok","2432-7000-2","Diethyl malonate, 99% ","Sigma-Aldrich Kft., VWR International Kft., Molar Chemicals Kft.","500 g",12200,1,{"$f":"G4*H4","v":12200}]
["Vegyszerek kémiai szintézisekhez","Különféle szerves vegyi anyagok","2432-7000-2","Diisopropyl malonate","Sigma-Aldrich Kft., VWR International Kft., Molar Chemicals Kft.","100 ml",20670,1,20670]
["Vegyszerek kémiai szintézisekhez","Foszfinátok, foszfonátok, foszfátok és polifoszfátok","2431-3200-3","Phosphorus pentachloride, 98% ","Sigma-Aldrich Kft, VWR International Kft.,  Molar Chemicals Kft.","1 kg",18240,1,18240]
["Vegyszerek kémiai szintézisekhez","Különféle szerves vegyi anyagok","2432-7000-2","L-(+)-Tartaric acid, 99.5%","Sigma-Aldrich Kft., Reanal Laborvegyszer Kft., VWR International Kft.","500 g",14490,2,28980]
["Vegyszerek kémiai szintézisekhez","Különféle szerves vegyi anyagok","2432-7000-2","Benzyl bromide, 98%","VWR International Kft., Sigma-Aldrich  Kft.,  Molar Chemicals Kft.","500 g",58000,1,58000]
["Vegyszerek kémiai szintézisekhez","Szerves vegyületek nitrogénfunkciós csoporttal","2432-4000-1","n-Butylamine, 99,5%","Sigma-Aldrich Kft., VWR International Kft.,  Molar Chemicals Kft.","1000 ml",18840,1,18840]
["Vegyszerek kémiai szintézisekhez","Különféle szerves vegyi anyagok","2432-7000-2","Methyl chloroformate, 99%","VWR International Kft., Sigma-Aldrich Kft., Molar Chemicals Kft.","500 ml",16600,2,33200]
["Vegyszerek kémiai szintézisekhez","Különféle szerves vegyi anyagok","2432-7000-2","Ethyl chloroformate, 97%","VWR International Kft., Sigma-Aldrich Kft., Molar Chemicals Kft.","500 ml",21000,2,42000]
["Vegyszerek kémiai szintézisekhez","Különféle szerves vegyi anyagok","2432-7000-2","Benzyl chloroformate, 97%","VWR International Kft., Sigma-Aldrich Kft., Molar Chemicals Kft.","500 g",41400,2,82800]
["Vegyszerek kémiai szintézisekhez","Aldehidvegyületek oxigénfunkciós csoporttal","2432-6100-6","4-(Trifluormethyl)-benzaldehyde, 98%","Sigma-Aldrich Kft., VWR International Kft., Molar Chemicals Kft.","50 g",36600,1,36600]
["Vegyszerek kémiai szintézisekhez","Különféle szerves vegyi anyagok","2432-7000-2","1,1-Bis(methylthio)-2-nitroethylene, 95%","VWR International Kft., Sigma-Aldrich Kft., Molar Chemicals Kft.","25 g",59904,1,59904]
["Vegyszerek kémiai szintézisekhez","Aldehidvegyületek oxigénfunkciós csoporttal","2432-6100-6","4-Fluorobenzaldehyde, 98%","VWR International Kft., Sigma-Aldrich Kft., Molar Chemicals Kft.","100 g",25824,1,25824]
["Vegyszerek kémiai szintézisekhez","Különféle szerves vegyi anyagok","2432-7000-2","Grubbs Catalyst™ 2nd Generation ","Sigma-Aldrich Kft.","500 mg",107400,4,429600]
["Vegyszerek kémiai szintézisekhez","Különféle szerves vegyi anyagok","2432-7000-2","Hoveyda-Grubbs Catalyst™ 2nd Generation","Sigma-Aldrich Kft.","500 mg",100950,4,403800]
["Vegyszerek kémiai szintézisekhez","Különféle szerves vegyi anyagok","2432-7000-2","1H-Indene-3-carboxylic acid","Sigma-Aldrich Kft., Molar Chemicals Kft.","1 g",16380,2,32760]
["Vegyszerek kémiai szintézisekhez","Különféle szerves vegyi anyagok","2432-7000-2","7-Bromo-1H-indene  ","Sigma-Aldrich Kft.","1 g",36900,2,73800]
["Vegyszerek kémiai szintézisekhez","Különféle szerves vegyi anyagok","2432-7000-2","Selectfluor® fluorinating reagent , 95%","Sigma-Aldrich Kft.","25 g",41400,2,82800]
["Vegyszerek kémiai szintézisekhez","Különféle szerves vegyi anyagok","2432-7000-2","Deoxo-Fluor® solution ~50% in toluene  ","Sigma-Aldrich Kft.","50 ml   ",87150,2,174300]
["Vegyszerek kémiai szintézisekhez","Különféle szerves vegyi anyagok","2432-7000-2","4-tert-Butyl-2,6-dimethylphenyl-sulfur trifluoride   ","Sigma-Aldrich Kft.","5 g",64350,2,128700]
["Vegyszerek kémiai szintézisekhez","Különféle szerves vegyi anyagok","2432-7000-2","XtalFluor-E®   ","Sigma-Aldrich Kft.","25 g   ",55650,2,111300]
["Vegyszerek kémiai szintézisekhez","Különféle szerves vegyi anyagok","2432-7000-2","XtalFluor-M®   ","Sigma-Aldrich Kft.","5 g   ",20130,2,40260]
["Vegyszerek kémiai szintézisekhez","Különféle szerves vegyi anyagok","2432-7000-2","2,2,2-Trifluoroethylamine hydrochloride, 98%","Sigma-Aldrich Kft.","50 g   ",173400,2,346800]
["Vegyszerek kémiai szintézisekhez","Különféle szerves vegyi anyagok","2432-7000-2","2,2-Difluoroethylamine hydrochloride","Sigma-Aldrich Kft.","1 g   ",75450,4,301800]
["Vegyszerek kémiai szintézisekhez","Különféle szerves vegyi anyagok","2432-7000-2","2-Fluoroethylamine hydro-chloride, technical grade, 90%","Sigma-Aldrich Kft.","10 g   ",88050,2,176100]
["Vegyszerek kémiai szintézisekhez","Különféle szerves vegyi anyagok","2432-7000-2","N-Iodosuccinimide, 95%","Sigma-Aldrich Kft., Molar Chemicals Kft.","25 g  ",61650,2,123300]
["Vegyszerek kémiai szintézisekhez","Különféle szerves vegyi anyagok","2432-7000-2","Grubbs Catalyst™ 3rd Generation  ","Sigma-Aldrich Kft.","500 mg   ",106050,4,424200]
["Vegyszerek kémiai szintézisekhez","Polifoszforsav","2431-1430-0","Polyphosphoric acid","VWR International Kft., Sigma-Aldrich Kft., Molar Chemicals Kft.","1 kg",20300,3,60900]
["Vegyszerek kémiai szintézisekhez","Kénvegyületek","2431-1600-3","Thionyl chloride, 97%","VWR International Kft.,  Molar Chemicals Kft., Reanal Laborvegyszer Kft.","1000 ml",45300,1,45300]
["Vegyszerek kémiai szintézisekhez","Szervetlen savak","2431-1410-4","Hydrogen bromide (33% solution in acetic acid)","Sigma-Aldrich Kft., Molar Chemicals Kft., Reanal Laborvegyszer Kft.","500 ml",35136,2,70272]
["Vegyszerek kémiai szintézisekhez","Szervetlen savak","2431-1410-4","Hydrobromic acid (48% in water)","Molar Chemicals Kft., Reanal Laborvegyszer Kft., VWR International Kft.","1000 ml",20400,1,20400]
["Vegyszerek kémiai szintézisekhez","Foszfinátok, foszfonátok, foszfátok és polifoszfátok","2431-3200-3","Phosphorus(V) oxychloride, 99%","Sigma-Aldrich Kft., VWR International Kft., Molar Chemicals Kft.","1 kg",26640,2,53280]
["Vegyszerek kémiai szintézisekhez","Hidridek","2431-1130-7","Lithium aluminum hydride, powder, 97%","VWR International Kft.,  Molar Chemicals Kft., Sigma-Aldrich Kft.","250 g",84288,2,168576]
["Vegyszerek kémiai szintézisekhez","Hidridek","2431-1130-7","Sodium borohydride, powder, 99%","VWR International Kft., Sigma-Aldrich Kft.,  Molar Chemicals Kft.","100 g",29600,3,88800]
["Vegyszerek kémiai szintézisekhez","Hidridek","2431-1130-7","Sodium hydride, 60 % dispersion in mineral oil","Sigma-Aldrich Kft., VWR International Kft., Molar Chemicals Kft.","500 g",39450,1,39450]
["Vegyszerek kémiai szintézisekhez","Különféle szerves vegyi anyagok","2432-7000-2","Ethyl chlorooxoacetate, 98%","Sigma-Aldrich Kft., VWR International Kft., Molar Chemicals Kft.","100 g",24060,1,24060]
["Vegyszerek kémiai szintézisekhez","Különféle szerves vegyi anyagok","2432-7000-2","L-Histidine, 99%","VWR International Kft., Sigma-Aldrich Kft., Molar Chemicals Kft.","100 g",20928,2,41856]
["Vegyszerek kémiai szintézisekhez","Különféle szerves vegyi anyagok","2432-7000-2","DL-alpha-Phenylalanine, 99%","VWR International Kft., Sigma-Aldrich Kft., Molar Chemicals Kft.","100 g",22080,2,44160]
["Vegyszerek kémiai szintézisekhez","Különféle szerves vegyi anyagok","2432-7000-2","Phenyl isothiocyanate, 97%","VWR International Kft., Sigma-Aldrich Kft., Molar Chemicals Kft.","100 g ",13152,1,13152]
["Vegyszerek kémiai szintézisekhez","Különféle szerves vegyi anyagok","2432-7000-2","Cyclohexyl isothiocyanate, 98%","VWR International Kft., Sigma-Aldrich Kft., Molar Chemicals Kft.","25 g",11808,2,23616]
["Vegyszerek kémiai szintézisekhez","Különféle szerves vegyi anyagok","2432-7000-2","alpha-Ketoglutaric acid, 98%","VWR International Kft., Sigma-Aldrich Kft., Molar Chemicals Kft.","100 g",16224,1,16224]
["Vegyszerek kémiai szintézisekhez","Különféle szerves vegyi anyagok","2432-7000-2","Isopropyl isothiocyanate, 97%","VWR International Kft., Sigma-Aldrich Kft., Molar Chemicals Kft.","25 g",36000,1,36000]
["Vegyszerek kémiai szintézisekhez","Különféle szerves vegyi anyagok","2432-7000-2","Ethyl isothiocyanate, 97%","VWR International Kft., Sigma-Aldrich Kft., Molar Chemicals Kft.","100 g",17088,1,17088]
["Vegyszerek kémiai szintézisekhez","Különféle szerves vegyi anyagok","2432-7000-2","Benzyl isothiocyanate, 98%","VWR International Kft., Sigma-Aldrich Kft., Molar Chemicals Kft.","25 g",30720,1,30720]
["Vegyszerek kémiai szintézisekhez","Különféle szerves vegyi anyagok","2432-7000-2","4'-Methoxyacetophenone, 99%","VWR International Kft., Sigma-Aldrich Kft., Molar Chemicals Kft.","250 g",11424,1,11424]
["Vegyszerek kémiai szintézisekhez","Különféle szerves vegyi anyagok","2432-7000-2","Acetophenone, 99%","VWR International Kft., Sigma-Aldrich Kft., Molar Chemicals Kft.","1000 ml",11800,1,11800]
[{"$nulls":9},{"$f":"SUM(I3:I48)","v":4115760}]
[]
["Laboratóriumi műanyag áru"]
["Laboratóriumi műanyag áru",null,null,"PARAFILM zárófólia, szélesség: 100 mm, hossz: 75 m","VWR International Kft., AA Labor Kft., Reanal Laborvegyszer Kft.","1 tekercs",21960,3,{"$f":"G52*H52","v":65880}]
[{"$nulls":9},{"$f":"SUM(I52)","v":65880}]
[]
["Laboratóriumi papíráru"]
["Laboratóriumi papíráru","szűrőpapír","15994200-4","Redős kvalitatív szűrőpapír általános laboratóriumi munkához, átmérő:  125 mm","VWR International Kft., Reanal Laborvegyszer Kft., Szkarabeusz Laboratóriumi Kft. ","100 db/csomag",10000,10,{"$f":"G56*H56","v":100000}]
["Laboratóriumi papíráru","szűrőpapír","15994200-4","Redős kvalitatív szűrőpapír általános laboratóriumi munkához, átmérő:  150 mm","VWR International Kft., Reanal Laborvegyszer Kft., Szkarabeusz Laboratóriumi Kft. ","100 db/csomag",10000,10,{"$f":"G57*H57","v":100000}]
["Laboratóriumi papíráru","szűrőpapír","15994200-4","Redős kvalitatív szűrőpapír általános laboratóriumi munkához, átmérő:  185 mm","VWR International Kft., Reanal Laborvegyszer Kft., Szkarabeusz Laboratóriumi Kft. ","100 db/csomag",8000,8,{"$f":"G58*H58","v":64000}]
["Laboratóriumi papíráru","szűrőpapír","15994200-4","Redős kvalitatív szűrőpapír általános laboratóriumi munkához, átmérő:  240 mm","VWR International Kft., Reanal Laborvegyszer Kft., Szkarabeusz Laboratóriumi Kft. ","100 db/csomag",11500,6,{"$f":"G59*H59","v":69000}]
[{"$nulls":9},{"$f":"SUM(I56:I59)","v":333000}]
[]
[{"$nulls":8},{"$f":"G62*H62","v":0}]
[{"$nulls":8},0,{"$f":"SUM(J2:J60)","v":4514640}]
[{"$nulls":8},0]
[{"$nulls":8},0]
[{"$nulls":8},0]
[{"$nulls":8},0]
[{"$nulls":8},0]
[{"$nulls":8},0]
[{"$nulls":8},0]
[{"$nulls":8},0]
[{"$nulls":8},0]
[{"$nulls":8},0]
[{"$nulls":8},0]
[{"$nulls":8},0]
[{"$nulls":8},0]
[{"$nulls":8},0]
[{"$nulls":8},0]
[{"$nulls":8},0]
[{"$nulls":8},0]
[{"$nulls":8},0]
[{"$nulls":8},0]
[{"$nulls":8},0]
[{"$nulls":8},0]
[{"$nulls":8},0]
[{"$nulls":8},0]
[{"$nulls":8},0]
[{"$nulls":8},0]
[{"$nulls":8},0]
[{"$nulls":8},0]
[{"$nulls":8},0]
[{"$nulls":8},0]
[{"$nulls":8},0]
[{"$nulls":8},0]
[{"$nulls":8},0]
[{"$nulls":8},0]
[{"$nulls":8},0]
[{"$nulls":8},0]
[{"$nulls":8},0]
[{"$nulls":8},0]
[{"$nulls":8},0]
[{"$nulls":8},0]
[{"$nulls":8},0]
[{"$nulls":8},0]
[{"$nulls":8},0]
[{"$nulls":8},0]
[{"$nulls":8},0]
[{"$nulls":8},0]
[{"$nulls":8},0]
[{"$nulls":8},0]
[{"$nulls":8},0]
[{"$nulls":8},0]
[{"$nulls":8},0]
[{"$nulls":8},0]
[{"$nulls":8},0]
[{"$nulls":8},0]
[{"$nulls":8},0]
[{"$nulls":8},0]
[{"$nulls":8},0]
[{"$nulls":8},0]
[{"$nulls":8},0]
[{"$nulls":8},0]
[{"$nulls":8},0]
[{"$nulls":8},0]
[{"$nulls":8},0]
[{"$nulls":8},{"$f":"G126*H126","v":0}]
[{"$nulls":8},0]
[{"$nulls":8},0]
[{"$nulls":8},0]
[{"$nulls":8},0]
[{"$nulls":8},0]
[{"$nulls":8},0]
[{"$nulls":8},0]
[{"$nulls":8},0]
[{"$nulls":8},0]
[{"$nulls":8},0]
[{"$nulls":8},0]
[{"$nulls":8},0]
[{"$nulls":8},0]
[{"$nulls":8},0]
[{"$nulls":8},0]
[{"$nulls":8},0]
[{"$nulls":8},0]
[{"$nulls":8},0]
[{"$nulls":8},0]
[{"$nulls":8},0]
[{"$nulls":8},0]
[{"$nulls":8},0]
[{"$nulls":8},0]
[{"$nulls":8},0]
[{"$nulls":8},0]
[{"$nulls":8},0]
[{"$nulls":8},0]
[{"$nulls":8},0]
[{"$nulls":8},0]
[{"$nulls":8},0]
[{"$nulls":8},0]
[{"$nulls":8},0]
[{"$nulls":8},0]
[{"$nulls":8},0]
[{"$nulls":8},0]
[{"$nulls":8},0]
[{"$nulls":8},0]
[{"$nulls":8},0]
[{"$nulls":8},0]
[{"$nulls":8},0]
[{"$nulls":8},0]
[{"$nulls":8},0]
[{"$nulls":8},0]
[{"$nulls":8},0]
[{"$nulls":8},0]
[{"$nulls":8},0]
[{"$nulls":8},0]
[{"$nulls":8},0]
[{"$nulls":8},0]
[{"$nulls":8},0]
[{"$nulls":8},0]
[{"$nulls":8},0]
[{"$nulls":8},0]
[{"$nulls":8},0]
[{"$nulls":8},0]
[{"$nulls":8},0]
[{"$nulls":8},0]
[{"$nulls":8},0]
[{"$nulls":8},0]
[{"$nulls":8},0]
[{"$nulls":8},0]
[{"$nulls":8},0]
[{"$nulls":8},0]
[{"$nulls":8},{"$f":"G190*H190","v":0}]
[{"$nulls":8},0]
[{"$nulls":8},0]
[{"$nulls":8},0]
[{"$nulls":8},0]
[{"$nulls":8},0]
[{"$nulls":8},0]
[{"$nulls":8},0]
[{"$nulls":8},0]
[{"$nulls":8},0]
[{"$nulls":8},0]
[{"$nulls":8},0]
[{"$nulls":8},0]
[{"$nulls":8},0]
[{"$nulls":8},0]
[{"$nulls":8},0]
[{"$nulls":8},0]
[{"$nulls":8},0]
[{"$nulls":8},0]
[{"$nulls":8},0]
[{"$nulls":8},0]
[{"$nulls":8},0]
[{"$nulls":8},0]
[{"$nulls":8},0]
[{"$nulls":8},0]
[{"$nulls":8},0]
[{"$nulls":8},0]
[{"$nulls":8},0]
[{"$nulls":8},0]
[{"$nulls":8},0]
[{"$nulls":8},0]
[{"$nulls":8},0]
[{"$nulls":8},0]
[{"$nulls":8},0]
[{"$nulls":8},0]
[{"$nulls":8},0]
[{"$nulls":8},0]
[{"$nulls":8},0]
[{"$nulls":8},0]
[{"$nulls":8},0]
[{"$nulls":8},0]
[{"$nulls":8},0]
[{"$nulls":8},0]
[{"$nulls":8},0]
[{"$nulls":8},0]
[{"$nulls":8},0]
[{"$nulls":8},0]
[{"$nulls":8},0]
[{"$nulls":8},0]
[{"$nulls":8},0]
[{"$nulls":8},0]
[{"$nulls":8},0]
[{"$nulls":8},0]
[{"$nulls":8},0]
[{"$nulls":8},0]
[{"$nulls":8},0]
[{"$nulls":8},0]
[{"$nulls":8},0]
[{"$nulls":8},0]
[{"$nulls":8},0]
[{"$nulls":8},0]
[{"$nulls":8},0]
[{"$nulls":8},0]
[{"$nulls":8},0]
[{"$nulls":8},{"$f":"G254*H254","v":0}]
[{"$nulls":8},0]
[{"$nulls":8},0]
[{"$nulls":8},0]
[{"$nulls":8},0]
[{"$nulls":8},0]
[{"$nulls":8},0]
[{"$nulls":8},0]
[{"$nulls":8},0]
[{"$nulls":8},0]
[{"$nulls":8},0]
[{"$nulls":8},0]
[{"$nulls":8},0]
[{"$nulls":8},0]
[{"$nulls":8},0]
[{"$nulls":8},0]
[{"$nulls":8},0]
[{"$nulls":8},0]
[{"$nulls":8},0]
[{"$nulls":8},0]
[{"$nulls":8},0]
[{"$nulls":8},0]
[{"$nulls":8},0]
[{"$nulls":8},0]
[{"$nulls":8},0]
[{"$nulls":8},0]
[{"$nulls":8},0]
[{"$nulls":8},0]
[{"$nulls":8},0]
[{"$nulls":8},0]
[{"$nulls":8},0]
[{"$nulls":8},0]
[{"$nulls":8},0]
[{"$nulls":8},0]
[{"$nulls":8},0]
[{"$nulls":8},0]
[{"$nulls":8},0]
[{"$nulls":8},0]
[{"$nulls":8},0]
[{"$nulls":8},0]
[{"$nulls":8},0]
[{"$nulls":8},0]
[{"$nulls":8},0]
[{"$nulls":8},0]
[{"$nulls":8},0]
[{"$nulls":8},0]
[{"$nulls":8},0]
[{"$nulls":8},0]
[{"$nulls":8},0]
[{"$nulls":8},0]
[{"$nulls":8},0]
[{"$nulls":8},0]
[{"$nulls":8},0]
[{"$nulls":8},0]
[{"$nulls":8},0]
[{"$nulls":8},0]
[{"$nulls":8},0]
[{"$nulls":8},0]
[{"$nulls":8},0]
[{"$nulls":8},0]
[{"$nulls":8},0]
[{"$nulls":8},0]
[{"$nulls":8},0]
[{"$nulls":8},0]
[{"$nulls":8},{"$f":"G318*H318","v":0}]
[{"$nulls":8},0]
[{"$nulls":8},0]
[{"$nulls":8},0]
[{"$nulls":8},0]
[{"$nulls":8},0]
[{"$nulls":8},0]
[{"$nulls":8},0]
[{"$nulls":8},0]
[{"$nulls":8},0]
[{"$nulls":8},0]
[{"$nulls":8},0]
[{"$nulls":8},0]
[{"$nulls":8},0]
[{"$nulls":8},0]
[{"$nulls":8},0]
[{"$nulls":8},0]
[{"$nulls":8},0]
[{"$nulls":8},0]
[{"$nulls":8},0]
[{"$nulls":8},0]
[{"$nulls":8},0]
[{"$nulls":8},0]
[{"$nulls":8},0]
[{"$nulls":8},0]
[{"$nulls":8},0]
[{"$nulls":8},0]
[{"$nulls":8},0]
[{"$nulls":8},0]
[{"$nulls":8},0]
[{"$nulls":8},0]
[{"$nulls":8},0]
[{"$nulls":8},0]
[{"$nulls":8},0]
[{"$nulls":8},0]
[{"$nulls":8},0]
[{"$nulls":8},0]
[{"$nulls":8},0]
[{"$nulls":8},0]
[{"$nulls":8},0]
[{"$nulls":8},0]
[{"$nulls":8},0]
[{"$nulls":8},0]
[{"$nulls":8},0]
[{"$nulls":8},0]
[{"$nulls":8},0]
[{"$nulls":8},0]
[{"$nulls":8},0]
[{"$nulls":8},0]
[{"$nulls":8},0]
[{"$nulls":8},0]
[{"$nulls":8},0]
[{"$nulls":8},0]
[{"$nulls":8},0]
[{"$nulls":8},0]
[{"$nulls":8},0]
[{"$nulls":8},0]
[{"$nulls":8},0]
[{"$nulls":8},0]
[{"$nulls":8},0]
[{"$nulls":8},0]
[{"$nulls":8},0]
[{"$nulls":8},0]
[{"$nulls":8},0]
[{"$nulls":8},{"$f":"G382*H382","v":0}]
[{"$nulls":8},0]
[{"$nulls":8},0]
[{"$nulls":8},0]
[{"$nulls":8},0]
[{"$nulls":8},0]
[{"$nulls":8},0]
[{"$nulls":8},0]
[{"$nulls":8},0]
[{"$nulls":8},0]
[{"$nulls":8},0]
[{"$nulls":8},0]
[{"$nulls":8},0]
[{"$nulls":8},0]
[{"$nulls":8},0]
[{"$nulls":8},0]
[{"$nulls":8},0]
[{"$nulls":8},0]
[{"$nulls":8},0]
[{"$nulls":8},0]
[{"$nulls":8},0]
[{"$nulls":8},0]
[{"$nulls":8},0]
[{"$nulls":8},0]
[{"$nulls":8},0]
[{"$nulls":8},0]
[{"$nulls":8},0]
[{"$nulls":8},0]
[{"$nulls":8},0]
[{"$nulls":8},0]
[{"$nulls":8},0]
[{"$nulls":8},0]
[{"$nulls":8},0]
[{"$nulls":8},0]
[{"$nulls":8},0]
[{"$nulls":8},0]
[{"$nulls":8},0]
[{"$nulls":8},0]
[{"$nulls":8},0]
[{"$nulls":8},0]
[{"$nulls":8},0]
[{"$nulls":8},0]
[{"$nulls":8},0]
[{"$nulls":8},0]
[{"$nulls":8},0]
[{"$nulls":8},0]
[{"$nulls":8},0]
[{"$nulls":8},0]
[{"$nulls":8},0]
[{"$nulls":8},0]
[{"$nulls":8},0]
[{"$nulls":8},0]
[{"$nulls":8},0]
[{"$nulls":8},0]
[{"$nulls":8},0]
[{"$nulls":8},0]
[{"$nulls":8},0]
[{"$nulls":8},0]
[{"$nulls":8},0]
[{"$nulls":8},0]
[{"$nulls":8},0]
[{"$nulls":8},0]
[{"$nulls":8},0]
[{"$nulls":8},0]
[{"$nulls":8},{"$f":"G446*H446","v":0}]
[{"$nulls":8},0]
[{"$nulls":8},0]
[{"$nulls":8},0]
[{"$nulls":8},0]
[{"$nulls":8},0]
[{"$nulls":8},0]
[{"$nulls":8},0]
[{"$nulls":8},0]
[{"$nulls":8},0]
[{"$nulls":8},0]
[{"$nulls":8},0]
[{"$nulls":8},0]
[{"$nulls":8},0]
[{"$nulls":8},0]
[{"$nulls":8},0]
[{"$nulls":8},0]
[{"$nulls":8},0]
[{"$nulls":8},0]
[{"$nulls":8},0]
[{"$nulls":8},0]
[{"$nulls":8},0]
[{"$nulls":8},0]
[{"$nulls":8},0]
[{"$nulls":8},0]
[{"$nulls":8},0]
[{"$nulls":8},0]
[{"$nulls":8},0]
[{"$nulls":8},0]
[{"$nulls":8},0]
[{"$nulls":8},0]
[{"$nulls":8},0]
[{"$nulls":8},0]
[{"$nulls":8},0]
[{"$nulls":8},0]
[{"$nulls":8},0]
[{"$nulls":8},0]
[{"$nulls":8},0]
[{"$nulls":8},0]
[{"$nulls":8},0]
[{"$nulls":8},0]
[{"$nulls":8},0]
[{"$nulls":8},0]
[{"$nulls":8},0]
[{"$nulls":8},0]
[{"$nulls":8},0]
[{"$nulls":8},0]
[{"$nulls":8},0]
[{"$nulls":8},0]
[{"$nulls":8},0]
[{"$nulls":8},0]
[{"$nulls":8},0]
[{"$nulls":8},0]
[{"$nulls":8},0]
[{"$nulls":8},0]
[{"$nulls":8},0]
[{"$nulls":8},0]
[{"$nulls":8},0]
[{"$nulls":8},0]
[{"$nulls":8},0]
[{"$nulls":8},0]
[{"$nulls":8},0]
[{"$nulls":8},0]
[{"$nulls":8},0]
[{"$nulls":8},{"$f":"G510*H510","v":0}]
[{"$nulls":8},0]
[{"$nulls":8},0]
[{"$nulls":8},0]
[{"$nulls":8},0]
[{"$nulls":8},0]
[{"$nulls":8},0]
[{"$nulls":8},0]
[{"$nulls":8},0]
[{"$nulls":8},0]
[{"$nulls":8},0]
[{"$nulls":8},0]
[{"$nulls":8},0]
[{"$nulls":8},0]
[{"$nulls":8},0]
[{"$nulls":8},0]
[{"$nulls":8},0]
[{"$nulls":8},0]
[{"$nulls":8},0]
[{"$nulls":8},0]
[{"$nulls":8},0]
[{"$nulls":8},0]
[{"$nulls":8},0]
[{"$nulls":8},0]
[{"$nulls":8},0]
[{"$nulls":8},0]
[{"$nulls":8},0]
[{"$nulls":8},0]
[{"$nulls":8},0]
[{"$nulls":8},0]
[{"$nulls":8},0]
[{"$nulls":8},0]
[{"$nulls":8},0]
[{"$nulls":8},0]
[{"$nulls":8},0]
[{"$nulls":8},0]
[{"$nulls":8},0]
[{"$nulls":8},0]
[{"$nulls":8},0]
[{"$nulls":8},0]
[{"$nulls":8},0]
[{"$nulls":8},0]
[{"$nulls":8},0]
[{"$nulls":8},0]
[{"$nulls":8},0]
[{"$nulls":8},0]
[{"$nulls":8},0]
[{"$nulls":8},0]
[{"$nulls":8},0]
[{"$nulls":8},0]
[{"$nulls":8},0]
[{"$nulls":8},0]
[{"$nulls":8},0]
[{"$nulls":8},0]
[{"$nulls":8},0]
[{"$nulls":8},0]
[{"$nulls":8},0]
[{"$nulls":8},0]
[{"$nulls":8},0]
[{"$nulls":8},0]
[{"$nulls":8},0]
[{"$nulls":8},0]
[{"$nulls":8},0]
[{"$nulls":8},0]
[{"$nulls":8},{"$f":"G574*H574","v":0}]
[{"$nulls":8},0]
[{"$nulls":8},0]
[{"$nulls":8},0]
[{"$nulls":8},0]
[{"$nulls":8},0]
[{"$nulls":8},0]
[{"$nulls":8},0]
[{"$nulls":8},0]
[{"$nulls":8},0]
[{"$nulls":8},0]
[{"$nulls":8},0]
[{"$nulls":8},0]
[{"$nulls":8},0]
[{"$nulls":8},0]
[{"$nulls":8},0]
[{"$nulls":8},0]
[{"$nulls":8},0]
[{"$nulls":8},0]
[{"$nulls":8},0]
[{"$nulls":8},0]
[{"$nulls":8},0]
[{"$nulls":8},0]
[{"$nulls":8},0]
[{"$nulls":8},0]
[{"$nulls":8},0]
[{"$nulls":8},0]
[{"$nulls":8},0]
[{"$nulls":8},0]
[{"$nulls":8},0]
[{"$nulls":8},0]
[{"$nulls":8},0]
[{"$nulls":8},0]
[{"$nulls":8},0]
[{"$nulls":8},0]
[{"$nulls":8},0]
[{"$nulls":8},0]
[{"$nulls":8},0]
[{"$nulls":8},0]
[{"$nulls":8},0]
[{"$nulls":8},0]
[{"$nulls":8},0]
[{"$nulls":8},0]
[{"$nulls":8},0]
[{"$nulls":8},0]
[{"$nulls":8},0]
[{"$nulls":8},0]
[{"$nulls":8},0]
[{"$nulls":8},0]
[{"$nulls":8},0]
[{"$nulls":8},0]
[{"$nulls":8},0]
[{"$nulls":8},0]
[{"$nulls":8},0]
[{"$nulls":8},0]
[{"$nulls":8},0]
[{"$nulls":8},0]
[{"$nulls":8},0]
[{"$nulls":8},0]
[{"$nulls":8},0]
[{"$nulls":8},0]
[{"$nulls":8},0]
[{"$nulls":8},0]
[{"$nulls":8},0]
[{"$nulls":8},{"$f":"G638*H638","v":0}]
[{"$nulls":8},0]
[{"$nulls":8},0]
[{"$nulls":8},0]
[{"$nulls":8},0]
[{"$nulls":8},0]
[{"$nulls":8},0]
[{"$nulls":8},0]
[{"$nulls":8},0]
[{"$nulls":8},0]
[{"$nulls":8},0]
[{"$nulls":8},0]
[{"$nulls":8},0]
[{"$nulls":8},0]
[{"$nulls":8},0]
[{"$nulls":8},0]
[{"$nulls":8},0]
[{"$nulls":8},0]
[{"$nulls":8},0]
[{"$nulls":8},0]
[{"$nulls":8},0]
[{"$nulls":8},0]
[{"$nulls":8},0]
[{"$nulls":8},0]
[{"$nulls":8},0]
[{"$nulls":8},0]
[{"$nulls":8},0]
[{"$nulls":8},0]
[{"$nulls":8},0]
[{"$nulls":8},0]
[{"$nulls":8},0]
[{"$nulls":8},0]
[{"$nulls":8},0]
[{"$nulls":8},0]
[{"$nulls":8},0]
[{"$nulls":8},0]
[{"$nulls":8},0]
[{"$nulls":8},0]
[{"$nulls":8},0]
[{"$nulls":8},0]
[{"$nulls":8},0]
[{"$nulls":8},0]
[{"$nulls":8},0]
[{"$nulls":8},0]
[{"$nulls":8},0]
[{"$nulls":8},0]
[{"$nulls":8},0]
[{"$nulls":8},0]
[{"$nulls":8},0]
[{"$nulls":8},0]
[{"$nulls":8},0]
[{"$nulls":8},0]
[{"$nulls":8},0]
[{"$nulls":8},0]
[{"$nulls":8},0]
[{"$nulls":8},0]
[{"$nulls":8},0]
[{"$nulls":8},0]
[{"$nulls":8},0]
[{"$nulls":8},0]
[{"$nulls":8},0]
[{"$nulls":8},0]
[{"$nulls":8},0]
[{"$nulls":8},0]
[{"$nulls":8},{"$f":"G702*H702","v":0}]
[{"$nulls":8},0]
[{"$nulls":8},0]
[{"$nulls":8},0]
[{"$nulls":8},0]
[{"$nulls":8},0]
[{"$nulls":8},0]
[{"$nulls":8},0]
[{"$nulls":8},0]
[{"$nulls":8},0]
[{"$nulls":8},0]
[{"$nulls":8},0]
[{"$nulls":8},0]
[{"$nulls":8},0]
[{"$nulls":8},0]
[{"$nulls":8},0]
[{"$nulls":8},0]
[{"$nulls":8},0]
[{"$nulls":8},0]
[{"$nulls":8},0]
[{"$nulls":8},0]
[{"$nulls":8},0]
[{"$nulls":8},0]
[{"$nulls":8},0]
[{"$nulls":8},0]
[{"$nulls":8},0]
[{"$nulls":8},0]
[{"$nulls":8},0]
[{"$nulls":8},0]
[{"$nulls":8},0]
[{"$nulls":8},0]
[{"$nulls":8},0]
[{"$nulls":8},0]
[{"$nulls":8},0]
[{"$nulls":8},0]
[{"$nulls":8},0]
[{"$nulls":8},0]
[{"$nulls":8},0]
[{"$nulls":8},0]
[{"$nulls":8},0]
[{"$nulls":8},0]
[{"$nulls":8},0]
[{"$nulls":8},0]
[{"$nulls":8},0]
[{"$nulls":8},0]
[{"$nulls":8},0]
[{"$nulls":8},0]
[{"$nulls":8},0]
[{"$nulls":8},0]
[{"$nulls":8},0]
[{"$nulls":8},0]
[{"$nulls":8},0]
[{"$nulls":8},0]
[{"$nulls":8},0]
[{"$nulls":8},0]
[{"$nulls":8},0]
[{"$nulls":8},0]
[{"$nulls":8},0]
[{"$nulls":8},0]

{"sheet":"Révész","index":3,"n_rows":761,"n_cols":10,"rows_kept":761,"cut":false,"hidden":true,"merged":[]}
["Megnevezés (munkafüzet 2)","CPV megnevezés","CPV kód","Termék megnevezése","Szállítók (3 db)","Kiszerelés","Becsült egységár (Ft)","Darabszám","Becsült ár (Ft)"]
[]
["Szerves alapvegyületek"]
["Szerves alapvegyületek","Szerves alapvegyületek","24000000-4","L-α-Lecithin, Egg Yolk","VWR, Molar, Sigma Aldrich","250 mg",20000,1,{"$f":"G4*H4","v":20000}]
["Szerves alapvegyületek","Szerves alapvegyületek","24000000-4","L-α-Lecithin, Soybean ","VWR, Molar, Sigma Aldrich","100 g",74000,1,{"$f":"G5*H5","v":74000}]
["Szerves alapvegyületek","Szerves alapvegyületek","24000000-4","Koleszterin ultra pure grade","VWR, Molar, Sigma Aldrich","500 g",44000,1,{"$f":"G6*H6","v":44000}]
["Szerves alapvegyületek","Szerves alapvegyületek","24000000-4","1,2-Dimyristoyl-sn-glycero-3-PC","VWR, Molar, Sigma Aldrich","2g",59000,1,59000]
["Szerves alapvegyületek","Szerves alapvegyületek","24000000-4","1,2-Dilauroyl- sn-glycero-3-PC","VWR, Molar, Sigma Aldrich","2g",59000,1,59000]
["Szerves alapvegyületek","Szerves alapvegyületek","24000000-4","1,2-Distearoyl-sn-glycero-3-PC","VWR, Molar, Sigma Aldrich","2g",59000,1,59000]
[{"$nulls":9},{"$f":"SUM(I4:I9)","v":315000}]
[]
["Analitikai célú fogyóanyagok, eszközök"]
["Analitikai célú fogyóanyagok, eszközök","Laboratóriumi, optikai és precíziós felszerelések","38000000-5","Parafilm 38 m * 10 cm","VWR, Gen-Lab, Labex, Sigma Aldrich","1 db",12000,1,{"$f":"G13*H13","v":12000}]
["Analitikai célú fogyóanyagok, eszközök","Laboratóriumi, optikai és precíziós felszerelések","38000000-5","fecskendőszűrő 0,22","VWR, Gen-Lab, Labex, Sigma Aldrich","50 db/csomag",25000,1,25000]
["Analitikai célú fogyóanyagok, eszközök","Laboratóriumi, optikai és precíziós felszerelések","38000000-5","fecskendőszűrő 0,45","VWR, Gen-Lab, Labex, Sigma Aldrich","50 db/csomag",25000,1,25000]
[{"$nulls":9},{"$f":"SUM(I13:I15)","v":62000}]
[]
["Laboratóriumi gumiáru és védőfelszerelések"]
["Laboratóriumi gumiáru és védőfelszerelések","Eldobható gumikesztűk","18424300-0","gumikesztyű","VWR, Gen-Lab, Labex, Sigma Aldrich","100 db/csomag",3000,2,6000]
[{"$nulls":9},{"$f":"SUM(I19)","v":6000}]
[]
["Laboratóriumi üvegáru"]
["Laboratóriumi üvegáru","Laboratóriumi üvegáru","33793000-5","lombik 25 ml","VWR, Gen-Lab, Labex, Sigma Aldrich","2 db doboz",7200,1,7200]
[{"$nulls":8},0,{"$f":"SUM(I23)","v":7200}]
[{"$nulls":8},0]
[{"$nulls":8},0]
[{"$nulls":8},0]
[{"$nulls":8},0,{"$f":"SUM(J10:J24)","v":390200}]
[{"$nulls":8},0]
[{"$nulls":8},0]
[{"$nulls":8},0]
[{"$nulls":8},0]
[{"$nulls":8},0]
[{"$nulls":8},0]
[{"$nulls":8},0]
[{"$nulls":8},0]
[{"$nulls":8},0]
[{"$nulls":8},0]
[{"$nulls":8},0]
[{"$nulls":8},0]
[{"$nulls":8},0]
[{"$nulls":8},0]
[{"$nulls":8},0]
[{"$nulls":8},0]
[{"$nulls":8},0]
[{"$nulls":8},0]
[{"$nulls":8},0]
[{"$nulls":8},0]
[{"$nulls":8},0]
[{"$nulls":8},0]
[{"$nulls":8},0]
[{"$nulls":8},0]
[{"$nulls":8},0]
[{"$nulls":8},0]
[{"$nulls":8},0]
[{"$nulls":8},0]
[{"$nulls":8},0]
[{"$nulls":8},0]
[{"$nulls":8},0]
[{"$nulls":8},0]
[{"$nulls":8},0]
[{"$nulls":8},0]
[{"$nulls":8},0]
[{"$nulls":8},0]
[{"$nulls":8},0]
[{"$nulls":8},0]
[{"$nulls":8},0]
[{"$nulls":8},0]
[{"$nulls":8},0]
[{"$nulls":8},0]
[{"$nulls":8},0]
[{"$nulls":8},0]
[{"$nulls":8},0]
[{"$nulls":8},0]
[{"$nulls":8},0]
[{"$nulls":8},0]
[{"$nulls":8},0]
[{"$nulls":8},{"$f":"G78*H78","v":0}]
[{"$nulls":8},0]
[{"$nulls":8},0]
[{"$nulls":8},0]
[{"$nulls":8},0]
[{"$nulls":8},0]
[{"$nulls":8},0]
[{"$nulls":8},0]
[{"$nulls":8},0]
[{"$nulls":8},0]
[{"$nulls":8},0]
[{"$nulls":8},0]
[{"$nulls":8},0]
[{"$nulls":8},0]
[{"$nulls":8},0]
[{"$nulls":8},0]
[{"$nulls":8},0]
[{"$nulls":8},0]
[{"$nulls":8},0]
[{"$nulls":8},0]
[{"$nulls":8},0]
[{"$nulls":8},0]
[{"$nulls":8},0]
[{"$nulls":8},0]
[{"$nulls":8},0]
[{"$nulls":8},0]
[{"$nulls":8},0]
[{"$nulls":8},0]
[{"$nulls":8},0]
[{"$nulls":8},0]
[{"$nulls":8},0]
[{"$nulls":8},0]
[{"$nulls":8},0]
[{"$nulls":8},0]
[{"$nulls":8},0]
[{"$nulls":8},0]
[{"$nulls":8},0]
[{"$nulls":8},0]
[{"$nulls":8},0]
[{"$nulls":8},0]
[{"$nulls":8},0]
[{"$nulls":8},0]
[{"$nulls":8},0]
[{"$nulls":8},0]
[{"$nulls":8},0]
[{"$nulls":8},0]
[{"$nulls":8},0]
[{"$nulls":8},0]
[{"$nulls":8},0]
[{"$nulls":8},0]
[{"$nulls":8},0]
[{"$nulls":8},0]
[{"$nulls":8},0]
[{"$nulls":8},0]
[{"$nulls":8},0]
[{"$nulls":8},0]
[{"$nulls":8},0]
[{"$nulls":8},0]
[{"$nulls":8},0]
[{"$nulls":8},0]
[{"$nulls":8},0]
[{"$nulls":8},0]
[{"$nulls":8},0]
[{"$nulls":8},0]
[{"$nulls":8},{"$f":"G142*H142","v":0}]
[{"$nulls":8},0]
[{"$nulls":8},0]
[{"$nulls":8},0]
[{"$nulls":8},0]
[{"$nulls":8},0]
[{"$nulls":8},0]
[{"$nulls":8},0]
[{"$nulls":8},0]
[{"$nulls":8},0]
[{"$nulls":8},0]
[{"$nulls":8},0]
[{"$nulls":8},0]
[{"$nulls":8},0]
[{"$nulls":8},0]
[{"$nulls":8},0]
[{"$nulls":8},0]
[{"$nulls":8},0]
[{"$nulls":8},0]
[{"$nulls":8},0]
[{"$nulls":8},0]
[{"$nulls":8},0]
[{"$nulls":8},0]
[{"$nulls":8},0]
[{"$nulls":8},0]
[{"$nulls":8},0]
[{"$nulls":8},0]
[{"$nulls":8},0]
[{"$nulls":8},0]
[{"$nulls":8},0]
[{"$nulls":8},0]
[{"$nulls":8},0]
[{"$nulls":8},0]
[{"$nulls":8},0]
[{"$nulls":8},0]
[{"$nulls":8},0]
[{"$nulls":8},0]
[{"$nulls":8},0]
[{"$nulls":8},0]
[{"$nulls":8},0]
[{"$nulls":8},0]
[{"$nulls":8},0]
[{"$nulls":8},0]
[{"$nulls":8},0]
[{"$nulls":8},0]
[{"$nulls":8},0]
[{"$nulls":8},0]
[{"$nulls":8},0]
[{"$nulls":8},0]
[{"$nulls":8},0]
[{"$nulls":8},0]
[{"$nulls":8},0]
[{"$nulls":8},0]
[{"$nulls":8},0]
[{"$nulls":8},0]
[{"$nulls":8},0]
[{"$nulls":8},0]
[{"$nulls":8},0]
[{"$nulls":8},0]
[{"$nulls":8},0]
[{"$nulls":8},0]
[{"$nulls":8},0]
[{"$nulls":8},0]
[{"$nulls":8},0]
[{"$nulls":8},{"$f":"G206*H206","v":0}]
[{"$nulls":8},0]
[{"$nulls":8},0]
[{"$nulls":8},0]
[{"$nulls":8},0]
[{"$nulls":8},0]
[{"$nulls":8},0]
[{"$nulls":8},0]
[{"$nulls":8},0]
[{"$nulls":8},0]
[{"$nulls":8},0]
[{"$nulls":8},0]
[{"$nulls":8},0]
[{"$nulls":8},0]
[{"$nulls":8},0]
[{"$nulls":8},0]
[{"$nulls":8},0]
[{"$nulls":8},0]
[{"$nulls":8},0]
[{"$nulls":8},0]
[{"$nulls":8},0]
[{"$nulls":8},0]
[{"$nulls":8},0]
[{"$nulls":8},0]
[{"$nulls":8},0]
[{"$nulls":8},0]
[{"$nulls":8},0]
[{"$nulls":8},0]
[{"$nulls":8},0]
[{"$nulls":8},0]
[{"$nulls":8},0]
[{"$nulls":8},0]
[{"$nulls":8},0]
[{"$nulls":8},0]
[{"$nulls":8},0]
[{"$nulls":8},0]
[{"$nulls":8},0]
[{"$nulls":8},0]
[{"$nulls":8},0]
[{"$nulls":8},0]
[{"$nulls":8},0]
[{"$nulls":8},0]
[{"$nulls":8},0]
[{"$nulls":8},0]
[{"$nulls":8},0]
[{"$nulls":8},0]
[{"$nulls":8},0]
[{"$nulls":8},0]
[{"$nulls":8},0]
[{"$nulls":8},0]
[{"$nulls":8},0]
[{"$nulls":8},0]
[{"$nulls":8},0]
[{"$nulls":8},0]
[{"$nulls":8},0]
[{"$nulls":8},0]
[{"$nulls":8},0]
[{"$nulls":8},0]
[{"$nulls":8},0]
[{"$nulls":8},0]
[{"$nulls":8},0]
[{"$nulls":8},0]
[{"$nulls":8},0]
[{"$nulls":8},0]
[{"$nulls":8},{"$f":"G270*H270","v":0}]
[{"$nulls":8},0]
[{"$nulls":8},0]
[{"$nulls":8},0]
[{"$nulls":8},0]
[{"$nulls":8},0]
[{"$nulls":8},0]
[{"$nulls":8},0]
[{"$nulls":8},0]
[{"$nulls":8},0]
[{"$nulls":8},0]
[{"$nulls":8},0]
[{"$nulls":8},0]
[{"$nulls":8},0]
[{"$nulls":8},0]
[{"$nulls":8},0]
[{"$nulls":8},0]
[{"$nulls":8},0]
[{"$nulls":8},0]
[{"$nulls":8},0]
[{"$nulls":8},0]
[{"$nulls":8},0]
[{"$nulls":8},0]
[{"$nulls":8},0]
[{"$nulls":8},0]
[{"$nulls":8},0]
[{"$nulls":8},0]
[{"$nulls":8},0]
[{"$nulls":8},0]
[{"$nulls":8},0]
[{"$nulls":8},0]
[{"$nulls":8},0]
[{"$nulls":8},0]
[{"$nulls":8},0]
[{"$nulls":8},0]
[{"$nulls":8},0]
[{"$nulls":8},0]
[{"$nulls":8},0]
[{"$nulls":8},0]
[{"$nulls":8},0]
[{"$nulls":8},0]
[{"$nulls":8},0]
[{"$nulls":8},0]
[{"$nulls":8},0]
[{"$nulls":8},0]
[{"$nulls":8},0]
[{"$nulls":8},0]
[{"$nulls":8},0]
[{"$nulls":8},0]
[{"$nulls":8},0]
[{"$nulls":8},0]
[{"$nulls":8},0]
[{"$nulls":8},0]
[{"$nulls":8},0]
[{"$nulls":8},0]
[{"$nulls":8},0]
[{"$nulls":8},0]
[{"$nulls":8},0]
[{"$nulls":8},0]
[{"$nulls":8},0]
[{"$nulls":8},0]
[{"$nulls":8},0]
[{"$nulls":8},0]
[{"$nulls":8},0]
[{"$nulls":8},{"$f":"G334*H334","v":0}]
[{"$nulls":8},0]
[{"$nulls":8},0]
[{"$nulls":8},0]
[{"$nulls":8},0]
[{"$nulls":8},0]
[{"$nulls":8},0]
[{"$nulls":8},0]
[{"$nulls":8},0]
[{"$nulls":8},0]
[{"$nulls":8},0]
[{"$nulls":8},0]
[{"$nulls":8},0]
[{"$nulls":8},0]
[{"$nulls":8},0]
[{"$nulls":8},0]
[{"$nulls":8},0]
[{"$nulls":8},0]
[{"$nulls":8},0]
[{"$nulls":8},0]
[{"$nulls":8},0]
[{"$nulls":8},0]
[{"$nulls":8},0]
[{"$nulls":8},0]
[{"$nulls":8},0]
[{"$nulls":8},0]
[{"$nulls":8},0]
[{"$nulls":8},0]
[{"$nulls":8},0]
[{"$nulls":8},0]
[{"$nulls":8},0]
[{"$nulls":8},0]
[{"$nulls":8},0]
[{"$nulls":8},0]
[{"$nulls":8},0]
[{"$nulls":8},0]
[{"$nulls":8},0]
[{"$nulls":8},0]
[{"$nulls":8},0]
[{"$nulls":8},0]
[{"$nulls":8},0]
[{"$nulls":8},0]
[{"$nulls":8},0]
[{"$nulls":8},0]
[{"$nulls":8},0]
[{"$nulls":8},0]
[{"$nulls":8},0]
[{"$nulls":8},0]
[{"$nulls":8},0]
[{"$nulls":8},0]
[{"$nulls":8},0]
[{"$nulls":8},0]
[{"$nulls":8},0]
[{"$nulls":8},0]
[{"$nulls":8},0]
[{"$nulls":8},0]
[{"$nulls":8},0]
[{"$nulls":8},0]
[{"$nulls":8},0]
[{"$nulls":8},0]
[{"$nulls":8},0]
[{"$nulls":8},0]
[{"$nulls":8},0]
[{"$nulls":8},0]
[{"$nulls":8},{"$f":"G398*H398","v":0}]
[{"$nulls":8},0]
[{"$nulls":8},0]
[{"$nulls":8},0]
[{"$nulls":8},0]
[{"$nulls":8},0]
[{"$nulls":8},0]
[{"$nulls":8},0]
[{"$nulls":8},0]
[{"$nulls":8},0]
[{"$nulls":8},0]
[{"$nulls":8},0]
[{"$nulls":8},0]
[{"$nulls":8},0]
[{"$nulls":8},0]
[{"$nulls":8},0]
[{"$nulls":8},0]
[{"$nulls":8},0]
[{"$nulls":8},0]
[{"$nulls":8},0]
[{"$nulls":8},0]
[{"$nulls":8},0]
[{"$nulls":8},0]
[{"$nulls":8},0]
[{"$nulls":8},0]
[{"$nulls":8},0]
[{"$nulls":8},0]
[{"$nulls":8},0]
[{"$nulls":8},0]
[{"$nulls":8},0]
[{"$nulls":8},0]
[{"$nulls":8},0]
[{"$nulls":8},0]
[{"$nulls":8},0]
[{"$nulls":8},0]
[{"$nulls":8},0]
[{"$nulls":8},0]
[{"$nulls":8},0]
[{"$nulls":8},0]
[{"$nulls":8},0]
[{"$nulls":8},0]
[{"$nulls":8},0]
[{"$nulls":8},0]
[{"$nulls":8},0]
[{"$nulls":8},0]
[{"$nulls":8},0]
[{"$nulls":8},0]
[{"$nulls":8},0]
[{"$nulls":8},0]
[{"$nulls":8},0]
[{"$nulls":8},0]
[{"$nulls":8},0]
[{"$nulls":8},0]
[{"$nulls":8},0]
[{"$nulls":8},0]
[{"$nulls":8},0]
[{"$nulls":8},0]
[{"$nulls":8},0]
[{"$nulls":8},0]
[{"$nulls":8},0]
[{"$nulls":8},0]
[{"$nulls":8},0]
[{"$nulls":8},0]
[{"$nulls":8},0]
[{"$nulls":8},{"$f":"G462*H462","v":0}]
[{"$nulls":8},0]
[{"$nulls":8},0]
[{"$nulls":8},0]
[{"$nulls":8},0]
[{"$nulls":8},0]
[{"$nulls":8},0]
[{"$nulls":8},0]
[{"$nulls":8},0]
[{"$nulls":8},0]
[{"$nulls":8},0]
[{"$nulls":8},0]
[{"$nulls":8},0]
[{"$nulls":8},0]
[{"$nulls":8},0]
[{"$nulls":8},0]
[{"$nulls":8},0]
[{"$nulls":8},0]
[{"$nulls":8},0]
[{"$nulls":8},0]
[{"$nulls":8},0]
[{"$nulls":8},0]
[{"$nulls":8},0]
[{"$nulls":8},0]
[{"$nulls":8},0]
[{"$nulls":8},0]
[{"$nulls":8},0]
[{"$nulls":8},0]
[{"$nulls":8},0]
[{"$nulls":8},0]
[{"$nulls":8},0]
[{"$nulls":8},0]
[{"$nulls":8},0]
[{"$nulls":8},0]
[{"$nulls":8},0]
[{"$nulls":8},0]
[{"$nulls":8},0]
[{"$nulls":8},0]
[{"$nulls":8},0]
[{"$nulls":8},0]
[{"$nulls":8},0]
[{"$nulls":8},0]
[{"$nulls":8},0]
[{"$nulls":8},0]
[{"$nulls":8},0]
[{"$nulls":8},0]
[{"$nulls":8},0]
[{"$nulls":8},0]
[{"$nulls":8},0]
[{"$nulls":8},0]
[{"$nulls":8},0]
[{"$nulls":8},0]
[{"$nulls":8},0]
[{"$nulls":8},0]
[{"$nulls":8},0]
[{"$nulls":8},0]
[{"$nulls":8},0]
[{"$nulls":8},0]
[{"$nulls":8},0]
[{"$nulls":8},0]
[{"$nulls":8},0]
[{"$nulls":8},0]
[{"$nulls":8},0]
[{"$nulls":8},0]
[{"$nulls":8},{"$f":"G526*H526","v":0}]
[{"$nulls":8},0]
[{"$nulls":8},0]
[{"$nulls":8},0]
[{"$nulls":8},0]
[{"$nulls":8},0]
[{"$nulls":8},0]
[{"$nulls":8},0]
[{"$nulls":8},0]
[{"$nulls":8},0]
[{"$nulls":8},0]
[{"$nulls":8},0]
[{"$nulls":8},0]
[{"$nulls":8},0]
[{"$nulls":8},0]
[{"$nulls":8},0]
[{"$nulls":8},0]
[{"$nulls":8},0]
[{"$nulls":8},0]
[{"$nulls":8},0]
[{"$nulls":8},0]
[{"$nulls":8},0]
[{"$nulls":8},0]
[{"$nulls":8},0]
[{"$nulls":8},0]
[{"$nulls":8},0]
[{"$nulls":8},0]
[{"$nulls":8},0]
[{"$nulls":8},0]
[{"$nulls":8},0]
[{"$nulls":8},0]
[{"$nulls":8},0]
[{"$nulls":8},0]
[{"$nulls":8},0]
[{"$nulls":8},0]
[{"$nulls":8},0]
[{"$nulls":8},0]
[{"$nulls":8},0]
[{"$nulls":8},0]
[{"$nulls":8},0]
[{"$nulls":8},0]
[{"$nulls":8},0]
[{"$nulls":8},0]
[{"$nulls":8},0]
[{"$nulls":8},0]
[{"$nulls":8},0]
[{"$nulls":8},0]
[{"$nulls":8},0]
[{"$nulls":8},0]
[{"$nulls":8},0]
[{"$nulls":8},0]
[{"$nulls":8},0]
[{"$nulls":8},0]
[{"$nulls":8},0]
[{"$nulls":8},0]
[{"$nulls":8},0]
[{"$nulls":8},0]
[{"$nulls":8},0]
[{"$nulls":8},0]
[{"$nulls":8},0]
[{"$nulls":8},0]
[{"$nulls":8},0]
[{"$nulls":8},0]
[{"$nulls":8},0]
[{"$nulls":8},{"$f":"G590*H590","v":0}]
[{"$nulls":8},0]
[{"$nulls":8},0]
[{"$nulls":8},0]
[{"$nulls":8},0]
[{"$nulls":8},0]
[{"$nulls":8},0]
[{"$nulls":8},0]
[{"$nulls":8},0]
[{"$nulls":8},0]
[{"$nulls":8},0]
[{"$nulls":8},0]
[{"$nulls":8},0]
[{"$nulls":8},0]
[{"$nulls":8},0]
[{"$nulls":8},0]
[{"$nulls":8},0]
[{"$nulls":8},0]
[{"$nulls":8},0]
[{"$nulls":8},0]
[{"$nulls":8},0]
[{"$nulls":8},0]
[{"$nulls":8},0]
[{"$nulls":8},0]
[{"$nulls":8},0]
[{"$nulls":8},0]
[{"$nulls":8},0]
[{"$nulls":8},0]
[{"$nulls":8},0]
[{"$nulls":8},0]
[{"$nulls":8},0]
[{"$nulls":8},0]
[{"$nulls":8},0]
[{"$nulls":8},0]
[{"$nulls":8},0]
[{"$nulls":8},0]
[{"$nulls":8},0]
[{"$nulls":8},0]
[{"$nulls":8},0]
[{"$nulls":8},0]
[{"$nulls":8},0]
[{"$nulls":8},0]
[{"$nulls":8},0]
[{"$nulls":8},0]
[{"$nulls":8},0]
[{"$nulls":8},0]
[{"$nulls":8},0]
[{"$nulls":8},0]
[{"$nulls":8},0]
[{"$nulls":8},0]
[{"$nulls":8},0]
[{"$nulls":8},0]
[{"$nulls":8},0]
[{"$nulls":8},0]
[{"$nulls":8},0]
[{"$nulls":8},0]
[{"$nulls":8},0]
[{"$nulls":8},0]
[{"$nulls":8},0]
[{"$nulls":8},0]
[{"$nulls":8},0]
[{"$nulls":8},0]
[{"$nulls":8},0]
[{"$nulls":8},0]
[{"$nulls":8},{"$f":"G654*H654","v":0}]
[{"$nulls":8},0]
[{"$nulls":8},0]
[{"$nulls":8},0]
[{"$nulls":8},0]
[{"$nulls":8},0]
[{"$nulls":8},0]
[{"$nulls":8},0]
[{"$nulls":8},0]
[{"$nulls":8},0]
[{"$nulls":8},0]
[{"$nulls":8},0]
[{"$nulls":8},0]
[{"$nulls":8},0]
[{"$nulls":8},0]
[{"$nulls":8},0]
[{"$nulls":8},0]
[{"$nulls":8},0]
[{"$nulls":8},0]
[{"$nulls":8},0]
[{"$nulls":8},0]
[{"$nulls":8},0]
[{"$nulls":8},0]
[{"$nulls":8},0]
[{"$nulls":8},0]
[{"$nulls":8},0]
[{"$nulls":8},0]
[{"$nulls":8},0]
[{"$nulls":8},0]
[{"$nulls":8},0]
[{"$nulls":8},0]
[{"$nulls":8},0]
[{"$nulls":8},0]
[{"$nulls":8},0]
[{"$nulls":8},0]
[{"$nulls":8},0]
[{"$nulls":8},0]
[{"$nulls":8},0]
[{"$nulls":8},0]
[{"$nulls":8},0]
[{"$nulls":8},0]
[{"$nulls":8},0]
[{"$nulls":8},0]
[{"$nulls":8},0]
[{"$nulls":8},0]
[{"$nulls":8},0]
[{"$nulls":8},0]
[{"$nulls":8},0]
[{"$nulls":8},0]
[{"$nulls":8},0]
[{"$nulls":8},0]
[{"$nulls":8},0]
[{"$nulls":8},0]
[{"$nulls":8},0]
[{"$nulls":8},0]
[{"$nulls":8},0]
[{"$nulls":8},0]
[{"$nulls":8},0]
[{"$nulls":8},0]
[{"$nulls":8},0]
[{"$nulls":8},0]
[{"$nulls":8},0]
[{"$nulls":8},0]
[{"$nulls":8},0]
[{"$nulls":8},{"$f":"G718*H718","v":0}]
[{"$nulls":8},0]
[{"$nulls":8},0]
[{"$nulls":8},0]
[{"$nulls":8},0]
[{"$nulls":8},0]
[{"$nulls":8},0]
[{"$nulls":8},0]
[{"$nulls":8},0]
[{"$nulls":8},0]
[{"$nulls":8},0]
[{"$nulls":8},0]
[{"$nulls":8},0]
[{"$nulls":8},0]
[{"$nulls":8},0]
[{"$nulls":8},0]
[{"$nulls":8},0]
[{"$nulls":8},0]
[{"$nulls":8},0]
[{"$nulls":8},0]
[{"$nulls":8},0]
[{"$nulls":8},0]
[{"$nulls":8},0]
[{"$nulls":8},0]
[{"$nulls":8},0]
[{"$nulls":8},0]
[{"$nulls":8},0]
[{"$nulls":8},0]
[{"$nulls":8},0]
[{"$nulls":8},0]
[{"$nulls":8},0]
[{"$nulls":8},0]
[{"$nulls":8},0]
[{"$nulls":8},0]
[{"$nulls":8},0]
[{"$nulls":8},0]
[{"$nulls":8},0]
[{"$nulls":8},0]
[{"$nulls":8},0]
[{"$nulls":8},0]
[{"$nulls":8},0]
[{"$nulls":8},0]
[{"$nulls":8},0]
[{"$nulls":8},0]

{"sheet":"Janáky","index":4,"n_rows":782,"n_cols":10,"rows_kept":782,"cut":false,"hidden":true,"merged":[]}
["Megnevezés (munkafüzet 2)","CPV megnevezés","CPV kód","Termék megnevezése","Szállítók (3 db)","Kiszerelés","Becsült egységár (Ft)","Darabszám","Becsült ár (Ft)"]
[]
["Oldószerek kromatográfiához"]
["Oldószerek kromatográfiához","Szerves alapvegyületek","24320000-3","Acetonitril LC/MS minőség","VWR, Merck, Sigma-Aldrich","2,5 L",16920,20,{"$f":"G4*H4","v":338400}]
["Oldószerek kromatográfiához","Desztillált víz","24316000-2","Water LC/MS minőség","VWR, Merck, Sigma-Aldrich","2,5 L",6600,20,132000]
["Oldószerek kromatográfiához","Metanol","24322210-2","Metanol LC/MS minőség","VWR, Merck, Sigma-Aldrich","2,5 L",6400,4,25600]
["Oldószerek kromatográfiához","Etil-alkohol","24322510-5","Ethanol HPLC minőség","VWR, Merck, Sigma-Aldrich","2,5 L",22000,4,88000]
["Oldószerek kromatográfiához","Alkohol","24322500-2","Propan-2-ol HPLC minőség","VWR, Merck, Sigma-Aldrich","2,5 L",18700,4,74800]
["Oldószerek kromatográfiához","Metanol","24322210-2","Methanol HPLC/UPLC super grádiens minőség","VWR, Merck, Sigma-Aldrich","2,5 L",9200,4,36800]
["Oldószerek kromatográfiához","Szerves alapvegyületek","24320000-3","Acetonitril HPLC/UPLC super grádiens minőség","VWR, Merck, Sigma-Aldrich","2,5 L",12000,4,48000]
["Oldószerek kromatográfiához","Telített szénhidrogének","24321100-1","Hexán  > 97% HPLC minőség","VWR, Merck, Sigma-Aldrich","2,5 l",20000,2,40000]
["Oldószerek kromatográfiához","Ketonok és kinonok oxigénfunkciós csoporttal","24326200-7","Aceton GC/MS minőség","Merck Kft.","2,5 L",15000,4,60000]
[{"$nulls":9},{"$f":"SUM(I4:I12)","v":843600}]
[]
[]
["Analitikai célú vegyszerek, standardok"]
["Analitikai célú vegyszerek, standardok","Alkoholok, fenolok, fenol-alkoholok és ezek halogén-, szulfo-, nitro- vagy nitrozoszármazékai, ipari zsíralkoholok.","24322000-7","Trifluor etanol BioUltra 99%",null,null,40000,1,{"$f":"G17*H17","v":40000}]
["Analitikai célú vegyszerek, standardok","Karbonsavak","24323200-6","Trifluorecetsav HPLC minőség","VWR, Merck, Sigma-Aldrich",null,44500,1,44500]
["Analitikai célú vegyszerek, standardok","Ecetsav","24323210-9","Ecetsav 99% LC/MS minőség","VWR, Merck, Sigma-Aldrich","100 mL",13160,2,26320]
["Analitikai célú vegyszerek, standardok","Karbonsavak","24323200-6","Hangyasav LC/MS minőség","VWR, Merck, Sigma-Aldrich","50 mL",10000,3,30000]
["Analitikai célú vegyszerek, standardok","Szervetlen és szerves alapvegyületek","24300000-7","Ammónia oldat LC/MS minőség","VWR, Merck, Sigma-Aldrich","100 mL",10000,2,20000]
["Analitikai célú vegyszerek, standardok",null,"24300000-7","Ammónium acetát > 99% LC/MS minőség","VWR, Merck, Sigma-Aldrich","100 g",15500,1,15500]
["Analitikai célú vegyszerek, standardok","Szervetlen és szerves alapvegyületek","24300000-7","Ammónium formiát > 99% LC/MS minőség","VWR, Merck, Sigma-Aldrich","100 g",15500,1,15500]
["Analitikai célú vegyszerek, standardok","Enzimek","24965000-6","Trypsin Gold MS minőség","BioScience Kft.","100 ug",50000,2,100000]
["Analitikai célú vegyszerek, standardok","Nehézvíz, egyéb izotópok és vegyületeik.","24315100-6","Deuterált peptid standardok","JPT Peptide Technologies (DE)","30 nmol",60000,4,240000]
[{"$nulls":9},{"$f":"SUM(I17:I25)","v":531820}]
[]
["analitikumok, detektáló műszerek, automaták vegyszerkészletei"]
["analitikumok, detektáló műszerek, automaták vegyszerkészletei","Szervetlen és szerves alapvegyületek","24300000-7","Buffer solution pH 4","VWR, Merck, Sigma-Aldrich","500 ml",2500,1,{"$f":"G29*H29","v":2500}]
["analitikumok, detektáló műszerek, automaták vegyszerkészletei","Szervetlen és szerves alapvegyületek","24300000-7","Buffer solution pH 7","VWR, Merck, Sigma-Aldrich","501 ml",2500,1,{"$f":"G30*H30","v":2500}]
["analitikumok, detektáló műszerek, automaták vegyszerkészletei","Szervetlen és szerves alapvegyületek","24300000-7","Buffer solution pH 10","VWR, Merck, Sigma-Aldrich","502 ml",2500,1,{"$f":"G30*H29","v":2500}]
["analitikumok, detektáló műszerek, automaták vegyszerkészletei","Laboratóriumi reagensek.","33696500-0 ","BCA Protein Assay Kit","Thermo Fisher,  Sigma Aldrich, Merck","500 ml",39750,1,39750]
[]
["Kromatográfiás oszlopok, töltetek"]
["Kromatográfiás oszlopok, töltetek","Laboratóriumi, optikai és precíziós felszerelések","38000000-5","Luna Omega Polar 50x2,1mm ( 1,6um)","Gen-lab Kft.","db",200000,1,{"$f":"G35*H35","v":200000}]
[null,"Laboratóriumi, optikai és precíziós felszerelések","38000000-5","Luna Omega PS 50x2,1mm (1,6um)","Gen-lab Kft.","db",200000,1,{"$f":"G36*H36","v":200000}]
[]
[]
[]
[]
[]
[]
["Analitikai célú fogyóanyagok, eszközök",{"$nulls":7},{"$f":"G43*H43","v":0}]
["Analitikai célú fogyóanyagok, eszközök","Detergensek","39831200-8","PAPIGEST SF surfactant","Waters Kft.","1 mg",30000,6,180000]
["Analitikai célú fogyóanyagok, eszközök","Laboratóriumi, optikai és precíziós felszerelések","38000000-5","OASIS Prime HLB cartridge 1cc","Waters Kft.","100 db/csomag",53000,1,53000]
["Analitikai célú fogyóanyagok, eszközök","Laboratóriumi, optikai és precíziós felszerelések","38000000-5","OASIS Prime HLB cartridge 3cc","Waters Kft.","100 db /csomag",62000,1,62000]
["Analitikai célú fogyóanyagok, eszközök","Laboratóriumi, optikai és precíziós felszerelések","38000000-5","Detergent removal spin column (ThermoFisher)","Kvalitex",24,57000,2,114000]
["Analitikai célú fogyóanyagok, eszközök","Laboratóriumi, optikai és precíziós felszerelések","38000000-5","centrifugális mikrofilter 10kDa memránnal","Merck Kft.","100 db/csomag",150000,1,150000]
["Analitikai célú fogyóanyagok, eszközök","Laboratóriumi, optikai és precíziós felszerelések","38000000-5","centrifugális mikrofilter 30kDa memránnal","Merck Kft.","100 db/csomag",150000,2,300000]
["Analitikai célú fogyóanyagok, eszközök","Laboratóriumi, optikai és precíziós felszerelések","38000000-5","Mikrofecskendő \"gastight\" fix tű, #3 tű, 25 ul","CP Analitika, AA Labor, VWR","db",15000,6,90000]
["Analitikai célú fogyóanyagok, eszközök","Laboratóriumi, optikai és precíziós felszerelések","38000000-5","Mikrofecskendő \"gastight\" fix tű, #3 tű, 100 ul","CP Analitika, AA Labor, VWR","db",18000,2,36000]
["Analitikai célú fogyóanyagok, eszközök","Laboratóriumi, optikai és precíziós felszerelések","38000000-5","Mikrofecskendő \"gastight\" fix tű, #3 tű, 250 ul","CP Analitika, AA Labor, VWR","db",25000,2,50000]
["Analitikai célú fogyóanyagok, eszközök","Laboratóriumi, optikai és precíziós felszerelések","38000000-5","Mikrofecskendő \"gastight\" fix tű, #3 tű, 500 ul","CP Analitika, AA Labor, VWR","db",30000,2,60000]
["Analitikai célú fogyóanyagok, eszközök","Laboratóriumi, optikai és precíziós felszerelések","38000000-5","Üvegfecskendő 10 ml, Luer-Lockcsatlakozóval","CP Analitika, AA Labor, VWR","db",30000,3,90000]
["Analitikai célú fogyóanyagok, eszközök","Laboratóriumi, optikai és precíziós felszerelések","38000000-5","ZipTip C18 pipetta hegy (0,6ul)","Merck Kft.","96 db/ doboz",100000,6,600000]
[]
[null,null,null,"Kromatográfiás fogyóanyagok",{"$nulls":4},{"$f":"G57*H57","v":0}]
["Analitikai célú fogyóanyagok, eszközök","Laboratóriumi, optikai és precíziós felszerelések","38000000-5","F-130X - One-Piece Fingertight Long, PEEK, 10-32 Coned, for 1/16\" OD","Bioszeparáció Kft., VWR","10 db/csomag",43980,2,87960]
["Analitikai célú fogyóanyagok, eszközök","Laboratóriumi, optikai és precíziós felszerelések","38000000-5","F-120X - One-Piece Fingertight 10-32 Coned, for 1/16\" OD","Bioszeparáció Kft., VWR","10 db/csomag",47380,2,94760]
["Analitikai célú fogyóanyagok, eszközök","Laboratóriumi, optikai és precíziós felszerelések","38000000-5","PK-120BLKX - VHP One-Piece Fitting PK 1/16","Bioszeparáció Kft., VWR","10 db/csomag",49320,2,98640]
["Analitikai célú fogyóanyagok, eszközök",null,"38000000-5","RHEO-6000-360 Rheodyne  Rheflex\u0099 Fitting, for 1/32\" OD Tubing, M4 Coned, PEEK\u0099, Natural","Bioszeparáció Kft., VWR","10 db/csomag",29169,1,29169]
["Analitikai célú fogyóanyagok, eszközök","Laboratóriumi, optikai és precíziós felszerelések","38000000-5","F-330X - Two-Piece Fingertight PEEK, Long 10-32 Coned, for 1/16\" OD","Bioszeparáció Kft., VWR","10 db/csomag",23975,1,23975]
["Analitikai célú fogyóanyagok, eszközök","Laboratóriumi, optikai és precíziós felszerelések","38000000-5","LT-132 - LiteTouch® Micro Ferrule 10-32 Coned, for 1/32\" OD","Bioszeparáció Kft., VWR","10 db/csomag",36000,1,36000]
["Analitikai célú fogyóanyagok, eszközök","Laboratóriumi, optikai és precíziós felszerelések","38000000-5","PK-110X - VHP LiteTouch® Nut PK 1/16\"","Bioszeparáció Kft., VWR","10 db/csomag",14870,1,14870]
["Analitikai célú fogyóanyagok, eszközök","Laboratóriumi, optikai és precíziós felszerelések","38000000-5","PK-100X - VHP LiteTouch® Ferrule Assembly PK 1/16\"","Bioszeparáció Kft., VWR","10 db/csomag",28089,1,28089]
["Analitikai célú fogyóanyagok, eszközök","Laboratóriumi, optikai és precíziós felszerelések","38000000-5","PK-132x Ferrule for 1/32” OD Tubing","Bioszeparáció Kft., VWR","10 db/csomag",41050,1,41050]
["Analitikai célú fogyóanyagok, eszközök","Laboratóriumi, optikai és precíziós felszerelések","38000000-5","310010 - PEEKsil™ Tubing 1/32\" OD x 100µm ID, 10 cm","Bioszeparáció Kft., VWR","2 db/csomag",15450,1,15450]
["Analitikai célú fogyóanyagok, eszközök","Laboratóriumi, optikai és precíziós felszerelések","38000000-5","310015 - PEEKsil™ Tubing 1/32\" OD x 100µm ID, 15 cm","Bioszeparáció Kft., VWR","2 db/csomag",23000,4,92000]
["Analitikai célú fogyóanyagok, eszközök","Laboratóriumi, optikai és precíziós felszerelések","38000000-5","310010 - PEEKsil™ Tubing 1/32\" OD x 100µm ID, 20 cm","Bioszeparáció Kft., VWR","2 db/csomag",21000,2,42000]
["Analitikai célú fogyóanyagok, eszközök","Laboratóriumi, optikai és precíziós felszerelések","38000000-5","310050 - PEEKsil™ Tubing 1/32\" OD x 100µm ID, 50 cm","Bioszeparáció Kft., VWR","2 db/csomag",32500,4,130000]
["Analitikai célú fogyóanyagok, eszközök","Laboratóriumi, optikai és precíziós felszerelések","38000000-5","1535 - PEEK Tubing Red 1/16\" OD x .005\" ID x 50ft","Bioszeparáció Kft., VWR","1 db/csomag",98455,1,98455]
["Analitikai célú fogyóanyagok, eszközök","Laboratóriumi, optikai és precíziós felszerelések","38000000-5","1531 - PEEK Tubing Natural 1/16\" OD x .010\" ID x 5ft","Bioszeparáció Kft., VWR","1 db/csomag",10000,5,50000]
["Analitikai célú fogyóanyagok, eszközök","Laboratóriumi, optikai és precíziós felszerelések","38000000-5","1576 - PEEK Tubing Red 1/32\" OD x .005\" \" ID x 5ft","Bioszeparáció Kft., VWR","1 db/csomag",20000,3,60000]
["Analitikai célú fogyóanyagok, eszközök","Laboratóriumi, optikai és precíziós felszerelések","38000000-5","1561 - PEEK Tubing Black 1/16\" OD x .004\" ID x 5ft","Bioszeparáció Kft., VWR","1 db/csomag",14000,3,42000]
[{"$nulls":9},{"$f":"SUM(I44:I74)","v":2769418}]
[]
[]
["Műszeralkatrészek"]
["Műszeralkatrészek","Egyéb gépek alkatrészei.","42950000-0","Acquity UPLC pumpa 3VCCPU AHTC vezérlő kártya (700005763)","Waters Kft.","1 db",90000,1,{"$f":"G79*H79","v":90000}]
["Műszeralkatrészek","Egyéb gépek alkatrészei.","42950000-0","Acquity UPLC SM  I-Class PEEK Needle kit, 10uL (700005923)","Waters Kft.","1 db/csomag",57000,2,114000]
["Műszeralkatrészek","Egyéb gépek alkatrészei.","42950000-0","Acquity UPLC SM  I-Class ASSY, SAMPLE LOOP, 20 ul (430001320)","Waters Kft.","1 db/csomag",26000,1,26000]
["Műszeralkatrészek","Egyéb gépek alkatrészei.","42950000-0","Ferrule Set, 1/16 ID, Two-piece, (700002635)","Waters Kft.","10 db/csomag",46000,1,46000]
["Műszeralkatrészek","Egyéb gépek alkatrészei.","42950000-0","Screw, Comp.,10-32, 304SS,GOLD (70000264)","Waters Kft.","10 db/csomag",62000,1,62000]
["Műszeralkatrészek","Egyéb gépek alkatrészei.","42950000-0","1/4in. Short Comp. Screw (Gold-plated) (700002634)","Waters Kft.","10 db/csomag",46000,1,46000]
["Műszeralkatrészek","Egyéb gépek alkatrészei.","42950000-0","ASAP Probe Glass Capillary 1.9 x 100mm [700005025","Waters Kft.","100 db/csomag)",23000,1,23000]
["Műszeralkatrészek","Egyéb gépek alkatrészei.","42950000-0","Capillary Tube (M956358AD1)","Waters Kft.","1 db/csomag",34000,1,34000]
["Műszeralkatrészek","Egyéb gépek alkatrészei.","42950000-0","O RING SIZE 540 VITON 85712039-S)","Waters Kft.","1 db/csomag",7000,1,7000]
[{"$nulls":8},0]
[]
["Laboratóriumi üvegáru"]
["Laboratóriumi üvegáru","Laboratóriumi üvegáru","33793000-5","1,5 mL Menetes (9mm) mintatartó üveg (11,6x32 mm) széles szájjal","LAB-EX Kft., ViaLab Kft., VWR","100 db/csomag",1500,30,{"$f":"G91*H91","v":45000}]
["Laboratóriumi üvegáru","Laboratóriumi üvegáru","33793000-5","9 mm Kupak PTFE/fehér szilikon szeptummal","LAB-EX Kft., ViaLab Kft., VWR","100 db/csomag",2300,50,115000]
["Laboratóriumi üvegáru","Laboratóriumi üvegáru","33793000-5","Mikrobetét széles szájú mintatartóhoz 300 ul, 31x6mm, lapos aljú","LAB-EX Kft., ViaLab Kft., VWR","100 db/csomag",2000,30,60000]
["Laboratóriumi üvegáru","Laboratóriumi üvegáru","33793000-5","Mikrobetét széles szájú mintatartóhoz 31,5x5.8mm, kúpos aljú","LAB-EX Kft., ViaLab Kft., VWR","100 db/csomag",3300,50,165000]
["Laboratóriumi üvegáru","Laboratóriumi üvegáru","33793000-5","Mikrobetét széles szájú mintatartóhoz, 29x5,7 mm átlátszó, polimer lábbal","LAB-EX Kft., ViaLab Kft., VWR","100 db/csomag",4000,10,40000]
["Laboratóriumi üvegáru","Laboratóriumi üvegáru","33793000-5","4 mL Menetes (13mm) mintatartó üveg (14,7x 45mm)","LAB-EX Kft., ViaLab Kft., VWR","100 db/csomag",2200,10,22000]
["Laboratóriumi üvegáru","Laboratóriumi üvegáru","33793000-5","13 mm Kupak (zárt) natúr PTFE/natúr szilikon szeptummal","LAB-EX Kft., ViaLab Kft., VWR","100 db/csomag",2700,10,27000]
["Laboratóriumi üvegáru","Laboratóriumi üvegáru","33793000-5","8 mL menetes (15mm) szintelen mintatartó üveg (61x16,6 mm)","LAB-EX Kft., ViaLab Kft., VWR","100 db/csomag",3000,3,9000]
["Laboratóriumi üvegáru","Laboratóriumi üvegáru","33793000-5","15 mm Kupak (zárt) fehér PTFE/piros szilikon szeptummal","LAB-EX Kft., ViaLab Kft., VWR","100 db/csomag",3200,3,9600]
["Laboratóriumi üvegáru","Laboratóriumi üvegáru","33793000-5","Főzőpohár 1000 ml alacsony","VWR, AA labor, LabSystem","10 db/csomag",13300,1,13300]
["Laboratóriumi üvegáru","Laboratóriumi üvegáru","33793000-5","Főzőpohár 600 ml magas","VWR, AA labor, LabSystem","10 db/csomag",8400,1,8400]
["Laboratóriumi üvegáru","Laboratóriumi üvegáru","33793000-5","Főzőpohár 250 ml magas","VWR, AA labor, LabSystem","10 db/csomag",5400,1,5400]
["Laboratóriumi üvegáru","Laboratóriumi üvegáru","33793000-5","Boroszilikát üveg, csavaros PP kupakkal 100 ml","VWR, AA labor, LabSystem","10 db/csomag",5800,1,5800]
["Laboratóriumi üvegáru","Laboratóriumi üvegáru","33793000-5","Boroszilikát üveg, csavaros PP kupakkal 250 ml","VWR, AA labor, LabSystem","10 db/csomag",6600,1,6600]
["Laboratóriumi üvegáru","Laboratóriumi üvegáru","33793000-5","Boroszilikát üveg, csavaros PP kupakkal 500 ml","VWR, AA labor, LabSystem","10 db/csomag",8200,1,8200]
[{"$nulls":9},{"$f":"SUM(I91:I105)","v":540300}]
[]
[]
["Laboratóriumi műanyagáru"]
["Laboratóriumi műanyagáru","Műanyag termékek","19520000-7","Mikrocentrifugacső 1,5 mL, szintelen, nem steril","Biocenter Kft., LabSystem Kft., AA Labor","1000db/csomag",4000,5,{"$f":"G110*H110","v":20000}]
["Laboratóriumi műanyagáru","Műanyag termékek","19520000-7","Mikrocentrifugacső 0,5 mL","Biocenter Kft., LabSystem Kft., AA Labor","1000db/csomag",3000,8,24000]
["Laboratóriumi műanyagáru","Műanyag termékek","19520000-7","PP Centrifugacső 15 ml, csavaros, kónikus, RNase, Dnase, pyrogen free","Biocenter Kft., LabSystem Kft., AA Labor","500 db/ csomag",6000,4,24000]
["Laboratóriumi műanyagáru","Műanyag termékek","19520000-7","PP Centrifugacső 50 ml, csavaros, kónikus, RNase, Dnase, pyrogen free","Biocenter Kft., LabSystem Kft., AA Labor","500 db/ csomag",7000,2,14000]
["Laboratóriumi műanyagáru","Pipetta hegy","38437110-1","Ultra-Low Retention pipetta hegy 0,1-10 ul","Biocenter Kft.","1000db/csomag",3200,5,16000]
["Laboratóriumi műanyagáru","Pipetta hegy","38437110-1","Ultra-Low Retention pipetta hegy 200 ul","Biocenter Kft.","1000db/csomag",2700,5,13500]
["Laboratóriumi műanyagáru","Pipetta hegy","38437110-1","Ultra-Low Retention pipetta hegy 1000 ul","Biocenter Kft.","1000db/csomag",3100,3,9300]
[{"$nulls":8},0,{"$f":"SUM(I110:I116)","v":120800}]
[{"$nulls":8},0]
["Laboratóriumi gumiáru és védőfelszerelések"]
["Laboratóriumi gumiáru és védőfelszerelések","Eldobható gumikesztűk","18424300-0","Púdermentes  gumikesztyű S méretű","USUS Kft., Roli-Dent Kft., Creativ Dental fogaszati kereskedés és szerviz","100 db/csomag",1200,5,{"$f":"G120*H120","v":6000}]
["Laboratóriumi gumiáru és védőfelszerelések","Eldobható gumikesztűk","18424300-0","Púdermentes  gumikesztyű M méretű","USUS Kft., Roli-Dent Kft., Creativ Dental fogaszati kereskedés és szerviz","100 db/csomag",1200,5,{"$f":"G121*H121","v":6000}]
["Laboratóriumi gumiáru és védőfelszerelések","Eldobható gumikesztűk","18424300-0","Púdermentes  gumikesztyű L méretű","USUS Kft., Roli-Dent Kft., Creativ Dental fogaszati kereskedés és szerviz","100 db/csomag",1200,5,{"$f":"G122*H122","v":6000}]
[{"$nulls":8},{"$f":"G123*H123","v":0},{"$f":"SUM(I120:I122)","v":18000}]
[{"$nulls":8},{"$f":"G124*H124","v":0}]
[{"$nulls":8},0]
[{"$nulls":8},0]
[{"$nulls":8},0]
[{"$nulls":8},0]
[{"$nulls":8},0]
[{"$nulls":8},0]
[{"$nulls":8},0]
[{"$nulls":8},0]
[{"$nulls":8},0]
[{"$nulls":8},0]
[{"$nulls":8},0]
[{"$nulls":8},0,{"$f":"SUM(J2:J135)","v":4823938}]
[{"$nulls":8},0]
[{"$nulls":8},0]
[{"$nulls":8},0]
[{"$nulls":8},0]
[{"$nulls":8},0]
[{"$nulls":8},0]
[{"$nulls":8},0]
[{"$nulls":8},0]
[{"$nulls":8},0]
[{"$nulls":8},0]
[{"$nulls":8},0]
[{"$nulls":8},0]
[{"$nulls":8},0]
[{"$nulls":8},0]
[{"$nulls":8},0]
[{"$nulls":8},0]
[{"$nulls":8},0]
[{"$nulls":8},0]
[{"$nulls":8},0]
[{"$nulls":8},0]
[{"$nulls":8},0]
[{"$nulls":8},0]
[{"$nulls":8},0]
[{"$nulls":8},0]
[{"$nulls":8},0]
[{"$nulls":8},0]
[{"$nulls":8},{"$f":"G163*H163","v":0}]
[{"$nulls":8},0]
[{"$nulls":8},0]
[{"$nulls":8},0]
[{"$nulls":8},0]
[{"$nulls":8},0]
[{"$nulls":8},0]
[{"$nulls":8},0]
[{"$nulls":8},0]
[{"$nulls":8},0]
[{"$nulls":8},0]
[{"$nulls":8},0]
[{"$nulls":8},0]
[{"$nulls":8},0]
[{"$nulls":8},0]
[{"$nulls":8},0]
[{"$nulls":8},0]
[{"$nulls":8},0]
[{"$nulls":8},0]
[{"$nulls":8},0]
[{"$nulls":8},0]
[{"$nulls":8},0]
[{"$nulls":8},0]
[{"$nulls":8},0]
[{"$nulls":8},0]
[{"$nulls":8},0]
[{"$nulls":8},0]
[{"$nulls":8},0]
[{"$nulls":8},0]
[{"$nulls":8},0]
[{"$nulls":8},0]
[{"$nulls":8},0]
[{"$nulls":8},0]
[{"$nulls":8},0]
[{"$nulls":8},0]
[{"$nulls":8},0]
[{"$nulls":8},0]
[{"$nulls":8},0]
[{"$nulls":8},0]
[{"$nulls":8},0]
[{"$nulls":8},0]
[{"$nulls":8},0]
[{"$nulls":8},0]
[{"$nulls":8},0]
[{"$nulls":8},0]
[{"$nulls":8},0]
[{"$nulls":8},0]
[{"$nulls":8},0]
[{"$nulls":8},0]
[{"$nulls":8},0]
[{"$nulls":8},0]
[{"$nulls":8},0]
[{"$nulls":8},0]
[{"$nulls":8},0]
[{"$nulls":8},0]
[{"$nulls":8},0]
[{"$nulls":8},0]
[{"$nulls":8},0]
[{"$nulls":8},0]
[{"$nulls":8},0]
[{"$nulls":8},0]
[{"$nulls":8},0]
[{"$nulls":8},0]
[{"$nulls":8},0]
[{"$nulls":8},{"$f":"G227*H227","v":0}]
[{"$nulls":8},0]
[{"$nulls":8},0]
[{"$nulls":8},0]
[{"$nulls":8},0]
[{"$nulls":8},0]
[{"$nulls":8},0]
[{"$nulls":8},0]
[{"$nulls":8},0]
[{"$nulls":8},0]
[{"$nulls":8},0]
[{"$nulls":8},0]
[{"$nulls":8},0]
[{"$nulls":8},0]
[{"$nulls":8},0]
[{"$nulls":8},0]
[{"$nulls":8},0]
[{"$nulls":8},0]
[{"$nulls":8},0]
[{"$nulls":8},0]
[{"$nulls":8},0]
[{"$nulls":8},0]
[{"$nulls":8},0]
[{"$nulls":8},0]
[{"$nulls":8},0]
[{"$nulls":8},0]
[{"$nulls":8},0]
[{"$nulls":8},0]
[{"$nulls":8},0]
[{"$nulls":8},0]
[{"$nulls":8},0]
[{"$nulls":8},0]
[{"$nulls":8},0]
[{"$nulls":8},0]
[{"$nulls":8},0]
[{"$nulls":8},0]
[{"$nulls":8},0]
[{"$nulls":8},0]
[{"$nulls":8},0]
[{"$nulls":8},0]
[{"$nulls":8},0]
[{"$nulls":8},0]
[{"$nulls":8},0]
[{"$nulls":8},0]
[{"$nulls":8},0]
[{"$nulls":8},0]
[{"$nulls":8},0]
[{"$nulls":8},0]
[{"$nulls":8},0]
[{"$nulls":8},0]
[{"$nulls":8},0]
[{"$nulls":8},0]
[{"$nulls":8},0]
[{"$nulls":8},0]
[{"$nulls":8},0]
[{"$nulls":8},0]
[{"$nulls":8},0]
[{"$nulls":8},0]
[{"$nulls":8},0]
[{"$nulls":8},0]
[{"$nulls":8},0]
[{"$nulls":8},0]
[{"$nulls":8},0]
[{"$nulls":8},0]
[{"$nulls":8},{"$f":"G291*H291","v":0}]
[{"$nulls":8},0]
[{"$nulls":8},0]
[{"$nulls":8},0]
[{"$nulls":8},0]
[{"$nulls":8},0]
[{"$nulls":8},0]
[{"$nulls":8},0]
[{"$nulls":8},0]
[{"$nulls":8},0]
[{"$nulls":8},0]
[{"$nulls":8},0]
[{"$nulls":8},0]
[{"$nulls":8},0]
[{"$nulls":8},0]
[{"$nulls":8},0]
[{"$nulls":8},0]
[{"$nulls":8},0]
[{"$nulls":8},0]
[{"$nulls":8},0]
[{"$nulls":8},0]
[{"$nulls":8},0]
[{"$nulls":8},0]
[{"$nulls":8},0]
[{"$nulls":8},0]
[{"$nulls":8},0]
[{"$nulls":8},0]
[{"$nulls":8},0]
[{"$nulls":8},0]
[{"$nulls":8},0]
[{"$nulls":8},0]
[{"$nulls":8},0]
[{"$nulls":8},0]
[{"$nulls":8},0]
[{"$nulls":8},0]
[{"$nulls":8},0]
[{"$nulls":8},0]
[{"$nulls":8},0]
[{"$nulls":8},0]
[{"$nulls":8},0]
[{"$nulls":8},0]
[{"$nulls":8},0]
[{"$nulls":8},0]
[{"$nulls":8},0]
[{"$nulls":8},0]
[{"$nulls":8},0]
[{"$nulls":8},0]
[{"$nulls":8},0]
[{"$nulls":8},0]
[{"$nulls":8},0]
[{"$nulls":8},0]
[{"$nulls":8},0]
[{"$nulls":8},0]
[{"$nulls":8},0]
[{"$nulls":8},0]
[{"$nulls":8},0]
[{"$nulls":8},0]
[{"$nulls":8},0]
[{"$nulls":8},0]
[{"$nulls":8},0]
[{"$nulls":8},0]
[{"$nulls":8},0]
[{"$nulls":8},0]
[{"$nulls":8},0]
[{"$nulls":8},{"$f":"G355*H355","v":0}]
[{"$nulls":8},0]
[{"$nulls":8},0]
[{"$nulls":8},0]
[{"$nulls":8},0]
[{"$nulls":8},0]
[{"$nulls":8},0]
[{"$nulls":8},0]
[{"$nulls":8},0]
[{"$nulls":8},0]
[{"$nulls":8},0]
[{"$nulls":8},0]
[{"$nulls":8},0]
[{"$nulls":8},0]
[{"$nulls":8},0]
[{"$nulls":8},0]
[{"$nulls":8},0]
[{"$nulls":8},0]
[{"$nulls":8},0]
[{"$nulls":8},0]
[{"$nulls":8},0]
[{"$nulls":8},0]
[{"$nulls":8},0]
[{"$nulls":8},0]
[{"$nulls":8},0]
[{"$nulls":8},0]
[{"$nulls":8},0]
[{"$nulls":8},0]
[{"$nulls":8},0]
[{"$nulls":8},0]
[{"$nulls":8},0]
[{"$nulls":8},0]
[{"$nulls":8},0]
[{"$nulls":8},0]
[{"$nulls":8},0]
[{"$nulls":8},0]
[{"$nulls":8},0]
[{"$nulls":8},0]
[{"$nulls":8},0]
[{"$nulls":8},0]
[{"$nulls":8},0]
[{"$nulls":8},0]
[{"$nulls":8},0]
[{"$nulls":8},0]
[{"$nulls":8},0]
[{"$nulls":8},0]
[{"$nulls":8},0]
[{"$nulls":8},0]
[{"$nulls":8},0]
[{"$nulls":8},0]
[{"$nulls":8},0]
[{"$nulls":8},0]
[{"$nulls":8},0]
[{"$nulls":8},0]
[{"$nulls":8},0]
[{"$nulls":8},0]
[{"$nulls":8},0]
[{"$nulls":8},0]
[{"$nulls":8},0]
[{"$nulls":8},0]
[{"$nulls":8},0]
[{"$nulls":8},0]
[{"$nulls":8},0]
[{"$nulls":8},0]
[{"$nulls":8},{"$f":"G419*H419","v":0}]
[{"$nulls":8},0]
[{"$nulls":8},0]
[{"$nulls":8},0]
[{"$nulls":8},0]
[{"$nulls":8},0]
[{"$nulls":8},0]
[{"$nulls":8},0]
[{"$nulls":8},0]
[{"$nulls":8},0]
[{"$nulls":8},0]
[{"$nulls":8},0]
[{"$nulls":8},0]
[{"$nulls":8},0]
[{"$nulls":8},0]
[{"$nulls":8},0]
[{"$nulls":8},0]
[{"$nulls":8},0]
[{"$nulls":8},0]
[{"$nulls":8},0]
[{"$nulls":8},0]
[{"$nulls":8},0]
[{"$nulls":8},0]
[{"$nulls":8},0]
[{"$nulls":8},0]
[{"$nulls":8},0]
[{"$nulls":8},0]
[{"$nulls":8},0]
[{"$nulls":8},0]
[{"$nulls":8},0]
[{"$nulls":8},0]
[{"$nulls":8},0]
[{"$nulls":8},0]
[{"$nulls":8},0]
[{"$nulls":8},0]
[{"$nulls":8},0]
[{"$nulls":8},0]
[{"$nulls":8},0]
[{"$nulls":8},0]
[{"$nulls":8},0]
[{"$nulls":8},0]
[{"$nulls":8},0]
[{"$nulls":8},0]
[{"$nulls":8},0]
[{"$nulls":8},0]
[{"$nulls":8},0]
[{"$nulls":8},0]
[{"$nulls":8},0]
[{"$nulls":8},0]
[{"$nulls":8},0]
[{"$nulls":8},0]
[{"$nulls":8},0]
[{"$nulls":8},0]
[{"$nulls":8},0]
[{"$nulls":8},0]
[{"$nulls":8},0]
[{"$nulls":8},0]
[{"$nulls":8},0]
[{"$nulls":8},0]
[{"$nulls":8},0]
[{"$nulls":8},0]
[{"$nulls":8},0]
[{"$nulls":8},0]
[{"$nulls":8},0]
[{"$nulls":8},{"$f":"G483*H483","v":0}]
[{"$nulls":8},0]
[{"$nulls":8},0]
[{"$nulls":8},0]
[{"$nulls":8},0]
[{"$nulls":8},0]
[{"$nulls":8},0]
[{"$nulls":8},0]
[{"$nulls":8},0]
[{"$nulls":8},0]
[{"$nulls":8},0]
[{"$nulls":8},0]
[{"$nulls":8},0]
[{"$nulls":8},0]
[{"$nulls":8},0]
[{"$nulls":8},0]
[{"$nulls":8},0]
[{"$nulls":8},0]
[{"$nulls":8},0]
[{"$nulls":8},0]
[{"$nulls":8},0]
[{"$nulls":8},0]
[{"$nulls":8},0]
[{"$nulls":8},0]
[{"$nulls":8},0]
[{"$nulls":8},0]
[{"$nulls":8},0]
[{"$nulls":8},0]
[{"$nulls":8},0]
[{"$nulls":8},0]
[{"$nulls":8},0]
[{"$nulls":8},0]
[{"$nulls":8},0]
[{"$nulls":8},0]
[{"$nulls":8},0]
[{"$nulls":8},0]
[{"$nulls":8},0]
[{"$nulls":8},0]
[{"$nulls":8},0]
[{"$nulls":8},0]
[{"$nulls":8},0]
[{"$nulls":8},0]
[{"$nulls":8},0]
[{"$nulls":8},0]
[{"$nulls":8},0]
[{"$nulls":8},0]
[{"$nulls":8},0]
[{"$nulls":8},0]
[{"$nulls":8},0]
[{"$nulls":8},0]
[{"$nulls":8},0]
[{"$nulls":8},0]
[{"$nulls":8},0]
[{"$nulls":8},0]
[{"$nulls":8},0]
[{"$nulls":8},0]
[{"$nulls":8},0]
[{"$nulls":8},0]
[{"$nulls":8},0]
[{"$nulls":8},0]
[{"$nulls":8},0]
[{"$nulls":8},0]
[{"$nulls":8},0]
[{"$nulls":8},0]
[{"$nulls":8},{"$f":"G547*H547","v":0}]
[{"$nulls":8},0]
[{"$nulls":8},0]
[{"$nulls":8},0]
[{"$nulls":8},0]
[{"$nulls":8},0]
[{"$nulls":8},0]
[{"$nulls":8},0]
[{"$nulls":8},0]
[{"$nulls":8},0]
[{"$nulls":8},0]
[{"$nulls":8},0]
[{"$nulls":8},0]
[{"$nulls":8},0]
[{"$nulls":8},0]
[{"$nulls":8},0]
[{"$nulls":8},0]
[{"$nulls":8},0]
[{"$nulls":8},0]
[{"$nulls":8},0]
[{"$nulls":8},0]
[{"$nulls":8},0]
[{"$nulls":8},0]
[{"$nulls":8},0]
[{"$nulls":8},0]
[{"$nulls":8},0]
[{"$nulls":8},0]
[{"$nulls":8},0]
[{"$nulls":8},0]
[{"$nulls":8},0]
[{"$nulls":8},0]
[{"$nulls":8},0]
[{"$nulls":8},0]
[{"$nulls":8},0]
[{"$nulls":8},0]
[{"$nulls":8},0]
[{"$nulls":8},0]
[{"$nulls":8},0]
[{"$nulls":8},0]
[{"$nulls":8},0]
[{"$nulls":8},0]
[{"$nulls":8},0]
[{"$nulls":8},0]
[{"$nulls":8},0]
[{"$nulls":8},0]
[{"$nulls":8},0]
[{"$nulls":8},0]
[{"$nulls":8},0]
[{"$nulls":8},0]
[{"$nulls":8},0]
[{"$nulls":8},0]
[{"$nulls":8},0]
[{"$nulls":8},0]
[{"$nulls":8},0]
[{"$nulls":8},0]
[{"$nulls":8},0]
[{"$nulls":8},0]
[{"$nulls":8},0]
[{"$nulls":8},0]
[{"$nulls":8},0]
[{"$nulls":8},0]
[{"$nulls":8},0]
[{"$nulls":8},0]
[{"$nulls":8},0]
[{"$nulls":8},{"$f":"G611*H611","v":0}]
[{"$nulls":8},0]
[{"$nulls":8},0]
[{"$nulls":8},0]
[{"$nulls":8},0]
[{"$nulls":8},0]
[{"$nulls":8},0]
[{"$nulls":8},0]
[{"$nulls":8},0]
[{"$nulls":8},0]
[{"$nulls":8},0]
[{"$nulls":8},0]
[{"$nulls":8},0]
[{"$nulls":8},0]
[{"$nulls":8},0]
[{"$nulls":8},0]
[{"$nulls":8},0]
[{"$nulls":8},0]
[{"$nulls":8},0]
[{"$nulls":8},0]
[{"$nulls":8},0]
[{"$nulls":8},0]
[{"$nulls":8},0]
[{"$nulls":8},0]
[{"$nulls":8},0]
[{"$nulls":8},0]
[{"$nulls":8},0]
[{"$nulls":8},0]
[{"$nulls":8},0]
[{"$nulls":8},0]
[{"$nulls":8},0]
[{"$nulls":8},0]
[{"$nulls":8},0]
[{"$nulls":8},0]
[{"$nulls":8},0]
[{"$nulls":8},0]
[{"$nulls":8},0]
[{"$nulls":8},0]
[{"$nulls":8},0]
[{"$nulls":8},0]
[{"$nulls":8},0]
[{"$nulls":8},0]
[{"$nulls":8},0]
[{"$nulls":8},0]
[{"$nulls":8},0]
[{"$nulls":8},0]
[{"$nulls":8},0]
[{"$nulls":8},0]
[{"$nulls":8},0]
[{"$nulls":8},0]
[{"$nulls":8},0]
[{"$nulls":8},0]
[{"$nulls":8},0]
[{"$nulls":8},0]
[{"$nulls":8},0]
[{"$nulls":8},0]
[{"$nulls":8},0]
[{"$nulls":8},0]
[{"$nulls":8},0]
[{"$nulls":8},0]
[{"$nulls":8},0]
[{"$nulls":8},0]
[{"$nulls":8},0]
[{"$nulls":8},0]
[{"$nulls":8},{"$f":"G675*H675","v":0}]
[{"$nulls":8},0]
[{"$nulls":8},0]
[{"$nulls":8},0]
[{"$nulls":8},0]
[{"$nulls":8},0]
[{"$nulls":8},0]
[{"$nulls":8},0]
[{"$nulls":8},0]
[{"$nulls":8},0]
[{"$nulls":8},0]
[{"$nulls":8},0]
[{"$nulls":8},0]
[{"$nulls":8},0]
[{"$nulls":8},0]
[{"$nulls":8},0]
[{"$nulls":8},0]
[{"$nulls":8},0]
[{"$nulls":8},0]
[{"$nulls":8},0]
[{"$nulls":8},0]
[{"$nulls":8},0]
[{"$nulls":8},0]
[{"$nulls":8},0]
[{"$nulls":8},0]
[{"$nulls":8},0]
[{"$nulls":8},0]
[{"$nulls":8},0]
[{"$nulls":8},0]
[{"$nulls":8},0]
[{"$nulls":8},0]
[{"$nulls":8},0]
[{"$nulls":8},0]
[{"$nulls":8},0]
[{"$nulls":8},0]
[{"$nulls":8},0]
[{"$nulls":8},0]
[{"$nulls":8},0]
[{"$nulls":8},0]
[{"$nulls":8},0]
[{"$nulls":8},0]
[{"$nulls":8},0]
[{"$nulls":8},0]
[{"$nulls":8},0]
[{"$nulls":8},0]
[{"$nulls":8},0]
[{"$nulls":8},0]
[{"$nulls":8},0]
[{"$nulls":8},0]
[{"$nulls":8},0]
[{"$nulls":8},0]
[{"$nulls":8},0]
[{"$nulls":8},0]
[{"$nulls":8},0]
[{"$nulls":8},0]
[{"$nulls":8},0]
[{"$nulls":8},0]
[{"$nulls":8},0]
[{"$nulls":8},0]
[{"$nulls":8},0]
[{"$nulls":8},0]
[{"$nulls":8},0]
[{"$nulls":8},0]
[{"$nulls":8},0]
[{"$nulls":8},{"$f":"G739*H739","v":0}]
[{"$nulls":8},0]
[{"$nulls":8},0]
[{"$nulls":8},0]
[{"$nulls":8},0]
[{"$nulls":8},0]
[{"$nulls":8},0]
[{"$nulls":8},0]
[{"$nulls":8},0]
[{"$nulls":8},0]
[{"$nulls":8},0]
[{"$nulls":8},0]
[{"$nulls":8},0]
[{"$nulls":8},0]
[{"$nulls":8},0]
[{"$nulls":8},0]
[{"$nulls":8},0]
[{"$nulls":8},0]
[{"$nulls":8},0]
[{"$nulls":8},0]
[{"$nulls":8},0]
[{"$nulls":8},0]
[{"$nulls":8},0]
[{"$nulls":8},0]
[{"$nulls":8},0]
[{"$nulls":8},0]
[{"$nulls":8},0]
[{"$nulls":8},0]
[{"$nulls":8},0]
[{"$nulls":8},0]
[{"$nulls":8},0]
[{"$nulls":8},0]
[{"$nulls":8},0]
[{"$nulls":8},0]
[{"$nulls":8},0]
[{"$nulls":8},0]
[{"$nulls":8},0]
[{"$nulls":8},0]
[{"$nulls":8},0]
[{"$nulls":8},0]
[{"$nulls":8},0]
[{"$nulls":8},0]
[{"$nulls":8},0]
[{"$nulls":8},0]

{"sheet":"Munka1","index":5,"n_rows":342,"n_cols":10,"rows_kept":342,"cut":false,"hidden":true,"merged":[]}
["Megnevezés (munkafüzet 2)","CPV megnevezés","CPV kód","Termék megnevezése","Szállítók (3 db)","Kiszerelés","Becsült egységár (Ft)","Darabszám","Becsült ár (Ft)"]
[]
["Állatkisérletekhez szükséges anyagok"]
["Állatkisérletekhez szükséges anyagok","Enzimek","24965000-6\n","Proteinase K solution, cikkszám: BIO-37084","Bioline, Izinta Kereskedelmi Kft., Sigma Aldrich","5 ml",35130,1,{"$f":"G4*H4","v":35130}]
["Állatkisérletekhez szükséges anyagok","Műanyag termékek","19520000-7","PP egészségügyi körsapka, fehér","Labsystem Kft, Morello Kft, Bunzl Kft.","csomag (100 db)",1079,3,{"$f":"G5*H5","v":3237}]
[{"$nulls":9},{"$f":"SUM(I4:I5)","v":38367}]
[]
["Analitikai célú fogyóanyagok, eszközök",{"$nulls":7},{"$f":"G8*H8","v":0}]
["Analitikai célú fogyóanyagok, eszközök","Detergensek","39831200-8","PAPIGEST SF surfactant","Waters Kft.","1 mg",30000,6,180000]
["Analitikai célú fogyóanyagok, eszközök","Laboratóriumi, optikai és precíziós felszerelések","38000000-5","OASIS Prime HLB cartridge 1cc","Waters Kft.","100 db/csomag",53000,1,53000]
["Analitikai célú fogyóanyagok, eszközök","Laboratóriumi, optikai és precíziós felszerelések","38000000-5","OASIS Prime HLB cartridge 3cc","Waters Kft.","100 db /csomag",62000,1,62000]
["Analitikai célú fogyóanyagok, eszközök","Laboratóriumi, optikai és precíziós felszerelések","38000000-5","Detergent removal spin column (ThermoFisher)","Kvalitex",24,57000,2,114000]
["Analitikai célú fogyóanyagok, eszközök","Laboratóriumi, optikai és precíziós felszerelések","38000000-5","centrifugális mikrofilter 10kDa memránnal","Merck Kft.","100 db/csomag",150000,1,150000]
["Analitikai célú fogyóanyagok, eszközök","Laboratóriumi, optikai és precíziós felszerelések","38000000-5","centrifugális mikrofilter 30kDa memránnal","Merck Kft.","100 db/csomag",150000,2,300000]
["Analitikai célú fogyóanyagok, eszközök","Laboratóriumi, optikai és precíziós felszerelések","38000000-5","Mikrofecskendő \"gastight\" fix tű, #3 tű, 25 ul","CP Analitika, AA Labor, VWR","db",15000,6,90000]
["Analitikai célú fogyóanyagok, eszközök","Laboratóriumi, optikai és precíziós felszerelések","38000000-5","Mikrofecskendő \"gastight\" fix tű, #3 tű, 100 ul","CP Analitika, AA Labor, VWR","db",18000,2,36000]
["Analitikai célú fogyóanyagok, eszközök","Laboratóriumi, optikai és precíziós felszerelések","38000000-5","Mikrofecskendő \"gastight\" fix tű, #3 tű, 250 ul","CP Analitika, AA Labor, VWR","db",25000,2,50000]
["Analitikai célú fogyóanyagok, eszközök","Laboratóriumi, optikai és precíziós felszerelések","38000000-5","Mikrofecskendő \"gastight\" fix tű, #3 tű, 500 ul","CP Analitika, AA Labor, VWR","db",30000,2,60000]
["Analitikai célú fogyóanyagok, eszközök","Laboratóriumi, optikai és precíziós felszerelések","38000000-5","Üvegfecskendő 10 ml, Luer-Lockcsatlakozóval","CP Analitika, AA Labor, VWR","db",30000,3,90000]
["Analitikai célú fogyóanyagok, eszközök","Laboratóriumi, optikai és precíziós felszerelések","38000000-5","ZipTip C18 pipetta hegy (0,6ul)","Merck Kft.","96 db/ doboz",100000,6,600000]
["Analitikai célú fogyóanyagok, eszközök","Laboratóriumi, optikai és precíziós felszerelések","38000000-5","Parafilm 38 m * 10 cm","VWR, Gen-Lab, Labex, Sigma Aldrich","1 db",12000,1,12000]
["Analitikai célú fogyóanyagok, eszközök","Laboratóriumi, optikai és precíziós felszerelések","38000000-5","fecskendőszűrő 0,22","VWR, Gen-Lab, Labex, Sigma Aldrich","50 db/csomag",25000,1,{"$f":"G22*H22","v":25000}]
["Analitikai célú fogyóanyagok, eszközök","Laboratóriumi, optikai és precíziós felszerelések","38000000-5","fecskendőszűrő 0,45","VWR, Gen-Lab, Labex, Sigma Aldrich","50 db/csomag",25000,1,25000]
["Analitikai célú fogyóanyagok, eszközök","Laboratóriumi, optikai és precíziós felszerelések","38000000-5","F-130X - One-Piece Fingertight Long, PEEK, 10-32 Coned, for 1/16\" OD","Bioszeparáció Kft., VWR","10 db/csomag",43980,2,87960]
["Analitikai célú fogyóanyagok, eszközök","Laboratóriumi, optikai és precíziós felszerelések","38000000-5","F-120X - One-Piece Fingertight 10-32 Coned, for 1/16\" OD","Bioszeparáció Kft., VWR","10 db/csomag",47380,2,94760]
["Analitikai célú fogyóanyagok, eszközök","Laboratóriumi, optikai és precíziós felszerelések","38000000-5","PK-120BLKX - VHP One-Piece Fitting PK 1/16","Bioszeparáció Kft., VWR","10 db/csomag",49320,2,98640]
["Analitikai célú fogyóanyagok, eszközök","Laboratóriumi, optikai és precíziós felszerelések","38000000-5","RHEO-6000-360 Rheodyne  Rheflex\u0099 Fitting, for 1/32\" OD Tubing, M4 Coned, PEEK\u0099, Natural","Bioszeparáció Kft., VWR","10 db/csomag",29169,1,29169]
["Analitikai célú fogyóanyagok, eszközök","Laboratóriumi, optikai és precíziós felszerelések","38000000-5","F-330X - Two-Piece Fingertight PEEK, Long 10-32 Coned, for 1/16\" OD","Bioszeparáció Kft., VWR","10 db/csomag",23975,1,23975]
["Analitikai célú fogyóanyagok, eszközök","Laboratóriumi, optikai és precíziós felszerelések","38000000-5","LT-132 - LiteTouch® Micro Ferrule 10-32 Coned, for 1/32\" OD","Bioszeparáció Kft., VWR","10 db/csomag",36000,1,36000]
["Analitikai célú fogyóanyagok, eszközök","Laboratóriumi, optikai és precíziós felszerelések","38000000-5","PK-110X - VHP LiteTouch® Nut PK 1/16\"","Bioszeparáció Kft., VWR","10 db/csomag",14870,1,14870]
["Analitikai célú fogyóanyagok, eszközök","Laboratóriumi, optikai és precíziós felszerelések","38000000-5","PK-100X - VHP LiteTouch® Ferrule Assembly PK 1/16\"","Bioszeparáció Kft., VWR","10 db/csomag",28089,1,28089]
["Analitikai célú fogyóanyagok, eszközök","Laboratóriumi, optikai és precíziós felszerelések","38000000-5","PK-132x Ferrule for 1/32” OD Tubing","Bioszeparáció Kft., VWR","10 db/csomag",41050,1,41050]
["Analitikai célú fogyóanyagok, eszközök","Laboratóriumi, optikai és precíziós felszerelések","38000000-5","310010 - PEEKsil™ Tubing 1/32\" OD x 100µm ID, 10 cm","Bioszeparáció Kft., VWR","2 db/csomag",15450,1,15450]
["Analitikai célú fogyóanyagok, eszközök","Laboratóriumi, optikai és precíziós felszerelések","38000000-5","310015 - PEEKsil™ Tubing 1/32\" OD x 100µm ID, 15 cm","Bioszeparáció Kft., VWR","2 db/csomag",23000,4,92000]
["Analitikai célú fogyóanyagok, eszközök","Laboratóriumi, optikai és precíziós felszerelések","38000000-5","310010 - PEEKsil™ Tubing 1/32\" OD x 100µm ID, 20 cm","Bioszeparáció Kft., VWR","2 db/csomag",21000,2,42000]
["Analitikai célú fogyóanyagok, eszközök","Laboratóriumi, optikai és precíziós felszerelések","38000000-5","310050 - PEEKsil™ Tubing 1/32\" OD x 100µm ID, 50 cm","Bioszeparáció Kft., VWR","2 db/csomag",32500,4,130000]
["Analitikai célú fogyóanyagok, eszközök","Laboratóriumi, optikai és precíziós felszerelések","38000000-5","1535 - PEEK Tubing Red 1/16\" OD x .005\" ID x 50ft","Bioszeparáció Kft., VWR","1 db/csomag",98455,1,98455]
["Analitikai célú fogyóanyagok, eszközök","Laboratóriumi, optikai és precíziós felszerelések","38000000-5","1531 - PEEK Tubing Natural 1/16\" OD x .010\" ID x 5ft","Bioszeparáció Kft., VWR","1 db/csomag",10000,5,50000]
["Analitikai célú fogyóanyagok, eszközök","Laboratóriumi, optikai és precíziós felszerelések","38000000-5","1576 - PEEK Tubing Red 1/32\" OD x .005\" \" ID x 5ft","Bioszeparáció Kft., VWR","1 db/csomag",20000,3,60000]
["Analitikai célú fogyóanyagok, eszközök","Laboratóriumi, optikai és precíziós felszerelések","38000000-5","1561 - PEEK Tubing Black 1/16\" OD x .004\" ID x 5ft","Bioszeparáció Kft., VWR","1 db/csomag",14000,3,42000]
[{"$nulls":9},{"$f":"SUM(I9:I40)","v":2831418}]
[]
["Analitikai célú vegyszerek, standardok"]
["Analitikai célú vegyszerek, standardok","Enzimek.","24965000-6\n","Furin enzim, humán fehérje pufferben, baculovirus fertőzött Sf9 sejtekben expresszált, ≥2,000 unit/mL","Sigma Aldrich, Thomas Scientific, ","50 egység",115200,2,{"$f":"G44*H44","v":230400}]
["Analitikai célú vegyszerek, standardok","Különleges célú vegyipari termékek.","24950000-8","Furin Activity Detection kit, 96-well format","VWR Kft., Enzium, ImmunoReagents Inc.","kit",230000,1,230000]
["Analitikai célú vegyszerek, standardok","Szerves vegyületek nitrogénfunkciós csoporttal.","24324000-1","Acrylamide, Assay min. 99,9%","VWR Kft., Sigma Aldrich, Bio-Rad Kft.","500 g ",52640,1,52640]
["Analitikai célú vegyszerek, standardok","Szerves vegyületek nitrogénfunkciós csoporttal.","24324000-1","Bis-acrylamide, Ultra Pure Grade","VWR Kft., Sigma Aldrich, Bio-Rad Kft.","100 g",17672,1,17672]
["Analitikai célú vegyszerek, standardok","Peptonok és proteinanyagok.","24956000-0","Fehérje marker - Precision Plus Protein Standards-Kaleidoscope, egyenként színezett, min. 0-200 kDa detektálási sáv, Bis-Tris géllel kompatibilis, Western-blothoz alkalmas","Bio-Rad, SelectScience, Biocompare","500 ul",56110,1,56110]
["Analitikai célú vegyszerek, standardok","Szerves vegyületek nitrogénfunkciós csoporttal.","24324000-1","Thiazolyl Blue Tetrazolium Bromide (MTT), 3-(4,5-Dimethyl-2-thiazolyl)-2,5-diphenyl-2H-tetrazolium bromide, MTT, Methylthiazolyldiphenyl-tetrazolium bromide. Sejttenyészeten használható, 570 nm-en mérhető. Vízben oldódik, >97% tisztaságú","Sigma Aldrich, Abcam, Santa Cruz Biotechnology","1 g",29820,1,29820]
["Analitikai célú vegyszerek, standardok","Alkoholok, fenolok, fenol-alkoholok és ezek halogén-, szulfo-, nitro- vagy nitrozoszármazékai, ipari zsíralkoholok.","24322000-7","Trifluor etanol BioUltra 99%",null,null,40000,1,{"$f":"G50*H50","v":40000}]
["Analitikai célú vegyszerek, standardok","Karbonsavak","24323200-6","Trifluorecetsav HPLC minőség","VWR, Merck, Sigma-Aldrich",null,44500,1,44500]
["Analitikai célú vegyszerek, standardok","Ecetsav","24323210-9","Ecetsav 99% LC/MS minőség","VWR, Merck, Sigma-Aldrich","100 mL",13160,2,26320]
["Analitikai célú vegyszerek, standardok","Karbonsavak","24323200-6","Hangyasav LC/MS minőség","VWR, Merck, Sigma-Aldrich","50 mL",10000,3,30000]
["Analitikai célú vegyszerek, standardok","Szervetlen és szerves alapvegyületek","24300000-7","Ammónia oldat LC/MS minőség","VWR, Merck, Sigma-Aldrich","100 mL",10000,2,20000]
["Analitikai célú vegyszerek, standardok",null,"24300000-7","Ammónium acetát > 99% LC/MS minőség","VWR, Merck, Sigma-Aldrich","100 g",15500,1,15500]
["Analitikai célú vegyszerek, standardok","Szervetlen és szerves alapvegyületek","24300000-7","Ammónium formiát > 99% LC/MS minőség","VWR, Merck, Sigma-Aldrich","100 g",15500,1,15500]
["Analitikai célú vegyszerek, standardok","Enzimek","24965000-6","Trypsin Gold MS minőség","BioScience Kft.","100 ug",50000,2,100000]
["Analitikai célú vegyszerek, standardok","Nehézvíz, egyéb izotópok és vegyületeik.","24315100-6","Deuterált peptid standardok","JPT Peptide Technologies (DE)","30 nmol",60000,4,240000]
[{"$nulls":9},{"$f":"SUM(I44:I58)","v":1148462}]
[]
["Analitikumok, detektáló műszerek, automaták vegyszerkészletei"]
["analitikumok, detektáló műszerek, automaták vegyszerkészletei","Szervetlen és szerves alapvegyületek","24300000-7","Buffer solution pH 4","VWR, Merck, Sigma-Aldrich","500 ml",2500,1,{"$f":"G62*H62","v":2500}]
["analitikumok, detektáló műszerek, automaták vegyszerkészletei","Szervetlen és szerves alapvegyületek","24300000-7","Buffer solution pH 7","VWR, Merck, Sigma-Aldrich","501 ml",2500,1,{"$f":"G63*H63","v":2500}]
["analitikumok, detektáló műszerek, automaták vegyszerkészletei","Szervetlen és szerves alapvegyületek","24300000-7","Buffer solution pH 10","VWR, Merck, Sigma-Aldrich","502 ml",2500,1,{"$f":"G63*H62","v":2500}]
["analitikumok, detektáló műszerek, automaták vegyszerkészletei","Laboratóriumi reagensek.","33696500-0 ","BCA Protein Assay Kit","Thermo Fisher,  Sigma Aldrich, Merck","500 ml",39750,1,39750]
[{"$nulls":9},{"$f":"SUM(I62:I65)","v":47250}]
["Elsődleges és másodlagos antitestek"]
["Elsődleges és másodlagos antitestek","Immunglobulin.","33651520-9","Anti-NeuN Antibody, clone A60 (500 µg, tárolás: 2-8 fokon, egér monoclonalis antitest, Purified mouse immunoglobulin IgG1 liquid in buffer containing 0.02 M phosphate buffer, 0.25 M NaCl, pH 7.6 with 0.1% sodium azide. Isotype: IGg1. )","Biokasztel Kft, Thermofisher, Sigma-Aldrich","500 μl",136800,1,{"$f":"G68*H68","v":136800}]
["Elsődleges és másodlagos antitestek","Immunglobulin.","33651520-9","Super Sensitive™ One-Step Polymer-HRP IHC Detection System /DAB, MEGA Volume","Biomedica Kft.","db",386835,1,386835]
["Elsődleges és másodlagos antitestek","Immunglobulin.","33651520-9","Anti Iba1, Rabbit (for Immunocytochemistry, specific to microglia and macrophage, but not cross-reactive with neuron and astrocyte) 50μg (100 μl), tárolás: -20 fokon","Wako, Auro-Science, Proteintech Europe","100 μl",133300,1,133300]
["Elsődleges és másodlagos antitestek","Immunglobulin.","33651520-9","Fe65 polyclonal antibody, 100 ug, 1mg/ml-es koncentrációjú, nyúl IgG, polyclonális, elsődleges antitest western blothoz alkamazható, 77 kDa","Thermo Scientific, VWR Kft., Sigma Aldrich","100 µg",95200,1,95200]
["Elsődleges és másodlagos antitestek","Immunglobulin.","33651520-9","Sigma1 rec antitest ","Bio-Kasztel Kft., Santa Cruz Biotechnology, Antibody Resource","1 ml",91200,1,91200]
["Elsődleges és másodlagos antitestek","Immunglobulin.","33651520-9","Polyclonal rabbit anti mouse immunoglobulins HRP   ","Thermo Fisher Sc., Abcam, Kromat Kft.","2 ml",75408,1,75408]
["Elsődleges és másodlagos antitestek","Immunglobulin.","33651520-9","Polyclonal goat anti rabbit immunoglobulins HRP","Thermo Fisher Sc., Abcam, Kromat Kft.","1 ml",66336,1,66336]
[{"$nulls":9},{"$f":"SUM(I68:I74)","v":985079}]
[]
["Enzimekkel kapcsolt szekunder rendszerek (ELISA, enzimreakción alapuló detektáló kit-ek)"]
["Enzimekkel kapcsolt szekunder rendszerek (ELISA, enzimreakción alapuló detektáló kit-ek)","Enzimek.","24965000-6\n","Caspase 3 Assay Kit, Colorimetric, Kaszpáz 3 enzim aktivitást sejttenyészeten vagy sejtlizátumból, fluoreszcensen mérő kit. Ac-DEVD-AMC szubsztrárot hidrolizálja a kaszpáz 3 enzim. A keletkező AMC ex: 360nm em:460 nm-en mérhető. Elegendő 1000 teszthez 96-os plate-n","Sigma Aldrich","kit",297600,1,{"$f":"G78*H78","v":297600}]
["Enzimekkel kapcsolt szekunder rendszerek (ELISA, enzimreakción alapuló detektáló kit-ek)","Különleges célú vegyipari termékek.","24950000-8","BCA Protein Assay Kit","Thermo Fisher,  Sigma Aldrich, Merck","500 ml",39750,1,{"$f":"G79*H79","v":39750}]
["Enzimekkel kapcsolt szekunder rendszerek (ELISA, enzimreakción alapuló detektáló kit-ek)","Különleges célú vegyipari termékek.","24950000-8","Proteáz inhibitor koktél, emlős sejt és szövet extraktumhoz adható, DMSO oldatban, tartalmaz: AEBSF, Aprotinin, Bestatin, E-64, Leupeptin, Pepstatin A-t","Sigma Aldrich, Promega Corporation, Abcam","1 ml",28830,1,{"$f":"G80*H80","v":28830}]
[{"$nulls":9},{"$f":"SUM(I78:I80)","v":366180}]
[]
["Immunhisztokémiai munkákhoz szükséges anyagok"]
["Immunhisztokémiai munkákhoz szükséges anyagok","Diolok, polialkoholok és származékaik.","24322300-0","polivinil alkohol - (kiszerelés: 500 g, por, Mol tömeg: Mw 89,000-98,000 )","Sigma-Aldrich, VWR Kft., Reanal Labor","500 g",70000,1,{"$f":"G84*H84","v":70000}]
["Immunhisztokémiai munkákhoz szükséges anyagok","Különleges célú vegyipari termékek.","24950000-8","DPX fedőanyag mikroszkópiához (gyorsan száradó fedőanyag metszetekhez, színtelen, alacsony viszkozitású, 500 ml)","Sigma-Aldrich, Merck-Millipore, Summamed Kft","2 üveg",20263,2,40526]
["Immunhisztokémiai munkákhoz szükséges anyagok","Peptonok és proteinanyagok.","24956000-0","NGS (normal goat serum, kiszerelés: 10 ml, tárolás: (-2)-(-8) fok )","Sigma-Aldrich,  Thermofisher, Abcam","10 ml",31000,10,310000]
["Immunhisztokémiai munkákhoz szükséges anyagok","Laboratóriumi, optikai és precíziós felszerelések","38000000-5","PAP pen, 2 mm tip width","Sigma-Aldrich, Abcam, Thermofisher ","db ",45000,2,90000]
["Immunhisztokémiai munkákhoz szükséges anyagok","Peptonok és proteinanyagok.","24956000-0","Albumin, from bovine serum","VWR Kft., Sigma Aldrich, Thermo Fisher Scientific","100 g",78302,1,{"$f":"G88*H88","v":78302}]
[{"$nulls":9},{"$f":"SUM(I84:I88)","v":588828}]
[]
["Izoláló és egyéb kit-ek amelyek  bármilyen enzim komponenst  tartalmaznak "]
["Izoláló és egyéb kit-ek amelyek  bármilyen enzim komponenst  tartalmaznak ","Különleges célú vegyipari termékek.","24950000-8","High-Speed Plasmid mini kit, 30 ug plazmid tisztításához,300 reakcióhoz elég.  Tartalmazza PD1, PD2, PD3, W1, Wash és Elution (10 mM Tris-HCl, pH8.5 at 25°C) puffereket, RNÁz A-t PD oszlopokat és 2 ml-es csöveket.","Geneaid, ThermoFisher Scientific, Sigma Aldrich","kit",56325,2,{"$f":"G92*H92","v":112650}]
[{"$nulls":9},{"$f":"SUM(I92)","v":112650}]
[]
["Kisérleti állatok"]
["Kísérleti állat",null,null,"c57/bl6","SZBK","db",7000,20,{"$f":"G96*H96","v":140000}]
[{"$nulls":9},{"$f":"SUM(I96)","v":140000}]
[]
["Kromatográfiás oszlopok, töltetek"]
["Kromatográfiás oszlopok, töltetek","Laboratóriumi, optikai és precíziós felszerelések","38000000-5","Phenomenex Luna C18(2) HPLC oszlop, Méret: 250*4,6mm, szemcseméret (μm): 5, Pórusátmérő (Å)m 100, P.no:00G-4252-E0","Gen-lab Kft.","db",203344,2,{"$f":"G100*H100","v":406688}]
["Kromatográfiás oszlopok, töltetek","Laboratóriumi, optikai és precíziós felszerelések","38000000-5","Phenomenex Jupiter C18 HPLC oszlop, Méret: 250*4,6mm, szemcseméret (μm): 5, Pórusátmérő (Å)m 300, P.no: 00G-4053-E0","Gen-lab Kft.","db",199488,1,199488]
["Kromatográfiás oszlopok, töltetek","Laboratóriumi, optikai és precíziós felszerelések","38000000-5","Phenomenex Jupiter C4 HPLC oszlop, Méret: 250*4,6mm, szemcseméret (μm): 5, Pórusátmérő (Å)m 300, P.no: 00G-4167-E0","Gen-lab Kft.","db",199488,1,199488]
["Kromatográfiás oszlopok, töltetek","Laboratóriumi, optikai és precíziós felszerelések","38000000-5","Phenomenex Luna C18 HPLC oszlop, Méret: 250*10mm, szemcseméret (μm): 5, Pórusátmérő (Å)m 100, P.no:00G-4252-N0","Gen-lab Kft.","db",490933,2,981866]
["Kromatográfiás oszlopok, töltetek","Laboratóriumi, optikai és precíziós felszerelések","38000000-5","Phenomenex Jupiter C18 HPLC oszlop, Méret: 250*10mm, szemcseméret (μm):10, Pórusátmérő (Å)m 300, P.no: 00G-4055-E0","Gen-lab Kft.","db",340200,1,340200]
["Kromatográfiás oszlopok, töltetek","Laboratóriumi, optikai és precíziós felszerelések","38000000-5","Phenomenex Jupiter C4 HPLC oszlop, Méret: 250*10mm, szemcseméret (μm): 10, Pórusátmérő (Å)m 300, P.no: 00G-4168-N0","Gen-lab Kft.","db",340200,1,340200]
["Kromatográfiás oszlopok, töltetek","Laboratóriumi, optikai és precíziós felszerelések","38000000-5","Phenomenex Luna C18(2) HPLC oszlop, Méret: 250*21.2 mm, szemcseméret (μm): 5, Pórusátmérő (Å)m 100, P.no: 00G-4252-P0-AX","Gen-lab Kft.","db",882653,1,882653]
["Kromatográfiás oszlopok, töltetek","Laboratóriumi, optikai és precíziós felszerelések","38000000-5","Phenomenex Luna C18(2) HPLC oszlop, Méret: 250*21.2 mm, szemcseméret (μm): 10, Pórusátmérő (Å)m 100, P.no: 00G-4253-P0-AX","Gen-lab Kft.","db",873423,1,873423]
["Kromatográfiás oszlopok, töltetek","Laboratóriumi, optikai és precíziós felszerelések","38000000-5","Phenomenex Jupiter C18 HPLC oszlop, Méret: 250*21.2 mm, szemcseméret (μm):10, Pórusátmérő (Å)m 300, P.no: 00G-4055-P0","Gen-lab Kft.","db",693000,1,693000]
["Kromatográfiás oszlopok, töltetek","Laboratóriumi, optikai és precíziós felszerelések","38000000-5","Phenomenex Jupiter C4 HPLC oszlop, Méret: 250*21.2 mm, szemcseméret (μm): 10, Pórusátmérő (Å)m 300, P.no: 00G-4168-P0","Gen-lab Kft.","db",693000,1,693000]
["Kromatográfiás oszlopok, töltetek","Laboratóriumi, optikai és precíziós felszerelések","38000000-5","Sephadex ® G50-fine ","Sigma-Aldrich, GE Healthcare Science, Santa-Cruz Biotechnology Inc.","50 g",85000,1,{"$f":"G110*H110","v":85000}]
["Kromatográfiás oszlopok, töltetek","Laboratóriumi, optikai és precíziós felszerelések","38000000-5","Luna Omega Polar 50x2,1mm ( 1,6um)","Gen-lab Kft.","db",200000,1,{"$f":"G111*H111","v":200000}]
["Kromatográfiás oszlopok, töltetek","Laboratóriumi, optikai és precíziós felszerelések","38000000-5","Luna PS 1,6um 50x2,1mm",null,null,200000,1,{"$f":"G112*H112","v":200000}]
[{"$nulls":9},{"$f":"SUM(I100:I112)","v":6095006}]
[]
["Laboratóriumi fém és üvegáru"]
["Laboratóriumi fém és üvegáru","33912100-7","Bonccsipesz","Hajlított végű csipesz, Nem fogazott, 110 mm hosszú, rozsdamentes acél, EMS part no: 783183CB ","Fisher Sc., Electron Microscopy Sciences, Thomas Scientific","db",7410,2,{"$f":"G116*H116","v":14820}]
["Laboratóriumi fém és üvegáru","38437000-7","Laboratóriumi pipetták és tartozékok.","üveg pasteur pipetta (150 mm, szódaüvegből készült)","Labsystem Kft., Bovimex Kft., Labornite Kft.","doboz (25 db)",5000,1,{"$f":"G117*H117","v":5000}]
["Laboratóriumi üvegáru","Laboratóriumi üvegáru","33793000-5","lombik 25 ml","VWR, Gen-Lab, Labex, Sigma Aldrich","2 db doboz",7200,1,{"$f":"G118*H118","v":7200}]
["Laboratóriumi üvegáru","Laboratóriumi üvegáru","33793000-5","1,5 mL Menetes (9mm) mintatartó üveg (11,6x32 mm) széles szájjal","LAB-EX Kft., ViaLab Kft., VWR","100 db/csomag",1500,30,{"$f":"G119*H119","v":45000}]
["Laboratóriumi üvegáru","Laboratóriumi üvegáru","33793000-5","9 mm Kupak PTFE/fehér szilikon szeptummal","LAB-EX Kft., ViaLab Kft., VWR","100 db/csomag",2300,50,115000]
["Laboratóriumi üvegáru","Laboratóriumi üvegáru","33793000-5","Mikrobetét széles szájú mintatartóhoz 300 ul, 31x6mm, lapos aljú","LAB-EX Kft., ViaLab Kft., VWR","100 db/csomag",2000,30,60000]
["Laboratóriumi üvegáru","Laboratóriumi üvegáru","33793000-5","Mikrobetét széles szájú mintatartóhoz 31,5x5.8mm, kúpos aljú","LAB-EX Kft., ViaLab Kft., VWR","100 db/csomag",3300,50,165000]
["Laboratóriumi üvegáru","Laboratóriumi üvegáru","33793000-5","Mikrobetét széles szájú mintatartóhoz, 29x5,7 mm átlátszó, polimer lábbal","LAB-EX Kft., ViaLab Kft., VWR","100 db/csomag",4000,10,40000]
["Laboratóriumi üvegáru","Laboratóriumi üvegáru","33793000-5","4 mL Menetes (13mm) mintatartó üveg (14,7x 45mm)","LAB-EX Kft., ViaLab Kft., VWR","100 db/csomag",2200,10,22000]
["Laboratóriumi üvegáru","Laboratóriumi üvegáru","33793000-5","13 mm Kupak (zárt) natúr PTFE/natúr szilikon szeptummal","LAB-EX Kft., ViaLab Kft., VWR","100 db/csomag",2700,10,27000]
["Laboratóriumi üvegáru","Laboratóriumi üvegáru","33793000-5","8 mL menetes (15mm) szintelen mintatartó üveg (61x16,6 mm)","LAB-EX Kft., ViaLab Kft., VWR","100 db/csomag",3000,3,9000]
["Laboratóriumi üvegáru","Laboratóriumi üvegáru","33793000-5","15 mm Kupak (zárt) fehér PTFE/piros szilikon szeptummal","LAB-EX Kft., ViaLab Kft., VWR","100 db/csomag",3200,3,9600]
["Laboratóriumi üvegáru","Laboratóriumi üvegáru","33793000-5","Főzőpohár 1000 ml alacsony","VWR, AA labor, LabSystem","10 db/csomag",13300,1,13300]
["Laboratóriumi üvegáru","Laboratóriumi üvegáru","33793000-5","Főzőpohár 600 ml magas","VWR, AA labor, LabSystem","10 db/csomag",8400,1,8400]
["Laboratóriumi üvegáru","Laboratóriumi üvegáru","33793000-5","Főzőpohár 250 ml magas","VWR, AA labor, LabSystem","10 db/csomag",5400,1,5400]
["Laboratóriumi üvegáru","Laboratóriumi üvegáru","33793000-5","Boroszilikát üveg, csavaros PP kupakkal 100 ml","VWR, AA labor, LabSystem","10 db/csomag",5800,1,5800]
["Laboratóriumi üvegáru","Laboratóriumi üvegáru","33793000-5","Boroszilikát üveg, csavaros PP kupakkal 250 ml","VWR, AA labor, LabSystem","10 db/csomag",6600,1,6600]
["Laboratóriumi üvegáru","Laboratóriumi üvegáru","33793000-5","Boroszilikát üveg, csavaros PP kupakkal 500 ml","VWR, AA labor, LabSystem","10 db/csomag",8200,1,8200]
[{"$nulls":9},{"$f":"SUM(I116:I133)","v":567320}]
["Laboratóriumi gumiáru és védőfelszerelések"]
["Laboratóriumi gumiáru és védőfelszerelések","Eldobható gumikesztűk","18424300-0","Sempercare púdermentes latex keszytű S-es méretben","USUS Kft., Roli-Dent Kft., Creativ Dental fogaszati kereskedés és szerviz","doboz (100 db)",1200,1,{"$f":"G136*H136","v":1200}]
["Laboratóriumi gumiáru és védőfelszerelések","Eldobható gumikesztűk","18424300-0","Sempercare púdermentes latex keszytű M-es méretben","USUS Kft., Roli-Dent Kft., Creativ Dental fogaszati kereskedés és szerviz","doboz (100 db)",1200,5,6000]
["Laboratóriumi gumiáru és védőfelszerelések","Eldobható gumikesztűk","18424300-0","Nitril kesztyű púdermentes Xpert M-es méret","USUS Kft., Bio-Science Kft., T -Medical","doboz (100 db)",1900,3,5700]
["Laboratóriumi gumiáru és védőfelszerelések","Laboratóriumi pipetták és tartozékok.","38437000-7","pipettalabda (szilikon) üveg pasteur pipettához","Labsystem Kft., Scarlabmagyarorszag Kft., aalabor Kft.","1 db",500,10,{"$f":"G139*H139","v":5000}]
["Laboratóriumi gumiáru és védőfelszerelések","Eldobható gumikesztűk","18424300-0","gumikesztyű","VWR, Gen-Lab, Labex, Sigma Aldrich","100 db/csomag",3000,2,{"$f":"G140*H140","v":6000}]
["Laboratóriumi gumiáru és védőfelszerelések","Eldobható gumikesztűk","18424300-0","Púdermentes  gumikesztyű S méretű","USUS Kft., Roli-Dent Kft., Creativ Dental fogaszati kereskedés és szerviz","100 db/csomag",1200,5,{"$f":"G141*H141","v":6000}]
["Laboratóriumi gumiáru és védőfelszerelések","Eldobható gumikesztűk","18424300-0","Púdermentes  gumikesztyű M méretű","USUS Kft., Roli-Dent Kft., Creativ Dental fogaszati kereskedés és szerviz","100 db/csomag",1200,5,{"$f":"G142*H142","v":6000}]
["Laboratóriumi gumiáru és védőfelszerelések","Eldobható gumikesztűk","18424300-0","Púdermentes  gumikesztyű L méretű","USUS Kft., Roli-Dent Kft., Creativ Dental fogaszati kereskedés és szerviz","100 db/csomag",1200,5,{"$f":"G143*H143","v":6000}]
[{"$nulls":9},{"$f":"SUM(I136:I143)","v":41900}]
[]
["Laboratóriumi műanyag áru"]
["Laboratóriumi műanyag áru","Műanyag termékek","19520000-7","Whatman Anotop 10 fecskendőszűrő, nem steril, 0,02 um pórusméretű, 1 cm átmérőjű, PP borítású","VWR Kft, Sigma Aldrich, GE Healthcare’s Life Sciences, ","50 db/doboz",140400,1,{"$f":"G147*H147","v":140400}]
["Laboratóriumi műanyag áru","Műanyag termékek","19520000-7","Whatman Puradisc 4 mm Nylon Syringe Filter, 0.45 µm, PP, Gyártói szám: 6789-0404 "," VWR Kft.,  Sigma Aldrich, Thermo Fisher Scientific","doboz (100 db)",43620,1,{"$f":"G148*H148","v":43620}]
["Laboratóriumi műanyag áru","Műanyag termékek","19520000-7","50ml-es PP centrifugacső, talpas, lila zárókupakkal, beosztással. 9400*g RCF (50*10 db)","VWR Kft., Aalabor, Sigma Aldrich","500 db/csomag",54950,1,{"$f":"G149*H149","v":54950}]
["Laboratóriumi műanyag áru","Műanyag termékek","19520000-7","50ml-es PP centrifugacső, kúpos, steril, lila zárókupakkal, beosztással. 20000*g RCF (50*10 db)","VWR Kft., Aalabor, Sigma Aldrich","500 db/csomag",45150,1,{"$f":"G150*H150","v":45150}]
["Laboratóriumi műanyag áru","Pipetta hegy","38437110-1","1-5 ml pipettahegy - Eppendorf","Labsystem Kft., VWR, Dialab Kft.","csomag (500 db)",8000,1,{"$f":"G151*H151","v":8000}]
["Laboratóriumi műanyag áru","Pipetta hegy","38437110-1","100-1000 ul pipettahegy - Eppendorf","Labsystem Kft., VWR, Dialab Kft.","csomag (1000 db)",8000,1,8000]
["Laboratóriumi műanyag áru","Pipetta hegy","38437110-1","2-200 ul pipettahegy - Eppendorf","Labsystem Kft., VWR, Dialab Kft.","csomag (1000 db)",8000,4,32000]
["Laboratóriumi műanyag áru","Pipetta hegy","38437110-1","0.2-20 ul pipettahegy - Eppendorf","Labsystem Kft., VWR, Dialab Kft.","csomag (1000 db)",8000,1,8000]
["Laboratóriumi műanyag áru","Pipetta hegy","38437110-1","Pipettahegy standard 200ul öml. 1000db","VWR, Labsystem Kft., Dialab Kft.","csomag (1000 db)",8240,3,24720]
["Laboratóriumi műanyag áru","Pipetta hegy","38437110-1","Pipettahegy 50-1000ul ömlesztett 2X500db, kék, 71mm hosszú hegy - Eppendorf","VWR, Labsystem Kft., Dialab Kft.","csomag (1000 db)",12300,3,36900]
["Laboratóriumi műanyag áru","Pipetta hegy","38437110-1","100 - 1000 ul, Ömlesztett  1.000db","VWR, Labsystem Kft., Dialab Kft.","csomag (1000 db)",6965,3,20895]
["Laboratóriumi műanyag áru","Pipetta hegy","38437110-1","0,1 - 20 ul pipettahegy , 40 mm hosszú","VWR, Labsystem Kft., Dialab Kft.","csomag (1000 db)",17910,1,17910]
["Laboratóriumi műanyag áru","Pipetta hegy","38437110-1","0.2 ml  Eppendorf","Labsystem Kft., VWR, Dialab Kft.","csomag (500 db)",3500,1,3500]
["Laboratóriumi műanyag áru","Pipetta hegy","38437110-1","2 ml  Eppendorf","Labsystem Kft., VWR, Dialab Kft.","csomag (500 db)",3500,1,3500]
["Laboratóriumi műanyag áru","Műanyag termékek","19520000-7","centrifugacső csavaros kupakkal (15 ml, steril. A cső anyaga: polipropilén (PP), a kupak anyaga: polietilén (PE)). ","Labsystem Kft., Scarlabmagyarorszag Kft., aalabor Kft.","zsák (100 db)",3000,2,6000]
["Laboratóriumi műanyag áru","Műanyag termékek","19520000-7","Sejtszámlálóhoz lemez, Juli Br Cell Counting Slide (Countess sejtszámlálóhoz használható lemez)","NanoEnTek, VWR, ThermoFisher Scientific, Cambridge Bioscience Ltd.","doboz (50 db)",18113,1,18113]
["Laboratóriumi műanyag áru","Műanyag termékek","19520000-7","6 well/plate - Corning® Costar® cell culture plates, Sejttenyésztéshez alkalmas, steril, átlásztó, polisztirol, egyesével csomagolt, nem felületkezelt, wellek alja egyenes,fedővel rendelkező 6 well/plate.","Sigma Aldrich, Fisher Scientific, VWR Kft.","csomag (100 db)",70860,1,70860]
["Laboratóriumi műanyag áru","Műanyag termékek","19520000-7","Fagyasztócső (cryovial), 1 vagy 2 ml-es talppal és külső csavarmenetes kupakkal rendelkező, steril fagyasztócső, -80 fokon tárolható.","VWR Kft., Labsystem Kft., Dialab Kft.","doboz (1000 db)",59710,1,{"$f":"G164*H164","v":59710}]
["Laboratóriumi műanyag áru","Laboratóriumi, optikai és precíziós felszerelések","38000000-5","Millex-HA szűrő 0.45 um pórusú (SLHA025NB kódszám)","Sigma-Aldrich, Millipore Inc., Biocompare Inc., ","250 db",90000,1,90000]
["Laboratóriumi műanyag áru","Laboratóriumi, optikai és precíziós felszerelések","38000000-5","Avanti lipids polycharbonate membrane filter (pore size: 0.05 um)","Avanti Lipids Inc., Fisher Scientific, Sigma-Aldrich","100 db / csomag",60000,2,120000]
["Laboratóriumi műanyag áru","Laboratóriumi, optikai és precíziós felszerelések","38000000-5","Avanti lipids polycharbonate membrane filter (pore size: 0.1 um) ","Avanti Lipids Inc., Fisher Scientific, Sigma-Aldrich","100 db / csomag",55000,2,110000]
["Laboratóriumi műanyag áru",null,null,"PARAFILM zárófólia, szélesség: 100 mm, hossz: 75 m","VWR International Kft., AA Labor Kft., Reanal Laborvegyszer Kft.","1 tekercs",21960,3,65880]
["Laboratóriumi műanyagáru","Műanyag termékek","19520000-7","Mikrocentrifugacső 1,5 mL, szintelen, nem steril","Biocenter Kft., LabSystem Kft., AA Labor","1000db/csomag",4000,5,20000]
["Laboratóriumi műanyagáru","Műanyag termékek","19520000-7","Mikrocentrifugacső 0,5 mL","Biocenter Kft., LabSystem Kft., AA Labor","1000db/csomag",3000,8,24000]
["Laboratóriumi műanyagáru","Műanyag termékek","19520000-7","PP Centrifugacső 15 ml, csavaros, kónikus, RNase, Dnase, pyrogen free","Biocenter Kft., LabSystem Kft., AA Labor","500 db/ csomag",6000,4,24000]
["Laboratóriumi műanyagáru","Műanyag termékek","19520000-7","PP Centrifugacső 50 ml, csavaros, kónikus, RNase, Dnase, pyrogen free","Biocenter Kft., LabSystem Kft., AA Labor","500 db/ csomag",7000,2,14000]
["Laboratóriumi műanyagáru","Pipetta hegy","38437110-1","Ultra-Low Retention pipetta hegy 0,1-10 ul","Biocenter Kft.","1000db/csomag",3200,5,16000]
["Laboratóriumi műanyagáru","Pipetta hegy","38437110-1","Ultra-Low Retention pipetta hegy 200 ul","Biocenter Kft.","1000db/csomag",2700,5,13500]
["Laboratóriumi műanyagáru","Pipetta hegy","38437110-1","Ultra-Low Retention pipetta hegy 1000 ul","Biocenter Kft.","1000db/csomag",3100,3,9300]
[{"$nulls":9},{"$f":"SUM(I147:I175)","v":1108908}]
[]
["Laboratóriumi papíráru"]
["Laboratóriumi papíráru","Papíráruk","30192700-8","Nitrocellulóz membrán western blothoz, 0.2 um pórusú, roll, 200 mm x 4m méretű","Sigma Aldrich, VWR Kft., ThermoFisher","db",69900,1,{"$f":"G179*H179","v":69900}]
["Laboratóriumi papíráru","Papíráruk","30192700-8","Gel-blotting paper, 20 x 20 cm, 25/pk, 1.5 mm vastagságú","Sigma Aldrich, VWR Kft., Bio-Rad","csomag (25 db)",27150,1,27150]
["Laboratóriumi papíráru","szűrőpapír","15994200-4","Redős kvalitatív szűrőpapír általános laboratóriumi munkához, átmérő:  125 mm","VWR International Kft., Reanal Laborvegyszer Kft., Szkarabeusz Laboratóriumi Kft. ","100 db/csomag",10000,10,100000]
["Laboratóriumi papíráru","szűrőpapír","15994200-4","Redős kvalitatív szűrőpapír általános laboratóriumi munkához, átmérő:  150 mm","VWR International Kft., Reanal Laborvegyszer Kft., Szkarabeusz Laboratóriumi Kft. ","100 db/csomag",10000,10,100000]
["Laboratóriumi papíráru","szűrőpapír","15994200-4","Redős kvalitatív szűrőpapír általános laboratóriumi munkához, átmérő:  185 mm","VWR International Kft., Reanal Laborvegyszer Kft., Szkarabeusz Laboratóriumi Kft. ","100 db/csomag",8000,8,64000]
["Laboratóriumi papíráru","szűrőpapír","15994200-4","Redős kvalitatív szűrőpapír általános laboratóriumi munkához, átmérő:  240 mm","VWR International Kft., Reanal Laborvegyszer Kft., Szkarabeusz Laboratóriumi Kft. ","100 db/csomag",11500,6,69000]
[{"$nulls":9},{"$f":"SUM(I179:I184)","v":430050}]
[]
["Műszeralkatrészek"]
["Kromatográfiás alkatrészek","Egyéb gépek alkatrészei.","42950000-0","Shimadzu LC-10ADvp pumpához GFP Plunger Seal, Part No: 228-35146-00","Simkon Kft.","db",{"$f":"109.27*309","v":33764.43},4,{"$f":"G188*H188","v":135057.72}]
["Kromatográfiás alkatrészek","Egyéb gépek alkatrészei.","42950000-0","TEFLON DIAPHRAGM (2PCS) Shimadzu LC-10ADvp pumpához, Part No: 228-32784-91","Simkon Kft.","csomag",{"$f":"183.01*309","v":56550.09},2,113100.18]
["Kromatográfiás alkatrészek","Egyéb gépek alkatrészei.","42950000-0","Filter of mixer, Shimadzu LC-10ADvp pumpához, Part No: 228-18872-91","Simkon Kft.","db",{"$f":"12.39*309","v":3828.51},2,7657.02]
["Kromatográfiás alkatrészek","Egyéb gépek alkatrészei.","42950000-0","Inlet check valve in Assy Shimadzu LC-10ADvp modulhoz, Part No: 228-39093-92","Simkon Kft.","db",{"$f":"148.26*309","v":45812.34},2,91624.68]
["Kromatográfiás alkatrészek","Egyéb gépek alkatrészei.","42950000-0","CHECK VALVE OUT ASSY,VP, Shimadzu LC-10ADvp modulhoz, Part No: 228-34976-91","Simkon Kft.","db",{"$f":"171.5*309","v":52993.5},2,105987]
["Kromatográfiás alkatrészek","Egyéb gépek alkatrészei.","42950000-0","PARFULO O-RING P5, Shimadzu LC-10ADvp modulhoz, Part No: 670-11518-00","Simkon Kft.","db",{"$f":"19.16*309","v":5920.44},2,11840.88]
["Kromatográfiás alkatrészek","Egyéb gépek alkatrészei.","42950000-0","FUSE 1.0A/T/250V; 5.2X20, Shimadzu LC-10ADvp modulhoz, Part No: 072-02004-16","Simkon Kft.","db",{"$f":"6.3*309","v":1946.7},4,7786.8]
["Kromatográfiás alkatrészek","Egyéb gépek alkatrészei.","42950000-0","FUSE 3.15A/T/250V; 5.2X20, Shimadzu LC-10ADvp modulhoz, Part No: 072-02004-21","Simkon Kft.","db",{"$f":"2.89*309","v":893.01},6,5358.0599999999995]
["Kromatográfiás alkatrészek","Egyéb gépek alkatrészei.","42950000-0","FUSE 5A/T/250V; 5.2X20, Shimadzu LC-10ADvp modulhoz, Part No: 072-02004-23","Simkon Kft.","db",{"$f":"2.89*309","v":893.01},4,3572.04]
["Kromatográfiás alkatrészek","Egyéb gépek alkatrészei.","42950000-0","LOW PRESSURE GRADIENT UNIT, Shimadzu LC-10ADvp modulhoz, Part No: 228-45040-58","Simkon Kft.","db",{"$f":"309*1150.62","v":355541.57999999996},1,355541.57999999996]
["Kromatográfiás alkatrészek","Egyéb gépek alkatrészei.","42950000-0","Check valve in IN-SPB D1.588 REV, Shimadzu LC-10ADvp modulhoz, Part No: 228-48249-96","Simkon Kft.","db",{"$f":"309*297.3","v":91865.7},2,183731.4]
["Kromatográfiás alkatrészek","Egyéb gépek alkatrészei.","42950000-0","Check Valve OUT, Shimadzu LC-10ADvp modulhoz, Part No: 228-45705-91","Simkon Kft.","db",{"$f":"314.78*309","v":97267.01999999999},2,194534.03999999998]
["Kromatográfiás alkatrészek","Egyéb gépek alkatrészei.","42950000-0","Seal Cap Assembly, Part no: 5067-4728 - Agilent","Kromat Kft.","db",10587,2,21174]
["Kromatográfiás alkatrészek","Egyéb gépek alkatrészei.","42950000-0","PTFE Frits, Part no: 01018-22707, 5PK - Agilent","Kromat Kft.","5 db/cs",11013,1,11013]
["Kromatográfiás alkatrészek","Egyéb gépek alkatrészei.","42950000-0","Outlet Ball Valve for 1100/1200/1260, Part no: G1312-60067 - Agilent","Kromat Kft.","db",137700,1,137700]
["Kromatográfiás alkatrészek","Egyéb gépek alkatrészei.","42950000-0","Sieves (SS) for outlet valve 10/PK, Part no: 5063-6505-  Agilent","Kromat Kft.","10 db/cs",6009,1,6009]
["Kromatográfiás alkatrészek","Egyéb gépek alkatrészei.","42950000-0","Cartridge for active inlet valve, Part no: 5062-8562 - Agilent","Kromat Kft.","db",70200,1,70200]
["Kromatográfiás alkatrészek","Egyéb gépek alkatrészei.","42950000-0","Plunger seal for 1100 and 1050 2/PK, Part no: 5063-6589 - Agilent","Kromat Kft.","2 db/cs",36000,1,36000]
["Kromatográfiás alkatrészek","Egyéb gépek alkatrészei.","42950000-0","PE-Pump Seal 2/PK, Part no: 0905-1420 - Agilent","Kromat Kft.","2 db/cs",48900,1,48900]
["Kromatográfiás alkatrészek","Egyéb gépek alkatrészei.","42950000-0","Sapphire Plunger for 1100 and 1050, Part no: 5063-6586 - Agilent","Kromat Kft.","db",48600,1,48600]
["Kromatográfiás alkatrészek","Egyéb gépek alkatrészei.","42950000-0","MCG Valve Assy, Part no: G1311-67701 - Agilent","Kromat Kft.","db",594888,1,{"$f":"G208*H208","v":594888}]
["UV lámpa - sterilizáláshoz","Egyéb gépek alkatrészei.","42950000-0","Uv fénycső, Faster VS-4 195 steril fülkébe, Sankyo Denki G20T10, germicid lámpa","Auro-Science Consulting Kft., SOSLightBulbs, Norman Lamps, Inc.","db",15000,1,15000]
["Műszeralkatrészek","Egyéb gépek alkatrészei.","42950000-0","Acquity UPLC pumpa 3VCCPU AHTC vezérlő kártya (700005763)","Waters Kft.","1 db",90000,1,90000]
["Műszeralkatrészek","Egyéb gépek alkatrészei.","42950000-0","Acquity UPLC SM  I-Class PEEK Needle kit, 10uL (700005923)","Waters Kft.","1 db/csomag",57000,2,114000]
["Műszeralkatrészek","Egyéb gépek alkatrészei.","42950000-0","Acquity UPLC SM  I-Class ASSY, SAMPLE LOOP, 20 ul (430001320)","Waters Kft.","1 db/csomag",26000,1,26000]
["Műszeralkatrészek","Egyéb gépek alkatrészei.","42950000-0","Ferrule Set, 1/16 ID, Two-piece, (700002635)","Waters Kft.","10 db/csomag",46000,1,46000]
["Műszeralkatrészek","Egyéb gépek alkatrészei.","42950000-0","Screw, Comp.,10-32, 304SS,GOLD (70000264)","Waters Kft.","10 db/csomag",62000,1,62000]
["Műszeralkatrészek","Egyéb gépek alkatrészei.","42950000-0","1/4in. Short Comp. Screw (Gold-plated) (700002634)","Waters Kft.","10 db/csomag",46000,1,46000]
["Műszeralkatrészek","Egyéb gépek alkatrészei.","42950000-0","ASAP Probe Glass Capillary 1.9 x 100mm [700005025","Waters Kft.","100 db/csomag)",23000,1,23000]
["Műszeralkatrészek","Egyéb gépek alkatrészei.","42950000-0","Capillary Tube (M956358AD1)","Waters Kft.","1 db/csomag",34000,1,34000]
["Műszeralkatrészek","Egyéb gépek alkatrészei.","42950000-0","O RING SIZE 540 VITON 85712039-S)","Waters Kft.","1 db/csomag",7000,1,7000]
[{"$nulls":9},{"$f":"SUM(I188:I218)","v":2653275.4}]
[]
["Oldószerek kémiai szintézisekhez"]
["Oldószerek kémiai szintézisekhez","Szénhidrogének egyéb halogén származékai","24321300-3","Diklór-metán","Sigma-Aldrich, VWR, Molar","1 L",36900,1,{"$f":"G222*H222","v":36900}]
["Oldószerek kémiai szintézisekhez","Aldehid, keton, szerves peroxidok és éterek","24326000-5","Dietil-éter","Sigma-Aldrich, VWR, Molar","1 L",28260,1,{"$f":"G223*H223","v":28260}]
["Oldószerek kémiai szintézisekhez","Metanol.","24322210-2","Metanol","Molar, VWR, Sigma-Aldrich","1 L",950,1,{"$f":"G224*H224","v":950}]
["Oldószerek kémiai szintézisekhez","Különféle szerves vegyianyagok","24327000-2","Kloroform","Molar, VWR, Sigma-Aldrich","1 L",1890,2,{"$f":"G225*H225","v":3780}]
[{"$nulls":9},{"$f":"SUM(I222:I225)","v":69890}]
[]
["Oldószerek kromatográfiához"]
["Oldószerek kromatográfiához","Metanol","24322210-2","Metanol, HPLC célra, Assay min. 99%, CAS No: 67-56-1","VWR Kft., Sigma Aldrich, Reanal Labor Kft.","2,5 l",4953.75,24,{"$f":"G229*H229","v":118890}]
["Oldószerek kromatográfiához","Telített szénhidrogének.","24321100-1","HPLC n-hexán, min. 95%-os, Gyártó:  Fisher Chemical","Reanal Laborvegyszer Ker. Kft, VWR Kft, Sigma Aldrich","2,5 l",7812,2,15624]
["Oldószerek kromatográfiához","Egyértékű alkoholok.","24322200-9","izopropanol, HPLC minőségű, min. 99.9% tisztaságú ","VWR Kft., Sigma Aldrich, Molar Chemicals Kft.","2,5 L",2990,4,11960]
["Oldószerek kromatográfiához","Szerves alapvegyületek","24320000-3","Acetonitril LC/MS minőség","VWR, Merck, Sigma-Aldrich","2,5 L",16920,20,338400]
["Oldószerek kromatográfiához","Desztillált víz","24316000-2","Water LC/MS minőség","VWR, Merck, Sigma-Aldrich","2,5 L",6600,20,132000]
["Oldószerek kromatográfiához","Metanol","24322210-2","Metanol LC/MS minőség","VWR, Merck, Sigma-Aldrich","2,5 L",6400,4,25600]
["Oldószerek kromatográfiához","Etil-alkohol","24322510-5","Ethanol HPLC minőség","VWR, Merck, Sigma-Aldrich","2,5 L",22000,4,88000]
["Oldószerek kromatográfiához","Alkohol","24322500-2","Propan-2-ol HPLC minőség","VWR, Merck, Sigma-Aldrich","2,5 L",18700,4,74800]
["Oldószerek kromatográfiához","Metanol","24322210-2","Methanol HPLC/UPLC super grádiens minőség","VWR, Merck, Sigma-Aldrich","2,5 L",9200,4,36800]
["Oldószerek kromatográfiához","Szerves alapvegyületek","24320000-3","Acetonitril HPLC/UPLC super grádiens minőség","VWR, Merck, Sigma-Aldrich","2,5 L",12000,4,48000]
["Oldószerek kromatográfiához","Telített szénhidrogének","24321100-1","Hexán  > 97% HPLC minőség","VWR, Merck, Sigma-Aldrich","2,5 l",20000,2,40000]
["Oldószerek kromatográfiához","Ketonok és kinonok oxigénfunkciós csoporttal","24326200-7","Aceton GC/MS minőség","Merck Kft.","2,5 L",15000,4,60000]
[{"$nulls":9},{"$f":"SUM(I229:I240)","v":990074}]
[]
["Sejt és szövettenyésztéshez szükséges anyagok "]
["Sejt és szövettenyésztéshez szükséges anyagok ","Enzimek.","24965000-6\n","Transzfekciós reagens - TurboFect™ Transfection Reagent, Lipid alapú transzfekcióra alkalmas. Stabil és tranziens transzfekcióhoz vagy kotranszfekcióhoz használható. DNS és RNS transzfekciójához egyaránt megfelelő. ","ThermoFisher Scientific, VWR Kft., Biocenter Kft.","csomag (5200 ul)",63000,1,{"$f":"G244*H244","v":63000}]
["Sejt és szövettenyésztéshez szükséges anyagok ","Peptonok és proteinanyagok.","24956000-0","Fetal Bovine Serum, Sejttenyésztéshez alkalmas, steril, szűrt, hőinaktivált","Sigma Aldrich, VWR Kft., iBioTech","500 ml",147000,1,147000]
["Sejt és szövettenyésztéshez szükséges anyagok ","Különleges célú vegyipari termékek.","24950000-8","TRI Reagens, Totál RNS, genomi DNS, fehérje kinyerésére alkalmas emlős sejtvonalból, qPCR-hez használható","ThermoFisher Scientific, Sigma Aldrich, Favorgen Biotech Corp.","100 ml",42360,1,42360]
["Sejt és szövettenyésztéshez szükséges anyagok ","Különleges célú vegyipari termékek.","24950000-8","DMEM - Dulbecco’s Modified Eagle’s Medium - high glucose, Sejttenyésztéshez alkalmas folyékony tápoldat, steril, szűrt, 4500 mg/l glükózt, L-glutamint, nátrium piruvátot, nátrium bikarbonátot, fenol vöröset tartalmaz. ","Sigma Aldrich, ThermoFisher Scientific, VWR Kft.","csomag (6*500 ml)",43200,1,43200]
["Sejt és szövettenyésztéshez szükséges anyagok ","Különleges célú vegyipari termékek.","24950000-8","DMEM - Dulbecco’s Modified Eagle’s Medium - low glucose, Sejttenyésztéshez alkalmas folyékony tápoldat, steril, szűrt, 1000 mg/l glükózt és nátrium bikarbonátot tartalmaz, L-glutamin és fenol vörös nélkül.","Sigma Aldrich, ThermoFisher Scientific, VWR Kft.","csomag (6*500 ml)",47850,1,47850]
["Sejt és szövettenyésztéshez szükséges anyagok ","Különleges célú vegyipari termékek.","24950000-8","Tryple Express ","Thermo Scientific","100 ml",6420,1,{"$f":"G249*H249","v":6420}]
[{"$nulls":9},{"$f":"SUM(I244:I249)","v":349830}]
[]
["Szerves alapvegyületek"]
["Szerves alapvegyületek","Szerves alapvegyületek","24000000-4","L-α-Lecithin, Egg Yolk","VWR, Molar, Sigma Aldrich","250 mg",20000,1,{"$f":"G253*H253","v":20000}]
["Szerves alapvegyületek","Szerves alapvegyületek","24000000-4","L-α-Lecithin, Soybean ","VWR, Molar, Sigma Aldrich","100 g",74000,1,{"$f":"G254*H254","v":74000}]
["Szerves alapvegyületek","Szerves alapvegyületek","24000000-4","Koleszterin ultra pure grade","VWR, Molar, Sigma Aldrich","500 g",44000,1,{"$f":"G255*H255","v":44000}]
["Szerves alapvegyületek","Szerves alapvegyületek","24000000-4","1,2-Dimyristoyl-sn-glycero-3-PC","VWR, Molar, Sigma Aldrich","2g",59000,1,59000]
["Szerves alapvegyületek","Szerves alapvegyületek","24000000-4","1,2-Dilauroyl- sn-glycero-3-PC","VWR, Molar, Sigma Aldrich","2g",59000,1,59000]
["Szerves alapvegyületek","Szerves alapvegyületek","24000000-4","1,2-Distearoyl-sn-glycero-3-PC","VWR, Molar, Sigma Aldrich","2g",59000,1,59000]
[{"$nulls":9},{"$f":"SUM(I253:I258)","v":315000}]
[]
["Vegyszerek kémiai szintézisekhez"]
["Vegyszerek kémiai szintézisekhez","Szerves vegyületek nitrogénfunkciós csoporttal.","24324000-1","Glicin, Assay 100%","VWR Kft., Sigma Aldrich, Molar Chemicals","1000 g ",16168,1,{"$f":"G262*H262","v":16168}]
["Vegyszerek kémiai szintézisekhez","Szerves vegyületek nitrogénfunkciós csoporttal.","24324000-1","Piperidin, CAS No: 110-89-4","VWR Kft., Sigma Aldrich, Reanal Labor Kft.","2,5 l",43090,4,172360]
["Vegyszerek kémiai szintézisekhez","Szerves kénvegyületek.","24325000-8","Dimetil-szulfid","VWR Kft., Sigma Aldrich, Merck Millipore","250 ml",8909,1,8909]
["Vegyszerek kémiai szintézisekhez","Szerves kénvegyületek.","24325000-8","DTT (1,4-Dithio-DL-threitol)","Bachem, Sigma Aldrich, Iris Biotech Gmbh","25 g",{"$f":"163*309","v":50367},1,50367]
["Vegyszerek kémiai szintézisekhez","Szerves vegyületek nitrogénfunkciós csoporttal.","24324000-1","Boc-Arg(Tos)-OH","Iris Biotech Gmbh, Bachem, Sigma Aldrich","25 g",{"$f":"75*309","v":23175},1,23175]
["Vegyszerek kémiai szintézisekhez","Szénhidrogének egyéb halogénszármazékai.","24321300-3","Kloroform (cca. 2 ppb amilénnel stabilizálva) HiPerSolv Chromanorm HPLC, üvegben","VWR Kft., Sigma Aldrich, Molar Chemicals Kft.","1000 ml",3900,1,3900]
["Vegyszerek kémiai szintézisekhez","Ecetsav.","24323210-9","Ecetsav, 99-100%","Molar Chemicals Kft., VWR Kft., Sigma Aldrich","2500 ml",3625,2,7250]
["Vegyszerek kémiai szintézisekhez","Különleges célú vegyipari termékek.","24950000-8","Nátrium deoxikolát","Sigma Aldrich, VWR Kft., Thermo Fisher Sc.","25 g",13110,1,13110]
["Vegyszerek kémiai szintézisekhez","Szerves alapvegyületek.","24320000-3","Ecetsav-anhidrid, min. 98%","Sigma Aldrich, VWR Kft., Molar Chemicals Kft.","1000 ml",8469,2,16938]
["Vegyszerek kémiai szintézisekhez","Szerves kénvegyületek.","24325000-8","Dimetil-szulfoxid, a.r.","VWR Kft., Sigma Aldrich, Molar Chemicals","1000 ml",15698,1,15698]
["Vegyszerek kémiai szintézisekhez","Különféle szerves vegyianyagok","24327000-2","1,2-Dipalmitoyl-sn-glycero-3-phosphocholine","Sigma-Aldrich, Avanti Polar Lipids Inc., Echelon Biosciences Inc. ","250 mg",60600,3,181800]
["Vegyszerek kémiai szintézisekhez","Különféle szerves vegyianyagok","24327000-2","Asolectin from soy bean","Sigma-Aldrich, Avanti Polar Lipids Inc., OMNILAB-LABORZENTRUM GmbH & Co.","250 g",34200,1,34200]
["Vegyszerek kémiai szintézisekhez","Különféle szerves vegyianyagok","24327000-2","Soy lecithin","Sigma-Aldrich, VWR, Avanti Lipids Inc., ","500 g",32100,1,32100]
["Vegyszerek kémiai szintézisekhez","Különféle szerves vegyianyagok","24327000-2","Cholesterol","Sigma-Aldrich, Steraloids Inc., Molar","25 g",95100,1,95100]
["Vegyszerek kémiai szintézisekhez","Különféle szerves vegyianyagok","24327000-2","Cholesteryl chloroformate","Sigma-Aldrich, Santa-Cruz Biotechnology Inc., Fisher Scientific Inc.","25 g",21540,1,21540]
["Vegyszerek kémiai szintézisekhez","Primer etilén-polimerek","24510000-2","Poly(ethylene imine) (Mn= 1800)","Sigma-Aldrich, VWR, PolySciencies","250 mL",30600,1,30600]
["Vegyszerek kémiai szintézisekhez","Aminok","24324100-2","Trietil-amin","Sigma-Aldrich, VWR, Molar","100 mL",10320,1,10320]
["Vegyszerek kémiai szintézisekhez","Primer etilén-polimerek","24510000-2","Poly(ethylene glycol) (Mn = 6000)","Sigma-Aldrich, VWR, Molar","1 kg",13530,2,27060]
["Vegyszerek kémiai szintézisekhez","Primer műanyagok","24500000-9","Poly(allylamine hydrochloride) (Mw = 17500)","Sigma-Aldrich, VWR, Molar","5 g",49200,1,49200]
["Vegyszerek kémiai szintézisekhez","Primer sztirol-polimerek",null,"Poly(sodium 4-styrenesulfonate) (Mw = 70000)","Sigma-Aldrich, VWR, Quantomix Inc.","100 g",24360,1,24360]
["Vegyszerek kémiai szintézisekhez","Primer etilén-polimerek","24510000-2","Poly(ethylene glycol) methyl ether thiol (Mn = 6000)","Sigma-Aldrich, Alpha-Aesar, VWR","1 g",62400,2,124800]
["Vegyszerek kémiai szintézisekhez","Különféle szerves vegyianyagok","24327000-2","Chitosan high molecular weight","Sigma-Aldrich, Acros Organic Inc., Santa-Cruz Biotechnology Inc.","50 g",16710,1,16710]
["Vegyszerek kémiai szintézisekhez","Primer műanyagok","24500000-9","Poly(DL-lactid-co-glycolide) (Mw = 19000, 50-50 laktid-glikold %)","Acros Organic Inc, Sigma-Aldrich,  VWR","5 g",61000,1,61000]
["Vegyszerek kémiai szintézisekhez","Különféle szerves vegyi anyagok","2432-7000-2","Dimethyl malonate, 98%","VWR International Kft., Sigma-Aldrich Kft., Molar Chemicals Kft.","500 g",11904,1,{"$f":"PRODUCT(G285:H285)","v":11904}]
["Vegyszerek kémiai szintézisekhez","Különféle szerves vegyi anyagok","2432-7000-2","Diethyl malonate, 99% ","Sigma-Aldrich Kft., VWR International Kft., Molar Chemicals Kft.","500 g",12200,1,{"$f":"G286*H286","v":12200}]
["Vegyszerek kémiai szintézisekhez","Különféle szerves vegyi anyagok","2432-7000-2","Diisopropyl malonate","Sigma-Aldrich Kft., VWR International Kft., Molar Chemicals Kft.","100 ml",20670,1,20670]
["Vegyszerek kémiai szintézisekhez","Foszfinátok, foszfonátok, foszfátok és polifoszfátok","2431-3200-3","Phosphorus pentachloride, 98% ","Sigma-Aldrich Kft, VWR International Kft.,  Molar Chemicals Kft.","1 kg",18240,1,18240]
["Vegyszerek kémiai szintézisekhez","Különféle szerves vegyi anyagok","2432-7000-2","L-(+)-Tartaric acid, 99.5%","Sigma-Aldrich Kft., Reanal Laborvegyszer Kft., VWR International Kft.","500 g",14490,2,28980]
["Vegyszerek kémiai szintézisekhez","Különféle szerves vegyi anyagok","2432-7000-2","Benzyl bromide, 98%","VWR International Kft., Sigma-Aldrich  Kft.,  Molar Chemicals Kft.","500 g",58000,1,58000]
["Vegyszerek kémiai szintézisekhez","Szerves vegyületek nitrogénfunkciós csoporttal","2432-4000-1","n-Butylamine, 99,5%","Sigma-Aldrich Kft., VWR International Kft.,  Molar Chemicals Kft.","1000 ml",18840,1,18840]
["Vegyszerek kémiai szintézisekhez","Különféle szerves vegyi anyagok","2432-7000-2","Methyl chloroformate, 99%","VWR International Kft., Sigma-Aldrich Kft., Molar Chemicals Kft.","500 ml",16600,2,33200]
["Vegyszerek kémiai szintézisekhez","Különféle szerves vegyi anyagok","2432-7000-2","Ethyl chloroformate, 97%","VWR International Kft., Sigma-Aldrich Kft., Molar Chemicals Kft.","500 ml",21000,2,42000]
["Vegyszerek kémiai szintézisekhez","Különféle szerves vegyi anyagok","2432-7000-2","Benzyl chloroformate, 97%","VWR International Kft., Sigma-Aldrich Kft., Molar Chemicals Kft.","500 g",41400,2,82800]
["Vegyszerek kémiai szintézisekhez","Aldehidvegyületek oxigénfunkciós csoporttal","2432-6100-6","4-(Trifluormethyl)-benzaldehyde, 98%","Sigma-Aldrich Kft., VWR International Kft., Molar Chemicals Kft.","50 g",36600,1,36600]
["Vegyszerek kémiai szintézisekhez","Különféle szerves vegyi anyagok","2432-7000-2","1,1-Bis(methylthio)-2-nitroethylene, 95%","VWR International Kft., Sigma-Aldrich Kft., Molar Chemicals Kft.","25 g",59904,1,59904]
["Vegyszerek kémiai szintézisekhez","Aldehidvegyületek oxigénfunkciós csoporttal","2432-6100-6","4-Fluorobenzaldehyde, 98%","VWR International Kft., Sigma-Aldrich Kft., Molar Chemicals Kft.","100 g",25824,1,25824]
["Vegyszerek kémiai szintézisekhez","Különféle szerves vegyi anyagok","2432-7000-2","Grubbs Catalyst™ 2nd Generation ","Sigma-Aldrich Kft.","500 mg",107400,4,429600]
["Vegyszerek kémiai szintézisekhez","Különféle szerves vegyi anyagok","2432-7000-2","Hoveyda-Grubbs Catalyst™ 2nd Generation","Sigma-Aldrich Kft.","500 mg",100950,4,403800]
["Vegyszerek kémiai szintézisekhez","Különféle szerves vegyi anyagok","2432-7000-2","1H-Indene-3-carboxylic acid","Sigma-Aldrich Kft., Molar Chemicals Kft.","1 g",16380,2,32760]
["Vegyszerek kémiai szintézisekhez","Különféle szerves vegyi anyagok","2432-7000-2","7-Bromo-1H-indene  ","Sigma-Aldrich Kft.","1 g",36900,2,73800]
["Vegyszerek kémiai szintézisekhez","Különféle szerves vegyi anyagok","2432-7000-2","Selectfluor® fluorinating reagent , 95%","Sigma-Aldrich Kft.","25 g",41400,2,82800]
["Vegyszerek kémiai szintézisekhez","Különféle szerves vegyi anyagok","2432-7000-2","Deoxo-Fluor® solution ~50% in toluene  ","Sigma-Aldrich Kft.","50 ml   ",87150,2,174300]
["Vegyszerek kémiai szintézisekhez","Különféle szerves vegyi anyagok","2432-7000-2","4-tert-Butyl-2,6-dimethylphenyl-sulfur trifluoride   ","Sigma-Aldrich Kft.","5 g",64350,2,128700]
["Vegyszerek kémiai szintézisekhez","Különféle szerves vegyi anyagok","2432-7000-2","XtalFluor-E®   ","Sigma-Aldrich Kft.","25 g   ",55650,2,111300]
["Vegyszerek kémiai szintézisekhez","Különféle szerves vegyi anyagok","2432-7000-2","XtalFluor-M®   ","Sigma-Aldrich Kft.","5 g   ",20130,2,40260]
["Vegyszerek kémiai szintézisekhez","Különféle szerves vegyi anyagok","2432-7000-2","2,2,2-Trifluoroethylamine hydrochloride, 98%","Sigma-Aldrich Kft.","50 g   ",173400,2,346800]
["Vegyszerek kémiai szintézisekhez","Különféle szerves vegyi anyagok","2432-7000-2","2,2-Difluoroethylamine hydrochloride","Sigma-Aldrich Kft.","1 g   ",75450,4,301800]
["Vegyszerek kémiai szintézisekhez","Különféle szerves vegyi anyagok","2432-7000-2","2-Fluoroethylamine hydro-chloride, technical grade, 90%","Sigma-Aldrich Kft.","10 g   ",88050,2,176100]
["Vegyszerek kémiai szintézisekhez","Különféle szerves vegyi anyagok","2432-7000-2","N-Iodosuccinimide, 95%","Sigma-Aldrich Kft., Molar Chemicals Kft.","25 g  ",61650,2,123300]
["Vegyszerek kémiai szintézisekhez","Különféle szerves vegyi anyagok","2432-7000-2","Grubbs Catalyst™ 3rd Generation  ","Sigma-Aldrich Kft.","500 mg   ",106050,4,424200]
["Vegyszerek kémiai szintézisekhez","Polifoszforsav","2431-1430-0","Polyphosphoric acid","VWR International Kft., Sigma-Aldrich Kft., Molar Chemicals Kft.","1 kg",20300,3,60900]
["Vegyszerek kémiai szintézisekhez","Kénvegyületek","2431-1600-3","Thionyl chloride, 97%","VWR International Kft.,  Molar Chemicals Kft., Reanal Laborvegyszer Kft.","1000 ml",45300,1,45300]
["Vegyszerek kémiai szintézisekhez","Szervetlen savak","2431-1410-4","Hydrogen bromide (33% solution in acetic acid)","Sigma-Aldrich Kft., Molar Chemicals Kft., Reanal Laborvegyszer Kft.","500 ml",35136,2,70272]
["Vegyszerek kémiai szintézisekhez","Szervetlen savak","2431-1410-4","Hydrobromic acid (48% in water)","Molar Chemicals Kft., Reanal Laborvegyszer Kft., VWR International Kft.","1000 ml",20400,1,20400]
["Vegyszerek kémiai szintézisekhez","Foszfinátok, foszfonátok, foszfátok és polifoszfátok","2431-3200-3","Phosphorus(V) oxychloride, 99%","Sigma-Aldrich Kft., VWR International Kft., Molar Chemicals Kft.","1 kg",26640,2,53280]
["Vegyszerek kémiai szintézisekhez","Hidridek","2431-1130-7","Lithium aluminum hydride, powder, 97%","VWR International Kft.,  Molar Chemicals Kft., Sigma-Aldrich Kft.","250 g",84288,2,168576]
["Vegyszerek kémiai szintézisekhez","Hidridek","2431-1130-7","Sodium borohydride, powder, 99%","VWR International Kft., Sigma-Aldrich Kft.,  Molar Chemicals Kft.","100 g",29600,3,88800]
["Vegyszerek kémiai szintézisekhez","Hidridek","2431-1130-7","Sodium hydride, 60 % dispersion in mineral oil","Sigma-Aldrich Kft., VWR International Kft., Molar Chemicals Kft.","500 g",39450,1,39450]
["Vegyszerek kémiai szintézisekhez","Különféle szerves vegyi anyagok","2432-7000-2","Ethyl chlorooxoacetate, 98%","Sigma-Aldrich Kft., VWR International Kft., Molar Chemicals Kft.","100 g",24060,1,24060]
["Vegyszerek kémiai szintézisekhez","Különféle szerves vegyi anyagok","2432-7000-2","L-Histidine, 99%","VWR International Kft., Sigma-Aldrich Kft., Molar Chemicals Kft.","100 g",20928,2,41856]
["Vegyszerek kémiai szintézisekhez","Különféle szerves vegyi anyagok","2432-7000-2","DL-alpha-Phenylalanine, 99%","VWR International Kft., Sigma-Aldrich Kft., Molar Chemicals Kft.","100 g",22080,2,44160]
["Vegyszerek kémiai szintézisekhez","Különféle szerves vegyi anyagok","2432-7000-2","Phenyl isothiocyanate, 97%","VWR International Kft., Sigma-Aldrich Kft., Molar Chemicals Kft.","100 g ",13152,1,13152]
["Vegyszerek kémiai szintézisekhez","Különféle szerves vegyi anyagok","2432-7000-2","Cyclohexyl isothiocyanate, 98%","VWR International Kft., Sigma-Aldrich Kft., Molar Chemicals Kft.","25 g",11808,2,23616]
["Vegyszerek kémiai szintézisekhez","Különféle szerves vegyi anyagok","2432-7000-2","alpha-Ketoglutaric acid, 98%","VWR International Kft., Sigma-Aldrich Kft., Molar Chemicals Kft.","100 g",16224,1,16224]
["Vegyszerek kémiai szintézisekhez","Különféle szerves vegyi anyagok","2432-7000-2","Isopropyl isothiocyanate, 97%","VWR International Kft., Sigma-Aldrich Kft., Molar Chemicals Kft.","25 g",36000,1,36000]
["Vegyszerek kémiai szintézisekhez","Különféle szerves vegyi anyagok","2432-7000-2","Ethyl isothiocyanate, 97%","VWR International Kft., Sigma-Aldrich Kft., Molar Chemicals Kft.","100 g",17088,1,17088]
["Vegyszerek kémiai szintézisekhez","Különféle szerves vegyi anyagok","2432-7000-2","Benzyl isothiocyanate, 98%","VWR International Kft., Sigma-Aldrich Kft., Molar Chemicals Kft.","25 g",30720,1,30720]
["Vegyszerek kémiai szintézisekhez","Különféle szerves vegyi anyagok","2432-7000-2","4'-Methoxyacetophenone, 99%","VWR International Kft., Sigma-Aldrich Kft., Molar Chemicals Kft.","250 g",11424,1,11424]
["Vegyszerek kémiai szintézisekhez","Különféle szerves vegyi anyagok","2432-7000-2","Acetophenone, 99%","VWR International Kft., Sigma-Aldrich Kft., Molar Chemicals Kft.","1000 ml",11800,1,11800]
[{"$nulls":9},{"$f":"SUM(I262:I330)","v":5152425}]
[]
["Víztisztító töltetek, mátrixok "]
["Víztisztító töltetek, mátrixok ","Vízkezelő szerek (víztisztító és vízlágyító szerek).","24962000-5","MilliQ szűrő, Gyártói cikkszám: SPR00SIA1","Merck Millipore","db",157680,1,{"$f":"G334*H334","v":157680}]
["Víztisztító töltetek, mátrixok ","Vízkezelő szerek (víztisztító és vízlágyító szerek).","24962000-5","MilliQ Ultrafilter, Gyártói cikkszám: CDUFBI001","Merck Millipore","db",71752,1,{"$f":"G335*H335","v":71752}]
[{"$nulls":9},{"$f":"SUM(I334:I335)","v":229432}]
[]
[]
[]
[]
[]
[{"$nulls":9},{"$f":"SUM(J4:J336)","v":24261344.399999999}]